Body,Body Name,Posted Fiscal Date,Amount,Transaction Number,Supplier Name,Directorate,Service,Activity,Cost Centre Name,Subjective Name
http://opendatacommunities.org/doc/london-borough-council/havering,London Borough of Havering,06/05/2016,4480.30,MAY16L311,NorthgateArinso UK Ltd,Community and Resources,Transformation Agenda,People And Change Transformation,Terms and Conditions Review,PRIVATE CONTRACTORS PAYMENT - OTHER
http://opendatacommunities.org/doc/london-borough-council/havering,London Borough of Havering,16/05/2016,-7040.00,MAY16L314,**Redacted Personal Data**,Community and Resources,Transformation Agenda,People And Change Transformation,Terms and Conditions Review,PRIVATE CONTRACTORS PAYMENT - OTHER
http://opendatacommunities.org/doc/london-borough-council/havering,London Borough of Havering,03/05/2016,-483.64,MAY16L147,Cedars Care Home for the Elderly_a,"Children, Adults & Housing",Adult Services,Adult Community Team,Physical Support,RESIDENTIAL PLACEMENTS - PRIVATE CONTRACTORS PAYMENT
http://opendatacommunities.org/doc/london-borough-council/havering,London Borough of Havering,27/05/2016,1886.04,MAY16L148,Cedars Care Home for the Elderly_a,"Children, Adults & Housing",Adult Services,Adult Community Team,Physical Support,RESIDENTIAL PLACEMENTS - PRIVATE CONTRACTORS PAYMENT
http://opendatacommunities.org/doc/london-borough-council/havering,London Borough of Havering,03/05/2016,1886.04,MAY16L149,Cedars Care Home for the Elderly_a,"Children, Adults & Housing",Adult Services,Adult Community Team,Physical Support,RESIDENTIAL PLACEMENTS - PRIVATE CONTRACTORS PAYMENT
http://opendatacommunities.org/doc/london-borough-council/havering,London Borough of Havering,24/05/2016,748.25,MAY16L158,Serco Ltd,"Children, Adults & Housing",Adult Services,Prevention,Home Care Business Unit - Yew Tree Lodge,PRIVATE CONTRACTORS PAYMENT - OTHER
http://opendatacommunities.org/doc/london-borough-council/havering,London Borough of Havering,16/05/2016,776.50,MAY16L159,Serco Ltd,"Children, Adults & Housing",Adult Services,Learning Disabilities,Avelon Centre,GROUNDS MAINTENANCE
http://opendatacommunities.org/doc/london-borough-council/havering,London Borough of Havering,09/05/2016,769.05,MAY16L160,Serco Ltd,"Children, Adults & Housing",Adult Services,Prevention,Yew Tree Lodge Day Centre,PRIVATE CONTRACTORS PAYMENT - OTHER
http://opendatacommunities.org/doc/london-borough-council/havering,London Borough of Havering,19/05/2016,9286.50,MAY16L167,Northgate Public Services UK Ltd,"Children, Adults & Housing",Adult Services,Health & Social Care Other,Asst Dir Adult Services,PRIVATE CONTRACTORS PAYMENT - OTHER
http://opendatacommunities.org/doc/london-borough-council/havering,London Borough of Havering,19/05/2016,17426.58,MAY16L168,Northgate Public Services UK Ltd,"Children, Adults & Housing",Adult Services,Health & Social Care Other,Asst Dir Adult Services,PRIVATE CONTRACTORS PAYMENT - OTHER
http://opendatacommunities.org/doc/london-borough-council/havering,London Borough of Havering,12/05/2016,1400.00,MAY16L190,Parasol Ltd,"Children, Adults & Housing",Adult Services,Transforming Health and Social Care,NHS Support for Social Care,CONSULTANCY FEES
http://opendatacommunities.org/doc/london-borough-council/havering,London Borough of Havering,12/05/2016,1400.00,MAY16L191,Parasol Ltd,"Children, Adults & Housing",Adult Services,Transforming Health and Social Care,NHS Support for Social Care,CONSULTANCY FEES
http://opendatacommunities.org/doc/london-borough-council/havering,London Borough of Havering,19/05/2016,1200.00,MAY16L192,Parasol Ltd,"Children, Adults & Housing",Adult Services,Transforming Health and Social Care,NHS Support for Social Care,CONSULTANCY FEES
http://opendatacommunities.org/doc/london-borough-council/havering,London Borough of Havering,19/05/2016,1000.00,MAY16L193,Parasol Ltd,"Children, Adults & Housing",Adult Services,Transforming Health and Social Care,NHS Support for Social Care,CONSULTANCY FEES
http://opendatacommunities.org/doc/london-borough-council/havering,London Borough of Havering,18/05/2016,1200.00,MAY16L194,Parasol Ltd,"Children, Adults & Housing",Adult Services,Transforming Health and Social Care,NHS Support for Social Care,CONSULTANCY FEES
http://opendatacommunities.org/doc/london-borough-council/havering,London Borough of Havering,27/05/2016,1200.00,MAY16L195,Parasol Ltd,"Children, Adults & Housing",Adult Services,Transforming Health and Social Care,NHS Support for Social Care,CONSULTANCY FEES
http://opendatacommunities.org/doc/london-borough-council/havering,London Borough of Havering,13/05/2016,434.00,MAY16L207,Citibank Europe Plc,"Children, Adults & Housing",Adult Services,Adult Community Team,Sensory Support,DIRECT PAYMENTS
http://opendatacommunities.org/doc/london-borough-council/havering,London Borough of Havering,13/05/2016,3552.01,MAY16L208,Citibank Europe Plc,"Children, Adults & Housing",Adult Services,Adult Community Team,Support to Carer,DIRECT PAYMENTS
http://opendatacommunities.org/doc/london-borough-council/havering,London Borough of Havering,13/05/2016,5035.26,MAY16L209,Citibank Europe Plc,"Children, Adults & Housing",Adult Services,Adult Community Team,Physical Support,DIRECT PAYMENTS
http://opendatacommunities.org/doc/london-borough-council/havering,London Borough of Havering,20/05/2016,5000.00,MAY16L210,Citibank Europe Plc,"Children, Adults & Housing",Adult Services,Prevention,PD Equipment,"PURCHASE - EQUIPMENT, FURNITURE AND MATERIALS"
http://opendatacommunities.org/doc/london-borough-council/havering,London Borough of Havering,24/05/2016,1324.01,MAY16L236,Marula House Ltd,"Children, Adults & Housing",Mental Health,Mental Health - Non Section 75,Mental Health Support,LONG TERM SUPPORT - COMMUNITY: SUPPORTED LIVING
http://opendatacommunities.org/doc/london-borough-council/havering,London Borough of Havering,24/05/2016,1237.83,MAY16L237,Marula House Ltd,"Children, Adults & Housing",Mental Health,Mental Health - Non Section 75,Mental Health Support,LONG TERM SUPPORT - COMMUNITY: SUPPORTED LIVING
http://opendatacommunities.org/doc/london-borough-council/havering,London Borough of Havering,24/05/2016,3277.01,MAY16L238,Marula House Ltd,"Children, Adults & Housing",Mental Health,Mental Health - Non Section 75,Mental Health Support,LONG TERM SUPPORT - COMMUNITY: SUPPORTED LIVING
http://opendatacommunities.org/doc/london-borough-council/havering,London Borough of Havering,24/05/2016,1736.00,MAY16L239,Marula House Ltd,"Children, Adults & Housing",Mental Health,Mental Health - Non Section 75,Mental Health Support,LONG TERM SUPPORT - COMMUNITY: SUPPORTED LIVING
http://opendatacommunities.org/doc/london-borough-council/havering,London Borough of Havering,24/05/2016,784.86,MAY16L245,Headway East London,"Children, Adults & Housing",Adult Services,Adult Community Team,Support for Social Isolation - Other,DAYCARE - PRIVATE CONTRACTORS PAYMENT
http://opendatacommunities.org/doc/london-borough-council/havering,London Borough of Havering,27/05/2016,8480.00,MAY16L250,Cambian Learning Disabilities Ltd,"Children, Adults & Housing",Adult Services,Learning Disabilities,Learning Disability Support,RESIDENTIAL PLACEMENTS - PRIVATE CONTRACTORS PAYMENT
http://opendatacommunities.org/doc/london-borough-council/havering,London Borough of Havering,03/05/2016,8480.00,MAY16L251,Cambian Learning Disabilities Ltd,"Children, Adults & Housing",Adult Services,Learning Disabilities,Learning Disability Support,RESIDENTIAL PLACEMENTS - PRIVATE CONTRACTORS PAYMENT
http://opendatacommunities.org/doc/london-borough-council/havering,London Borough of Havering,04/05/2016,67500.00,MAY16L294,NHS Havering CCG,"Children, Adults & Housing",Mental Health,Mental Health - Non Section 75,Mental Health Support,SUPPORTED OTHER ACCOMMODATION - PRIVATE CONTRACTORS PAYMENT
http://opendatacommunities.org/doc/london-borough-council/havering,London Borough of Havering,10/05/2016,2545.03,MAY16L317,Specialised Orthotic Services Ltd,"Children, Adults & Housing",Adult Services,Prevention,PD Equipment,"PURCHASE - EQUIPMENT, FURNITURE AND MATERIALS"
http://opendatacommunities.org/doc/london-borough-council/havering,London Borough of Havering,06/05/2016,1667.00,MAY16L357,Havcare,"Children, Adults & Housing",Adult Services,Learning Disabilities,Learning Disability Support,PRIVATE CONTRACTORS PAYMENT - OTHER
http://opendatacommunities.org/doc/london-borough-council/havering,London Borough of Havering,25/05/2016,761.80,MAY16L371,Misco,"Children, Adults & Housing",Adult Services,Health & Social Care Other,Asst Dir Adult Services,MISCELLANEOUS EXPENSES
http://opendatacommunities.org/doc/london-borough-council/havering,London Borough of Havering,24/05/2016,5968.68,MAY16L407,NAS Services Limited,"Children, Adults & Housing",Adult Services,Learning Disabilities,Learning Disability Support,HOME CARE - PRIVATE CONTRACTORS PAYMENT
http://opendatacommunities.org/doc/london-borough-council/havering,London Borough of Havering,27/05/2016,1990.84,MAY16L410,Bupa Care Homes - Hutton Village_a,"Children, Adults & Housing",Adult Services,Adult Community Team,Physical Support,NURSING HOMES - PRIVATE CONTRACTORS PAYMENT
http://opendatacommunities.org/doc/london-borough-council/havering,London Borough of Havering,03/05/2016,1990.84,MAY16L411,Bupa Care Homes - Hutton Village_a,"Children, Adults & Housing",Adult Services,Adult Community Team,Physical Support,NURSING HOMES - PRIVATE CONTRACTORS PAYMENT
http://opendatacommunities.org/doc/london-borough-council/havering,London Borough of Havering,03/05/2016,-483.64,MAY16L412,Priory Supporting Care Ltd_a,"Children, Adults & Housing",Adult Services,Adult Community Team,Physical Support,RESIDENTIAL PLACEMENTS - PRIVATE CONTRACTORS PAYMENT
http://opendatacommunities.org/doc/london-borough-council/havering,London Borough of Havering,03/05/2016,2181.84,MAY16L413,Priory Supporting Care Ltd_a,"Children, Adults & Housing",Adult Services,Adult Community Team,Physical Support,RESIDENTIAL PLACEMENTS - PRIVATE CONTRACTORS PAYMENT
http://opendatacommunities.org/doc/london-borough-council/havering,London Borough of Havering,27/05/2016,1549.05,MAY16L414,Priory Supporting Care Ltd_a,"Children, Adults & Housing",Adult Services,Adult Community Team,Physical Support,RESPITE CARE - PRIVATE CONTRACTORS PAYMENT
http://opendatacommunities.org/doc/london-borough-council/havering,London Borough of Havering,27/05/2016,-467.54,MAY16L415,Priory Supporting Care Ltd_a,"Children, Adults & Housing",Adult Services,Adult Community Team,Physical Support,RESIDENTIAL PLACEMENTS - PRIVATE CONTRACTORS PAYMENT
http://opendatacommunities.org/doc/london-borough-council/havering,London Borough of Havering,27/05/2016,673.50,MAY16L416,Priory Supporting Care Ltd_a,"Children, Adults & Housing",Adult Services,Adult Community Team,Physical Support,RESPITE CARE - PRIVATE CONTRACTORS PAYMENT
http://opendatacommunities.org/doc/london-borough-council/havering,London Borough of Havering,27/05/2016,-3584.45,MAY16L417,Priory Supporting Care Ltd_a,"Children, Adults & Housing",Adult Services,Adult Community Team,Physical Support,RESIDENTIAL PLACEMENTS - PRIVATE CONTRACTORS PAYMENT
http://opendatacommunities.org/doc/london-borough-council/havering,London Borough of Havering,27/05/2016,862.11,MAY16L418,Priory Supporting Care Ltd_a,"Children, Adults & Housing",Adult Services,Adult Community Team,Physical Support,RESIDENTIAL CARE INCOME
http://opendatacommunities.org/doc/london-borough-council/havering,London Borough of Havering,27/05/2016,-1168.84,MAY16L419,Priory Supporting Care Ltd_a,"Children, Adults & Housing",Adult Services,Adult Community Team,Physical Support,RESIDENTIAL PLACEMENTS - PRIVATE CONTRACTORS PAYMENT
http://opendatacommunities.org/doc/london-borough-council/havering,London Borough of Havering,27/05/2016,518.66,MAY16L420,Priory Supporting Care Ltd_a,"Children, Adults & Housing",Adult Services,Adult Community Team,Physical Support,NURSING HOMES - PRIVATE CONTRACTORS PAYMENT
http://opendatacommunities.org/doc/london-borough-council/havering,London Borough of Havering,03/05/2016,2979.38,MAY16L421,Priory Supporting Care Ltd_a,"Children, Adults & Housing",Adult Services,Adult Community Team,Physical Support,RESIDENTIAL PLACEMENTS - PRIVATE CONTRACTORS PAYMENT
http://opendatacommunities.org/doc/london-borough-council/havering,London Borough of Havering,27/05/2016,-2750.19,MAY16L422,Priory Supporting Care Ltd_a,"Children, Adults & Housing",Adult Services,Adult Community Team,Physical Support,RESIDENTIAL PLACEMENTS - PRIVATE CONTRACTORS PAYMENT
http://opendatacommunities.org/doc/london-borough-council/havering,London Borough of Havering,27/05/2016,677.16,MAY16L423,Priory Supporting Care Ltd_a,"Children, Adults & Housing",Adult Services,Adult Community Team,Physical Support,RESIDENTIAL CARE INCOME
http://opendatacommunities.org/doc/london-borough-council/havering,London Borough of Havering,27/05/2016,2181.84,MAY16L424,Priory Supporting Care Ltd_a,"Children, Adults & Housing",Adult Services,Adult Community Team,Physical Support,RESIDENTIAL PLACEMENTS - PRIVATE CONTRACTORS PAYMENT
http://opendatacommunities.org/doc/london-borough-council/havering,London Borough of Havering,27/05/2016,1886.04,MAY16L425,Priory Supporting Care Ltd_a,"Children, Adults & Housing",Adult Services,Adult Community Team,Physical Support,RESIDENTIAL PLACEMENTS - PRIVATE CONTRACTORS PAYMENT
http://opendatacommunities.org/doc/london-borough-council/havering,London Borough of Havering,27/05/2016,2181.84,MAY16L426,Priory Supporting Care Ltd_a,"Children, Adults & Housing",Adult Services,Adult Community Team,Physical Support,RESIDENTIAL PLACEMENTS - PRIVATE CONTRACTORS PAYMENT
http://opendatacommunities.org/doc/london-borough-council/havering,London Borough of Havering,27/05/2016,2181.84,MAY16L427,Priory Supporting Care Ltd_a,"Children, Adults & Housing",Adult Services,Adult Community Team,Support with Memory & Cognition,RESIDENTIAL PLACEMENTS - PRIVATE CONTRACTORS PAYMENT
http://opendatacommunities.org/doc/london-borough-council/havering,London Borough of Havering,27/05/2016,-1176.20,MAY16L428,Priory Supporting Care Ltd_a,"Children, Adults & Housing",Adult Services,Adult Community Team,Physical Support,RESIDENTIAL CARE INCOME
http://opendatacommunities.org/doc/london-borough-council/havering,London Borough of Havering,27/05/2016,1886.04,MAY16L429,Priory Supporting Care Ltd_a,"Children, Adults & Housing",Adult Services,Adult Community Team,Physical Support,RESIDENTIAL PLACEMENTS - PRIVATE CONTRACTORS PAYMENT
http://opendatacommunities.org/doc/london-borough-council/havering,London Borough of Havering,27/05/2016,-527.20,MAY16L430,Priory Supporting Care Ltd_a,"Children, Adults & Housing",Adult Services,Adult Community Team,Physical Support,RESIDENTIAL CARE INCOME
http://opendatacommunities.org/doc/london-borough-council/havering,London Borough of Havering,27/05/2016,2181.84,MAY16L431,Priory Supporting Care Ltd_a,"Children, Adults & Housing",Adult Services,Adult Community Team,Physical Support,RESIDENTIAL PLACEMENTS - PRIVATE CONTRACTORS PAYMENT
http://opendatacommunities.org/doc/london-borough-council/havering,London Borough of Havering,27/05/2016,-739.60,MAY16L432,Priory Supporting Care Ltd_a,"Children, Adults & Housing",Adult Services,Adult Community Team,Physical Support,NURSING CARE INCOME
http://opendatacommunities.org/doc/london-borough-council/havering,London Borough of Havering,27/05/2016,2074.64,MAY16L433,Priory Supporting Care Ltd_a,"Children, Adults & Housing",Adult Services,Adult Community Team,Physical Support,NURSING HOMES - PRIVATE CONTRACTORS PAYMENT
http://opendatacommunities.org/doc/london-borough-council/havering,London Borough of Havering,27/05/2016,-519.20,MAY16L434,Priory Supporting Care Ltd_a,"Children, Adults & Housing",Adult Services,Adult Community Team,Physical Support,RESIDENTIAL CARE INCOME
http://opendatacommunities.org/doc/london-borough-council/havering,London Borough of Havering,27/05/2016,1886.04,MAY16L435,Priory Supporting Care Ltd_a,"Children, Adults & Housing",Adult Services,Adult Community Team,Physical Support,RESIDENTIAL PLACEMENTS - PRIVATE CONTRACTORS PAYMENT
http://opendatacommunities.org/doc/london-borough-council/havering,London Borough of Havering,27/05/2016,-502.40,MAY16L436,Priory Supporting Care Ltd_a,"Children, Adults & Housing",Adult Services,Adult Community Team,Support with Memory & Cognition,RESIDENTIAL CARE INCOME
http://opendatacommunities.org/doc/london-borough-council/havering,London Borough of Havering,27/05/2016,2181.84,MAY16L437,Priory Supporting Care Ltd_a,"Children, Adults & Housing",Adult Services,Adult Community Team,Support with Memory & Cognition,RESIDENTIAL PLACEMENTS - PRIVATE CONTRACTORS PAYMENT
http://opendatacommunities.org/doc/london-borough-council/havering,London Borough of Havering,27/05/2016,-511.20,MAY16L438,Priory Supporting Care Ltd_a,"Children, Adults & Housing",Adult Services,Adult Community Team,Physical Support,RESIDENTIAL CARE INCOME
http://opendatacommunities.org/doc/london-borough-council/havering,London Borough of Havering,27/05/2016,1886.04,MAY16L439,Priory Supporting Care Ltd_a,"Children, Adults & Housing",Adult Services,Adult Community Team,Physical Support,RESIDENTIAL PLACEMENTS - PRIVATE CONTRACTORS PAYMENT
http://opendatacommunities.org/doc/london-borough-council/havering,London Borough of Havering,03/05/2016,2181.84,MAY16L440,Priory Supporting Care Ltd_a,"Children, Adults & Housing",Adult Services,Adult Community Team,Physical Support,RESIDENTIAL PLACEMENTS - PRIVATE CONTRACTORS PAYMENT
http://opendatacommunities.org/doc/london-borough-council/havering,London Borough of Havering,03/05/2016,1886.04,MAY16L441,Priory Supporting Care Ltd_a,"Children, Adults & Housing",Adult Services,Adult Community Team,Physical Support,RESIDENTIAL PLACEMENTS - PRIVATE CONTRACTORS PAYMENT
http://opendatacommunities.org/doc/london-borough-council/havering,London Borough of Havering,03/05/2016,2181.84,MAY16L442,Priory Supporting Care Ltd_a,"Children, Adults & Housing",Adult Services,Adult Community Team,Physical Support,RESIDENTIAL PLACEMENTS - PRIVATE CONTRACTORS PAYMENT
http://opendatacommunities.org/doc/london-borough-council/havering,London Borough of Havering,03/05/2016,2181.84,MAY16L443,Priory Supporting Care Ltd_a,"Children, Adults & Housing",Adult Services,Adult Community Team,Support with Memory & Cognition,RESIDENTIAL PLACEMENTS - PRIVATE CONTRACTORS PAYMENT
http://opendatacommunities.org/doc/london-borough-council/havering,London Borough of Havering,03/05/2016,2181.84,MAY16L444,Priory Supporting Care Ltd_a,"Children, Adults & Housing",Adult Services,Adult Community Team,Physical Support,RESIDENTIAL PLACEMENTS - PRIVATE CONTRACTORS PAYMENT
http://opendatacommunities.org/doc/london-borough-council/havering,London Borough of Havering,03/05/2016,-1176.20,MAY16L445,Priory Supporting Care Ltd_a,"Children, Adults & Housing",Adult Services,Adult Community Team,Physical Support,RESIDENTIAL CARE INCOME
http://opendatacommunities.org/doc/london-borough-council/havering,London Borough of Havering,03/05/2016,1886.04,MAY16L446,Priory Supporting Care Ltd_a,"Children, Adults & Housing",Adult Services,Adult Community Team,Physical Support,RESIDENTIAL PLACEMENTS - PRIVATE CONTRACTORS PAYMENT
http://opendatacommunities.org/doc/london-borough-council/havering,London Borough of Havering,03/05/2016,-524.76,MAY16L447,Priory Supporting Care Ltd_a,"Children, Adults & Housing",Adult Services,Adult Community Team,Physical Support,RESIDENTIAL CARE INCOME
http://opendatacommunities.org/doc/london-borough-council/havering,London Borough of Havering,03/05/2016,2181.84,MAY16L448,Priory Supporting Care Ltd_a,"Children, Adults & Housing",Adult Services,Adult Community Team,Physical Support,RESIDENTIAL PLACEMENTS - PRIVATE CONTRACTORS PAYMENT
http://opendatacommunities.org/doc/london-borough-council/havering,London Borough of Havering,03/05/2016,-527.20,MAY16L449,Priory Supporting Care Ltd_a,"Children, Adults & Housing",Adult Services,Adult Community Team,Physical Support,RESIDENTIAL CARE INCOME
http://opendatacommunities.org/doc/london-borough-council/havering,London Borough of Havering,03/05/2016,2181.84,MAY16L450,Priory Supporting Care Ltd_a,"Children, Adults & Housing",Adult Services,Adult Community Team,Physical Support,RESIDENTIAL PLACEMENTS - PRIVATE CONTRACTORS PAYMENT
http://opendatacommunities.org/doc/london-borough-council/havering,London Borough of Havering,03/05/2016,-519.20,MAY16L451,Priory Supporting Care Ltd_a,"Children, Adults & Housing",Adult Services,Adult Community Team,Physical Support,RESIDENTIAL CARE INCOME
http://opendatacommunities.org/doc/london-borough-council/havering,London Borough of Havering,03/05/2016,1886.04,MAY16L452,Priory Supporting Care Ltd_a,"Children, Adults & Housing",Adult Services,Adult Community Team,Physical Support,RESIDENTIAL PLACEMENTS - PRIVATE CONTRACTORS PAYMENT
http://opendatacommunities.org/doc/london-borough-council/havering,London Borough of Havering,03/05/2016,-502.40,MAY16L453,Priory Supporting Care Ltd_a,"Children, Adults & Housing",Adult Services,Adult Community Team,Support with Memory & Cognition,RESIDENTIAL CARE INCOME
http://opendatacommunities.org/doc/london-borough-council/havering,London Borough of Havering,03/05/2016,2181.84,MAY16L454,Priory Supporting Care Ltd_a,"Children, Adults & Housing",Adult Services,Adult Community Team,Support with Memory & Cognition,RESIDENTIAL PLACEMENTS - PRIVATE CONTRACTORS PAYMENT
http://opendatacommunities.org/doc/london-borough-council/havering,London Borough of Havering,03/05/2016,-511.20,MAY16L455,Priory Supporting Care Ltd_a,"Children, Adults & Housing",Adult Services,Adult Community Team,Physical Support,RESIDENTIAL CARE INCOME
http://opendatacommunities.org/doc/london-borough-council/havering,London Borough of Havering,03/05/2016,1886.04,MAY16L456,Priory Supporting Care Ltd_a,"Children, Adults & Housing",Adult Services,Adult Community Team,Physical Support,RESIDENTIAL PLACEMENTS - PRIVATE CONTRACTORS PAYMENT
http://opendatacommunities.org/doc/london-borough-council/havering,London Borough of Havering,03/05/2016,-483.64,MAY16L458,Ash Grove Residential Care Home_a,"Children, Adults & Housing",Adult Services,Adult Community Team,Physical Support,RESIDENTIAL PLACEMENTS - PRIVATE CONTRACTORS PAYMENT
http://opendatacommunities.org/doc/london-borough-council/havering,London Borough of Havering,03/05/2016,-779.23,MAY16L459,Ash Grove Residential Care Home_a,"Children, Adults & Housing",Adult Services,Adult Community Team,Physical Support,RESIDENTIAL PLACEMENTS - PRIVATE CONTRACTORS PAYMENT
http://opendatacommunities.org/doc/london-borough-council/havering,London Borough of Havering,03/05/2016,-779.23,MAY16L460,Ash Grove Residential Care Home_a,"Children, Adults & Housing",Adult Services,Adult Community Team,Physical Support,RESIDENTIAL PLACEMENTS - PRIVATE CONTRACTORS PAYMENT
http://opendatacommunities.org/doc/london-borough-council/havering,London Borough of Havering,03/05/2016,2181.84,MAY16L461,Ash Grove Residential Care Home_a,"Children, Adults & Housing",Adult Services,Adult Community Team,Physical Support,RESIDENTIAL PLACEMENTS - PRIVATE CONTRACTORS PAYMENT
http://opendatacommunities.org/doc/london-borough-council/havering,London Borough of Havering,03/05/2016,-505.20,MAY16L462,Ash Grove Residential Care Home_a,"Children, Adults & Housing",Adult Services,Adult Community Team,Physical Support,RESIDENTIAL CARE INCOME
http://opendatacommunities.org/doc/london-borough-council/havering,London Borough of Havering,03/05/2016,2181.84,MAY16L463,Ash Grove Residential Care Home_a,"Children, Adults & Housing",Adult Services,Adult Community Team,Physical Support,RESIDENTIAL PLACEMENTS - PRIVATE CONTRACTORS PAYMENT
http://opendatacommunities.org/doc/london-borough-council/havering,London Borough of Havering,03/05/2016,-523.40,MAY16L464,Ash Grove Residential Care Home_a,"Children, Adults & Housing",Adult Services,Adult Community Team,Physical Support,RESIDENTIAL CARE INCOME
http://opendatacommunities.org/doc/london-borough-council/havering,London Borough of Havering,03/05/2016,2181.84,MAY16L465,Ash Grove Residential Care Home_a,"Children, Adults & Housing",Adult Services,Adult Community Team,Physical Support,RESIDENTIAL PLACEMENTS - PRIVATE CONTRACTORS PAYMENT
http://opendatacommunities.org/doc/london-borough-council/havering,London Borough of Havering,27/05/2016,1090.88,MAY16L466,Ash Grove Residential Care Home_a,"Children, Adults & Housing",Adult Services,Adult Community Team,Physical Support,RESPITE CARE - PRIVATE CONTRACTORS PAYMENT
http://opendatacommunities.org/doc/london-borough-council/havering,London Borough of Havering,03/05/2016,711.04,MAY16L467,Ash Grove Residential Care Home_a,"Children, Adults & Housing",Adult Services,Adult Community Team,Physical Support,RESIDENTIAL CARE INCOME
http://opendatacommunities.org/doc/london-borough-council/havering,London Borough of Havering,03/05/2016,1069.46,MAY16L468,Ash Grove Residential Care Home_a,"Children, Adults & Housing",Adult Services,Adult Community Team,Physical Support,RESPITE CARE - PRIVATE CONTRACTORS PAYMENT
http://opendatacommunities.org/doc/london-borough-council/havering,London Borough of Havering,03/05/2016,-1402.61,MAY16L469,Ash Grove Residential Care Home_a,"Children, Adults & Housing",Adult Services,Adult Community Team,Physical Support,RESIDENTIAL PLACEMENTS - PRIVATE CONTRACTORS PAYMENT
http://opendatacommunities.org/doc/london-borough-council/havering,London Borough of Havering,03/05/2016,592.02,MAY16L470,Ash Grove Residential Care Home_a,"Children, Adults & Housing",Adult Services,Adult Community Team,Physical Support,RESIDENTIAL CARE INCOME
http://opendatacommunities.org/doc/london-borough-council/havering,London Borough of Havering,03/05/2016,-1324.69,MAY16L471,Ash Grove Residential Care Home_a,"Children, Adults & Housing",Adult Services,Adult Community Team,Physical Support,RESIDENTIAL PLACEMENTS - PRIVATE CONTRACTORS PAYMENT
http://opendatacommunities.org/doc/london-borough-council/havering,London Borough of Havering,27/05/2016,-1168.84,MAY16L472,Ash Grove Residential Care Home_a,"Children, Adults & Housing",Adult Services,Adult Community Team,Support with Memory & Cognition,RESIDENTIAL PLACEMENTS - PRIVATE CONTRACTORS PAYMENT
http://opendatacommunities.org/doc/london-borough-council/havering,London Borough of Havering,27/05/2016,-1168.84,MAY16L473,Ash Grove Residential Care Home_a,"Children, Adults & Housing",Adult Services,Adult Community Team,Physical Support,RESIDENTIAL PLACEMENTS - PRIVATE CONTRACTORS PAYMENT
http://opendatacommunities.org/doc/london-borough-council/havering,London Borough of Havering,03/05/2016,611.12,MAY16L474,Ash Grove Residential Care Home_a,"Children, Adults & Housing",Adult Services,Adult Community Team,Physical Support,RESPITE CARE - PRIVATE CONTRACTORS PAYMENT
http://opendatacommunities.org/doc/london-borough-council/havering,London Borough of Havering,03/05/2016,3514.14,MAY16L475,Ash Grove Residential Care Home_a,"Children, Adults & Housing",Adult Services,Adult Community Team,Physical Support,RESIDENTIAL PLACEMENTS - PRIVATE CONTRACTORS PAYMENT
http://opendatacommunities.org/doc/london-borough-council/havering,London Borough of Havering,27/05/2016,-606.23,MAY16L476,Ash Grove Residential Care Home_a,"Children, Adults & Housing",Adult Services,Adult Community Team,Support for Social Isolation - Other,RESIDENTIAL PLACEMENTS - PRIVATE CONTRACTORS PAYMENT
http://opendatacommunities.org/doc/london-borough-council/havering,London Borough of Havering,27/05/2016,2883.15,MAY16L477,Ash Grove Residential Care Home_a,"Children, Adults & Housing",Adult Services,Adult Community Team,Physical Support,RESIDENTIAL PLACEMENTS - PRIVATE CONTRACTORS PAYMENT
http://opendatacommunities.org/doc/london-borough-council/havering,London Borough of Havering,03/05/2016,-2466.00,MAY16L478,Ash Grove Residential Care Home_a,"Children, Adults & Housing",Adult Services,Adult Community Team,Physical Support,RESIDENTIAL CARE INCOME
http://opendatacommunities.org/doc/london-borough-council/havering,London Borough of Havering,03/05/2016,5347.60,MAY16L479,Ash Grove Residential Care Home_a,"Children, Adults & Housing",Adult Services,Adult Community Team,Physical Support,RESIDENTIAL PLACEMENTS - PRIVATE CONTRACTORS PAYMENT
http://opendatacommunities.org/doc/london-borough-council/havering,London Borough of Havering,03/05/2016,-5271.21,MAY16L480,Ash Grove Residential Care Home_a,"Children, Adults & Housing",Adult Services,Adult Community Team,Physical Support,RESIDENTIAL PLACEMENTS - PRIVATE CONTRACTORS PAYMENT
http://opendatacommunities.org/doc/london-borough-council/havering,London Borough of Havering,03/05/2016,1281.03,MAY16L481,Ash Grove Residential Care Home_a,"Children, Adults & Housing",Adult Services,Adult Community Team,Physical Support,RESIDENTIAL CARE INCOME
http://opendatacommunities.org/doc/london-borough-council/havering,London Borough of Havering,03/05/2016,-1172.79,MAY16L482,Ash Grove Residential Care Home_a,"Children, Adults & Housing",Adult Services,Adult Community Team,Physical Support,RESIDENTIAL CARE INCOME
http://opendatacommunities.org/doc/london-borough-council/havering,London Borough of Havering,03/05/2016,4965.63,MAY16L483,Ash Grove Residential Care Home_a,"Children, Adults & Housing",Adult Services,Adult Community Team,Physical Support,RESIDENTIAL PLACEMENTS - PRIVATE CONTRACTORS PAYMENT
http://opendatacommunities.org/doc/london-borough-council/havering,London Borough of Havering,27/05/2016,-1422.51,MAY16L484,Ash Grove Residential Care Home_a,"Children, Adults & Housing",Adult Services,Adult Community Team,Physical Support,RESIDENTIAL CARE INCOME
http://opendatacommunities.org/doc/london-borough-council/havering,London Borough of Havering,27/05/2016,2337.69,MAY16L485,Ash Grove Residential Care Home_a,"Children, Adults & Housing",Adult Services,Adult Community Team,Physical Support,RESIDENTIAL PLACEMENTS - PRIVATE CONTRACTORS PAYMENT
http://opendatacommunities.org/doc/london-borough-council/havering,London Borough of Havering,27/05/2016,2181.84,MAY16L486,Ash Grove Residential Care Home_a,"Children, Adults & Housing",Adult Services,Adult Community Team,Physical Support,RESIDENTIAL PLACEMENTS - PRIVATE CONTRACTORS PAYMENT
http://opendatacommunities.org/doc/london-borough-council/havering,London Borough of Havering,27/05/2016,2181.84,MAY16L487,Ash Grove Residential Care Home_a,"Children, Adults & Housing",Adult Services,Adult Community Team,Physical Support,RESIDENTIAL PLACEMENTS - PRIVATE CONTRACTORS PAYMENT
http://opendatacommunities.org/doc/london-borough-council/havering,London Borough of Havering,27/05/2016,1886.04,MAY16L488,Ash Grove Residential Care Home_a,"Children, Adults & Housing",Adult Services,Adult Community Team,Physical Support,RESIDENTIAL PLACEMENTS - PRIVATE CONTRACTORS PAYMENT
http://opendatacommunities.org/doc/london-borough-council/havering,London Borough of Havering,27/05/2016,2181.84,MAY16L489,Ash Grove Residential Care Home_a,"Children, Adults & Housing",Adult Services,Adult Community Team,Physical Support,RESIDENTIAL PLACEMENTS - PRIVATE CONTRACTORS PAYMENT
http://opendatacommunities.org/doc/london-borough-council/havering,London Borough of Havering,27/05/2016,-641.84,MAY16L490,Ash Grove Residential Care Home_a,"Children, Adults & Housing",Adult Services,Adult Community Team,Physical Support,RESIDENTIAL CARE INCOME
http://opendatacommunities.org/doc/london-borough-council/havering,London Borough of Havering,27/05/2016,2181.84,MAY16L491,Ash Grove Residential Care Home_a,"Children, Adults & Housing",Adult Services,Adult Community Team,Physical Support,RESIDENTIAL PLACEMENTS - PRIVATE CONTRACTORS PAYMENT
http://opendatacommunities.org/doc/london-borough-council/havering,London Borough of Havering,27/05/2016,-519.20,MAY16L492,Ash Grove Residential Care Home_a,"Children, Adults & Housing",Adult Services,Adult Community Team,Physical Support,RESIDENTIAL CARE INCOME
http://opendatacommunities.org/doc/london-borough-council/havering,London Borough of Havering,27/05/2016,2181.84,MAY16L493,Ash Grove Residential Care Home_a,"Children, Adults & Housing",Adult Services,Adult Community Team,Physical Support,RESIDENTIAL PLACEMENTS - PRIVATE CONTRACTORS PAYMENT
http://opendatacommunities.org/doc/london-borough-council/havering,London Borough of Havering,27/05/2016,-527.88,MAY16L494,Ash Grove Residential Care Home_a,"Children, Adults & Housing",Adult Services,Adult Community Team,Physical Support,RESIDENTIAL CARE INCOME
http://opendatacommunities.org/doc/london-borough-council/havering,London Borough of Havering,27/05/2016,2181.84,MAY16L495,Ash Grove Residential Care Home_a,"Children, Adults & Housing",Adult Services,Adult Community Team,Physical Support,RESIDENTIAL PLACEMENTS - PRIVATE CONTRACTORS PAYMENT
http://opendatacommunities.org/doc/london-borough-council/havering,London Borough of Havering,27/05/2016,-519.20,MAY16L496,Ash Grove Residential Care Home_a,"Children, Adults & Housing",Adult Services,Adult Community Team,Physical Support,RESIDENTIAL CARE INCOME
http://opendatacommunities.org/doc/london-borough-council/havering,London Borough of Havering,27/05/2016,1886.04,MAY16L497,Ash Grove Residential Care Home_a,"Children, Adults & Housing",Adult Services,Adult Community Team,Physical Support,RESIDENTIAL PLACEMENTS - PRIVATE CONTRACTORS PAYMENT
http://opendatacommunities.org/doc/london-borough-council/havering,London Borough of Havering,27/05/2016,-1327.68,MAY16L498,Ash Grove Residential Care Home_a,"Children, Adults & Housing",Adult Services,Adult Community Team,Physical Support,RESIDENTIAL CARE INCOME
http://opendatacommunities.org/doc/london-borough-council/havering,London Borough of Havering,27/05/2016,2181.84,MAY16L499,Ash Grove Residential Care Home_a,"Children, Adults & Housing",Adult Services,Adult Community Team,Physical Support,RESIDENTIAL PLACEMENTS - PRIVATE CONTRACTORS PAYMENT
http://opendatacommunities.org/doc/london-borough-council/havering,London Borough of Havering,03/05/2016,2181.84,MAY16L500,Ash Grove Residential Care Home_a,"Children, Adults & Housing",Adult Services,Adult Community Team,Physical Support,RESIDENTIAL PLACEMENTS - PRIVATE CONTRACTORS PAYMENT
http://opendatacommunities.org/doc/london-borough-council/havering,London Borough of Havering,03/05/2016,2181.84,MAY16L501,Ash Grove Residential Care Home_a,"Children, Adults & Housing",Adult Services,Adult Community Team,Physical Support,RESIDENTIAL PLACEMENTS - PRIVATE CONTRACTORS PAYMENT
http://opendatacommunities.org/doc/london-borough-council/havering,London Borough of Havering,03/05/2016,1886.04,MAY16L502,Ash Grove Residential Care Home_a,"Children, Adults & Housing",Adult Services,Adult Community Team,Physical Support,RESIDENTIAL PLACEMENTS - PRIVATE CONTRACTORS PAYMENT
http://opendatacommunities.org/doc/london-borough-council/havering,London Borough of Havering,03/05/2016,2181.84,MAY16L503,Ash Grove Residential Care Home_a,"Children, Adults & Housing",Adult Services,Adult Community Team,Physical Support,RESIDENTIAL PLACEMENTS - PRIVATE CONTRACTORS PAYMENT
http://opendatacommunities.org/doc/london-borough-council/havering,London Borough of Havering,03/05/2016,-641.84,MAY16L504,Ash Grove Residential Care Home_a,"Children, Adults & Housing",Adult Services,Adult Community Team,Physical Support,RESIDENTIAL CARE INCOME
http://opendatacommunities.org/doc/london-borough-council/havering,London Borough of Havering,03/05/2016,2181.84,MAY16L505,Ash Grove Residential Care Home_a,"Children, Adults & Housing",Adult Services,Adult Community Team,Physical Support,RESIDENTIAL PLACEMENTS - PRIVATE CONTRACTORS PAYMENT
http://opendatacommunities.org/doc/london-borough-council/havering,London Borough of Havering,03/05/2016,-707.16,MAY16L506,Ash Grove Residential Care Home_a,"Children, Adults & Housing",Adult Services,Adult Community Team,Support with Memory & Cognition,RESIDENTIAL CARE INCOME
http://opendatacommunities.org/doc/london-borough-council/havering,London Borough of Havering,03/05/2016,2181.84,MAY16L507,Ash Grove Residential Care Home_a,"Children, Adults & Housing",Adult Services,Adult Community Team,Support with Memory & Cognition,RESIDENTIAL PLACEMENTS - PRIVATE CONTRACTORS PAYMENT
http://opendatacommunities.org/doc/london-borough-council/havering,London Borough of Havering,03/05/2016,-519.20,MAY16L508,Ash Grove Residential Care Home_a,"Children, Adults & Housing",Adult Services,Adult Community Team,Physical Support,RESIDENTIAL CARE INCOME
http://opendatacommunities.org/doc/london-borough-council/havering,London Borough of Havering,03/05/2016,2181.84,MAY16L509,Ash Grove Residential Care Home_a,"Children, Adults & Housing",Adult Services,Adult Community Team,Physical Support,RESIDENTIAL PLACEMENTS - PRIVATE CONTRACTORS PAYMENT
http://opendatacommunities.org/doc/london-borough-council/havering,London Borough of Havering,03/05/2016,-527.88,MAY16L510,Ash Grove Residential Care Home_a,"Children, Adults & Housing",Adult Services,Adult Community Team,Physical Support,RESIDENTIAL CARE INCOME
http://opendatacommunities.org/doc/london-borough-council/havering,London Borough of Havering,03/05/2016,2181.84,MAY16L511,Ash Grove Residential Care Home_a,"Children, Adults & Housing",Adult Services,Adult Community Team,Physical Support,RESIDENTIAL PLACEMENTS - PRIVATE CONTRACTORS PAYMENT
http://opendatacommunities.org/doc/london-borough-council/havering,London Borough of Havering,03/05/2016,-519.20,MAY16L512,Ash Grove Residential Care Home_a,"Children, Adults & Housing",Adult Services,Adult Community Team,Support for Social Isolation - Other,RESIDENTIAL CARE INCOME
http://opendatacommunities.org/doc/london-borough-council/havering,London Borough of Havering,03/05/2016,1886.04,MAY16L513,Ash Grove Residential Care Home_a,"Children, Adults & Housing",Adult Services,Adult Community Team,Support for Social Isolation - Other,RESIDENTIAL PLACEMENTS - PRIVATE CONTRACTORS PAYMENT
http://opendatacommunities.org/doc/london-borough-council/havering,London Borough of Havering,03/05/2016,-519.20,MAY16L514,Ash Grove Residential Care Home_a,"Children, Adults & Housing",Adult Services,Adult Community Team,Physical Support,RESIDENTIAL CARE INCOME
http://opendatacommunities.org/doc/london-borough-council/havering,London Borough of Havering,03/05/2016,1886.04,MAY16L515,Ash Grove Residential Care Home_a,"Children, Adults & Housing",Adult Services,Adult Community Team,Physical Support,RESIDENTIAL PLACEMENTS - PRIVATE CONTRACTORS PAYMENT
http://opendatacommunities.org/doc/london-borough-council/havering,London Borough of Havering,27/05/2016,2074.64,MAY16L516,Bupa Care Homes - Ghyll Grove_a,"Children, Adults & Housing",Adult Services,Adult Community Team,Physical Support,NURSING HOMES - PRIVATE CONTRACTORS PAYMENT
http://opendatacommunities.org/doc/london-borough-council/havering,London Borough of Havering,27/05/2016,2181.84,MAY16L517,Bupa Care Homes - Ghyll Grove_a,"Children, Adults & Housing",Adult Services,Adult Community Team,Support with Memory & Cognition,RESIDENTIAL PLACEMENTS - PRIVATE CONTRACTORS PAYMENT
http://opendatacommunities.org/doc/london-borough-council/havering,London Borough of Havering,03/05/2016,2074.64,MAY16L518,Bupa Care Homes - Ghyll Grove_a,"Children, Adults & Housing",Adult Services,Adult Community Team,Physical Support,NURSING HOMES - PRIVATE CONTRACTORS PAYMENT
http://opendatacommunities.org/doc/london-borough-council/havering,London Borough of Havering,03/05/2016,2181.84,MAY16L519,Bupa Care Homes - Ghyll Grove_a,"Children, Adults & Housing",Adult Services,Adult Community Team,Support with Memory & Cognition,RESIDENTIAL PLACEMENTS - PRIVATE CONTRACTORS PAYMENT
http://opendatacommunities.org/doc/london-borough-council/havering,London Borough of Havering,27/05/2016,-566.36,MAY16L520,Squirrels Nursing & Residential Home_a,"Children, Adults & Housing",Adult Services,Adult Community Team,Physical Support,RESIDENTIAL CARE INCOME
http://opendatacommunities.org/doc/london-borough-council/havering,London Borough of Havering,27/05/2016,2181.84,MAY16L521,Squirrels Nursing & Residential Home_a,"Children, Adults & Housing",Adult Services,Adult Community Team,Physical Support,RESIDENTIAL PLACEMENTS - PRIVATE CONTRACTORS PAYMENT
http://opendatacommunities.org/doc/london-borough-council/havering,London Borough of Havering,03/05/2016,-566.36,MAY16L522,Squirrels Nursing & Residential Home_a,"Children, Adults & Housing",Adult Services,Adult Community Team,Physical Support,RESIDENTIAL CARE INCOME
http://opendatacommunities.org/doc/london-borough-council/havering,London Borough of Havering,03/05/2016,2181.84,MAY16L523,Squirrels Nursing & Residential Home_a,"Children, Adults & Housing",Adult Services,Adult Community Team,Physical Support,RESIDENTIAL PLACEMENTS - PRIVATE CONTRACTORS PAYMENT
http://opendatacommunities.org/doc/london-borough-council/havering,London Borough of Havering,27/05/2016,4804.68,MAY16L524,Clacton Family Trust_a,"Children, Adults & Housing",Adult Services,Learning Disabilities,Learning Disability Support,RESIDENTIAL PLACEMENTS - PRIVATE CONTRACTORS PAYMENT
http://opendatacommunities.org/doc/london-borough-council/havering,London Borough of Havering,27/05/2016,4853.12,MAY16L525,Clacton Family Trust_a,"Children, Adults & Housing",Adult Services,Learning Disabilities,Learning Disability Support,RESIDENTIAL PLACEMENTS - PRIVATE CONTRACTORS PAYMENT
http://opendatacommunities.org/doc/london-borough-council/havering,London Borough of Havering,27/05/2016,4248.76,MAY16L526,Clacton Family Trust_a,"Children, Adults & Housing",Adult Services,Learning Disabilities,Learning Disability Support,RESIDENTIAL PLACEMENTS - PRIVATE CONTRACTORS PAYMENT
http://opendatacommunities.org/doc/london-borough-council/havering,London Borough of Havering,03/05/2016,4804.68,MAY16L527,Clacton Family Trust_a,"Children, Adults & Housing",Adult Services,Learning Disabilities,Learning Disability Support,RESIDENTIAL PLACEMENTS - PRIVATE CONTRACTORS PAYMENT
http://opendatacommunities.org/doc/london-borough-council/havering,London Borough of Havering,03/05/2016,4853.12,MAY16L528,Clacton Family Trust_a,"Children, Adults & Housing",Adult Services,Learning Disabilities,Learning Disability Support,RESIDENTIAL PLACEMENTS - PRIVATE CONTRACTORS PAYMENT
http://opendatacommunities.org/doc/london-borough-council/havering,London Borough of Havering,03/05/2016,4248.76,MAY16L529,Clacton Family Trust_a,"Children, Adults & Housing",Adult Services,Learning Disabilities,Learning Disability Support,RESIDENTIAL PLACEMENTS - PRIVATE CONTRACTORS PAYMENT
http://opendatacommunities.org/doc/london-borough-council/havering,London Borough of Havering,03/05/2016,-559.46,MAY16L530,Langley House_a,"Children, Adults & Housing",Adult Services,Adult Community Team,Physical Support,RESIDENTIAL PLACEMENTS - PRIVATE CONTRACTORS PAYMENT
http://opendatacommunities.org/doc/london-borough-council/havering,London Borough of Havering,03/05/2016,-483.64,MAY16L531,Langley House_a,"Children, Adults & Housing",Adult Services,Adult Community Team,Physical Support,RESIDENTIAL PLACEMENTS - PRIVATE CONTRACTORS PAYMENT
http://opendatacommunities.org/doc/london-borough-council/havering,London Borough of Havering,03/05/2016,-470.05,MAY16L532,Langley House_a,"Children, Adults & Housing",Adult Services,Adult Community Team,Support with Memory & Cognition,RESIDENTIAL PLACEMENTS - PRIVATE CONTRACTORS PAYMENT
http://opendatacommunities.org/doc/london-borough-council/havering,London Borough of Havering,03/05/2016,-483.64,MAY16L533,Langley House_a,"Children, Adults & Housing",Adult Services,Adult Community Team,Physical Support,RESIDENTIAL PLACEMENTS - PRIVATE CONTRACTORS PAYMENT
http://opendatacommunities.org/doc/london-borough-council/havering,London Borough of Havering,03/05/2016,-483.64,MAY16L534,Langley House_a,"Children, Adults & Housing",Adult Services,Adult Community Team,Physical Support,RESIDENTIAL PLACEMENTS - PRIVATE CONTRACTORS PAYMENT
http://opendatacommunities.org/doc/london-borough-council/havering,London Borough of Havering,03/05/2016,-559.46,MAY16L535,Langley House_a,"Children, Adults & Housing",Adult Services,Adult Community Team,Support with Memory & Cognition,RESIDENTIAL PLACEMENTS - PRIVATE CONTRACTORS PAYMENT
http://opendatacommunities.org/doc/london-borough-council/havering,London Borough of Havering,03/05/2016,-483.64,MAY16L536,Langley House_a,"Children, Adults & Housing",Adult Services,Adult Community Team,Physical Support,RESIDENTIAL PLACEMENTS - PRIVATE CONTRACTORS PAYMENT
http://opendatacommunities.org/doc/london-borough-council/havering,London Borough of Havering,03/05/2016,-559.46,MAY16L537,Langley House_a,"Children, Adults & Housing",Adult Services,Adult Community Team,Support with Memory & Cognition,RESIDENTIAL PLACEMENTS - PRIVATE CONTRACTORS PAYMENT
http://opendatacommunities.org/doc/london-borough-council/havering,London Borough of Havering,03/05/2016,-673.59,MAY16L538,Langley House_a,"Children, Adults & Housing",Adult Services,Adult Community Team,Physical Support,RESIDENTIAL PLACEMENTS - PRIVATE CONTRACTORS PAYMENT
http://opendatacommunities.org/doc/london-borough-council/havering,London Borough of Havering,27/05/2016,4363.68,MAY16L539,Langley House_a,"Children, Adults & Housing",Adult Services,Adult Community Team,Physical Support,RESIDENTIAL PLACEMENTS - PRIVATE CONTRACTORS PAYMENT
http://opendatacommunities.org/doc/london-borough-council/havering,London Borough of Havering,03/05/2016,-505.20,MAY16L540,Langley House_a,"Children, Adults & Housing",Adult Services,Adult Community Team,Physical Support,RESIDENTIAL CARE INCOME
http://opendatacommunities.org/doc/london-borough-council/havering,London Borough of Havering,03/05/2016,1886.04,MAY16L541,Langley House_a,"Children, Adults & Housing",Adult Services,Adult Community Team,Physical Support,RESIDENTIAL PLACEMENTS - PRIVATE CONTRACTORS PAYMENT
http://opendatacommunities.org/doc/london-borough-council/havering,London Borough of Havering,27/05/2016,1818.45,MAY16L542,Langley House_a,"Children, Adults & Housing",Adult Services,Adult Community Team,Physical Support,RESPITE CARE - PRIVATE CONTRACTORS PAYMENT
http://opendatacommunities.org/doc/london-borough-council/havering,London Borough of Havering,27/05/2016,1757.07,MAY16L543,Langley House_a,"Children, Adults & Housing",Adult Services,Adult Community Team,Physical Support,RESIDENTIAL PLACEMENTS - PRIVATE CONTRACTORS PAYMENT
http://opendatacommunities.org/doc/london-borough-council/havering,London Borough of Havering,27/05/2016,3098.49,MAY16L544,Langley House_a,"Children, Adults & Housing",Adult Services,Adult Community Team,Physical Support,RESIDENTIAL PLACEMENTS - PRIVATE CONTRACTORS PAYMENT
http://opendatacommunities.org/doc/london-borough-council/havering,London Borough of Havering,03/05/2016,-1145.10,MAY16L545,Langley House_a,"Children, Adults & Housing",Adult Services,Adult Community Team,Physical Support,RESIDENTIAL PLACEMENTS - PRIVATE CONTRACTORS PAYMENT
http://opendatacommunities.org/doc/london-borough-council/havering,London Borough of Havering,03/05/2016,-4536.63,MAY16L546,Langley House_a,"Children, Adults & Housing",Adult Services,Adult Community Team,Physical Support,RESIDENTIAL CARE INCOME
http://opendatacommunities.org/doc/london-borough-council/havering,London Borough of Havering,03/05/2016,7945.01,MAY16L547,Langley House_a,"Children, Adults & Housing",Adult Services,Adult Community Team,Physical Support,RESIDENTIAL PLACEMENTS - PRIVATE CONTRACTORS PAYMENT
http://opendatacommunities.org/doc/london-borough-council/havering,London Borough of Havering,27/05/2016,-779.23,MAY16L548,Langley House_a,"Children, Adults & Housing",Adult Services,Adult Community Team,Physical Support,RESIDENTIAL PLACEMENTS - PRIVATE CONTRACTORS PAYMENT
http://opendatacommunities.org/doc/london-borough-council/havering,London Borough of Havering,03/05/2016,-2205.20,MAY16L549,Langley House_a,"Children, Adults & Housing",Adult Services,Adult Community Team,Physical Support,RESIDENTIAL CARE INCOME
http://opendatacommunities.org/doc/london-borough-council/havering,London Borough of Havering,03/05/2016,4886.75,MAY16L550,Langley House_a,"Children, Adults & Housing",Adult Services,Adult Community Team,Physical Support,RESIDENTIAL PLACEMENTS - PRIVATE CONTRACTORS PAYMENT
http://opendatacommunities.org/doc/london-borough-council/havering,London Borough of Havering,03/05/2016,-4820.71,MAY16L551,Langley House_a,"Children, Adults & Housing",Adult Services,Adult Community Team,Physical Support,RESIDENTIAL PLACEMENTS - PRIVATE CONTRACTORS PAYMENT
http://opendatacommunities.org/doc/london-borough-council/havering,London Borough of Havering,03/05/2016,1317.13,MAY16L552,Langley House_a,"Children, Adults & Housing",Adult Services,Adult Community Team,Physical Support,RESIDENTIAL CARE INCOME
http://opendatacommunities.org/doc/london-borough-council/havering,London Borough of Havering,27/05/2016,-1102.60,MAY16L553,Langley House_a,"Children, Adults & Housing",Adult Services,Adult Community Team,Physical Support,RESIDENTIAL CARE INCOME
http://opendatacommunities.org/doc/london-borough-council/havering,London Borough of Havering,27/05/2016,2492.27,MAY16L554,Langley House_a,"Children, Adults & Housing",Adult Services,Adult Community Team,Physical Support,RESIDENTIAL PLACEMENTS - PRIVATE CONTRACTORS PAYMENT
http://opendatacommunities.org/doc/london-borough-council/havering,London Borough of Havering,27/05/2016,1834.60,MAY16L555,Langley House_a,"Children, Adults & Housing",Adult Services,Adult Community Team,Support with Memory & Cognition,RESIDENTIAL PLACEMENTS - PRIVATE CONTRACTORS PAYMENT
http://opendatacommunities.org/doc/london-borough-council/havering,London Borough of Havering,27/05/2016,1886.04,MAY16L556,Langley House_a,"Children, Adults & Housing",Adult Services,Adult Community Team,Physical Support,RESIDENTIAL PLACEMENTS - PRIVATE CONTRACTORS PAYMENT
http://opendatacommunities.org/doc/london-borough-council/havering,London Borough of Havering,27/05/2016,2181.84,MAY16L557,Langley House_a,"Children, Adults & Housing",Adult Services,Adult Community Team,Support with Memory & Cognition,RESIDENTIAL PLACEMENTS - PRIVATE CONTRACTORS PAYMENT
http://opendatacommunities.org/doc/london-borough-council/havering,London Borough of Havering,27/05/2016,1886.04,MAY16L558,Langley House_a,"Children, Adults & Housing",Adult Services,Adult Community Team,Physical Support,RESIDENTIAL PLACEMENTS - PRIVATE CONTRACTORS PAYMENT
http://opendatacommunities.org/doc/london-borough-council/havering,London Borough of Havering,27/05/2016,2181.84,MAY16L559,Langley House_a,"Children, Adults & Housing",Adult Services,Adult Community Team,Physical Support,RESIDENTIAL PLACEMENTS - PRIVATE CONTRACTORS PAYMENT
http://opendatacommunities.org/doc/london-borough-council/havering,London Borough of Havering,27/05/2016,1886.04,MAY16L560,Langley House_a,"Children, Adults & Housing",Adult Services,Adult Community Team,Physical Support,RESIDENTIAL PLACEMENTS - PRIVATE CONTRACTORS PAYMENT
http://opendatacommunities.org/doc/london-borough-council/havering,London Borough of Havering,27/05/2016,2181.84,MAY16L561,Langley House_a,"Children, Adults & Housing",Adult Services,Adult Community Team,Physical Support,RESIDENTIAL PLACEMENTS - PRIVATE CONTRACTORS PAYMENT
http://opendatacommunities.org/doc/london-borough-council/havering,London Borough of Havering,27/05/2016,1886.04,MAY16L562,Langley House_a,"Children, Adults & Housing",Adult Services,Adult Community Team,Physical Support,RESIDENTIAL PLACEMENTS - PRIVATE CONTRACTORS PAYMENT
http://opendatacommunities.org/doc/london-borough-council/havering,London Borough of Havering,27/05/2016,-516.76,MAY16L563,Langley House_a,"Children, Adults & Housing",Adult Services,Adult Community Team,Physical Support,RESIDENTIAL CARE INCOME
http://opendatacommunities.org/doc/london-borough-council/havering,London Borough of Havering,27/05/2016,2181.84,MAY16L564,Langley House_a,"Children, Adults & Housing",Adult Services,Adult Community Team,Physical Support,RESIDENTIAL PLACEMENTS - PRIVATE CONTRACTORS PAYMENT
http://opendatacommunities.org/doc/london-borough-council/havering,London Borough of Havering,27/05/2016,-598.88,MAY16L565,Langley House_a,"Children, Adults & Housing",Adult Services,Adult Community Team,Physical Support,RESIDENTIAL CARE INCOME
http://opendatacommunities.org/doc/london-borough-council/havering,London Borough of Havering,27/05/2016,1886.04,MAY16L566,Langley House_a,"Children, Adults & Housing",Adult Services,Adult Community Team,Physical Support,RESIDENTIAL PLACEMENTS - PRIVATE CONTRACTORS PAYMENT
http://opendatacommunities.org/doc/london-borough-council/havering,London Borough of Havering,27/05/2016,-1264.16,MAY16L567,Langley House_a,"Children, Adults & Housing",Adult Services,Adult Community Team,Support with Memory & Cognition,RESIDENTIAL CARE INCOME
http://opendatacommunities.org/doc/london-borough-council/havering,London Borough of Havering,27/05/2016,2181.84,MAY16L568,Langley House_a,"Children, Adults & Housing",Adult Services,Adult Community Team,Support with Memory & Cognition,RESIDENTIAL PLACEMENTS - PRIVATE CONTRACTORS PAYMENT
http://opendatacommunities.org/doc/london-borough-council/havering,London Borough of Havering,27/05/2016,-519.20,MAY16L569,Langley House_a,"Children, Adults & Housing",Adult Services,Adult Community Team,Physical Support,RESIDENTIAL CARE INCOME
http://opendatacommunities.org/doc/london-borough-council/havering,London Borough of Havering,27/05/2016,1886.04,MAY16L570,Langley House_a,"Children, Adults & Housing",Adult Services,Adult Community Team,Physical Support,RESIDENTIAL PLACEMENTS - PRIVATE CONTRACTORS PAYMENT
http://opendatacommunities.org/doc/london-borough-council/havering,London Borough of Havering,27/05/2016,-834.40,MAY16L571,Langley House_a,"Children, Adults & Housing",Adult Services,Adult Community Team,Physical Support,RESIDENTIAL CARE INCOME
http://opendatacommunities.org/doc/london-borough-council/havering,London Borough of Havering,27/05/2016,1886.04,MAY16L572,Langley House_a,"Children, Adults & Housing",Adult Services,Adult Community Team,Physical Support,RESIDENTIAL PLACEMENTS - PRIVATE CONTRACTORS PAYMENT
http://opendatacommunities.org/doc/london-borough-council/havering,London Borough of Havering,27/05/2016,-519.20,MAY16L573,Langley House_a,"Children, Adults & Housing",Adult Services,Adult Community Team,Physical Support,RESIDENTIAL CARE INCOME
http://opendatacommunities.org/doc/london-borough-council/havering,London Borough of Havering,27/05/2016,1886.04,MAY16L574,Langley House_a,"Children, Adults & Housing",Adult Services,Adult Community Team,Physical Support,RESIDENTIAL PLACEMENTS - PRIVATE CONTRACTORS PAYMENT
http://opendatacommunities.org/doc/london-borough-council/havering,London Borough of Havering,27/05/2016,-507.20,MAY16L575,Langley House_a,"Children, Adults & Housing",Adult Services,Adult Community Team,Physical Support,RESIDENTIAL CARE INCOME
http://opendatacommunities.org/doc/london-borough-council/havering,London Borough of Havering,27/05/2016,1886.04,MAY16L576,Langley House_a,"Children, Adults & Housing",Adult Services,Adult Community Team,Physical Support,RESIDENTIAL PLACEMENTS - PRIVATE CONTRACTORS PAYMENT
http://opendatacommunities.org/doc/london-borough-council/havering,London Borough of Havering,27/05/2016,924.42,MAY16L577,Langley House_a,"Children, Adults & Housing",Adult Services,Adult Community Team,Physical Support,RESPITE CARE - PRIVATE CONTRACTORS PAYMENT
http://opendatacommunities.org/doc/london-borough-council/havering,London Borough of Havering,27/05/2016,1953.40,MAY16L578,Langley House_a,"Children, Adults & Housing",Adult Services,Adult Community Team,Physical Support,RESIDENTIAL PLACEMENTS - PRIVATE CONTRACTORS PAYMENT
http://opendatacommunities.org/doc/london-borough-council/havering,London Borough of Havering,03/05/2016,1834.60,MAY16L579,Langley House_a,"Children, Adults & Housing",Adult Services,Adult Community Team,Support with Memory & Cognition,RESIDENTIAL PLACEMENTS - PRIVATE CONTRACTORS PAYMENT
http://opendatacommunities.org/doc/london-borough-council/havering,London Borough of Havering,03/05/2016,1886.04,MAY16L580,Langley House_a,"Children, Adults & Housing",Adult Services,Adult Community Team,Physical Support,RESIDENTIAL PLACEMENTS - PRIVATE CONTRACTORS PAYMENT
http://opendatacommunities.org/doc/london-borough-council/havering,London Borough of Havering,03/05/2016,2181.84,MAY16L581,Langley House_a,"Children, Adults & Housing",Adult Services,Adult Community Team,Support with Memory & Cognition,RESIDENTIAL PLACEMENTS - PRIVATE CONTRACTORS PAYMENT
http://opendatacommunities.org/doc/london-borough-council/havering,London Borough of Havering,03/05/2016,1886.04,MAY16L582,Langley House_a,"Children, Adults & Housing",Adult Services,Adult Community Team,Physical Support,RESIDENTIAL PLACEMENTS - PRIVATE CONTRACTORS PAYMENT
http://opendatacommunities.org/doc/london-borough-council/havering,London Borough of Havering,03/05/2016,2181.84,MAY16L583,Langley House_a,"Children, Adults & Housing",Adult Services,Adult Community Team,Physical Support,RESIDENTIAL PLACEMENTS - PRIVATE CONTRACTORS PAYMENT
http://opendatacommunities.org/doc/london-borough-council/havering,London Borough of Havering,03/05/2016,2181.84,MAY16L584,Langley House_a,"Children, Adults & Housing",Adult Services,Adult Community Team,Physical Support,RESIDENTIAL PLACEMENTS - PRIVATE CONTRACTORS PAYMENT
http://opendatacommunities.org/doc/london-borough-council/havering,London Borough of Havering,03/05/2016,-516.76,MAY16L585,Langley House_a,"Children, Adults & Housing",Adult Services,Adult Community Team,Physical Support,RESIDENTIAL CARE INCOME
http://opendatacommunities.org/doc/london-borough-council/havering,London Borough of Havering,03/05/2016,2181.84,MAY16L586,Langley House_a,"Children, Adults & Housing",Adult Services,Adult Community Team,Physical Support,RESIDENTIAL PLACEMENTS - PRIVATE CONTRACTORS PAYMENT
http://opendatacommunities.org/doc/london-borough-council/havering,London Borough of Havering,03/05/2016,-598.88,MAY16L587,Langley House_a,"Children, Adults & Housing",Adult Services,Adult Community Team,Physical Support,RESIDENTIAL CARE INCOME
http://opendatacommunities.org/doc/london-borough-council/havering,London Borough of Havering,03/05/2016,1886.04,MAY16L588,Langley House_a,"Children, Adults & Housing",Adult Services,Adult Community Team,Physical Support,RESIDENTIAL PLACEMENTS - PRIVATE CONTRACTORS PAYMENT
http://opendatacommunities.org/doc/london-borough-council/havering,London Borough of Havering,03/05/2016,-1264.16,MAY16L589,Langley House_a,"Children, Adults & Housing",Adult Services,Adult Community Team,Support with Memory & Cognition,RESIDENTIAL CARE INCOME
http://opendatacommunities.org/doc/london-borough-council/havering,London Borough of Havering,03/05/2016,540.83,MAY16L590,Langley House_a,"Children, Adults & Housing",Adult Services,Adult Community Team,Physical Support,RESIDENTIAL CARE INCOME
http://opendatacommunities.org/doc/london-borough-council/havering,London Borough of Havering,03/05/2016,2181.84,MAY16L591,Langley House_a,"Children, Adults & Housing",Adult Services,Adult Community Team,Support with Memory & Cognition,RESIDENTIAL PLACEMENTS - PRIVATE CONTRACTORS PAYMENT
http://opendatacommunities.org/doc/london-borough-council/havering,London Borough of Havering,03/05/2016,-519.20,MAY16L592,Langley House_a,"Children, Adults & Housing",Adult Services,Adult Community Team,Physical Support,RESIDENTIAL CARE INCOME
http://opendatacommunities.org/doc/london-borough-council/havering,London Borough of Havering,03/05/2016,1886.04,MAY16L593,Langley House_a,"Children, Adults & Housing",Adult Services,Adult Community Team,Physical Support,RESIDENTIAL PLACEMENTS - PRIVATE CONTRACTORS PAYMENT
http://opendatacommunities.org/doc/london-borough-council/havering,London Borough of Havering,03/05/2016,-519.20,MAY16L594,Langley House_a,"Children, Adults & Housing",Adult Services,Adult Community Team,Physical Support,RESIDENTIAL CARE INCOME
http://opendatacommunities.org/doc/london-borough-council/havering,London Borough of Havering,03/05/2016,1886.04,MAY16L595,Langley House_a,"Children, Adults & Housing",Adult Services,Adult Community Team,Physical Support,RESIDENTIAL PLACEMENTS - PRIVATE CONTRACTORS PAYMENT
http://opendatacommunities.org/doc/london-borough-council/havering,London Borough of Havering,03/05/2016,-507.20,MAY16L596,Langley House_a,"Children, Adults & Housing",Adult Services,Adult Community Team,Physical Support,RESIDENTIAL CARE INCOME
http://opendatacommunities.org/doc/london-borough-council/havering,London Borough of Havering,03/05/2016,1886.04,MAY16L597,Langley House_a,"Children, Adults & Housing",Adult Services,Adult Community Team,Physical Support,RESIDENTIAL PLACEMENTS - PRIVATE CONTRACTORS PAYMENT
http://opendatacommunities.org/doc/london-borough-council/havering,London Borough of Havering,27/05/2016,-401.19,MAY16L598,Ebury Court_a,"Children, Adults & Housing",Adult Services,Adult Community Team,Support with Memory & Cognition,RESIDENTIAL CARE INCOME
http://opendatacommunities.org/doc/london-borough-council/havering,London Borough of Havering,27/05/2016,401.19,MAY16L599,Ebury Court_a,"Children, Adults & Housing",Adult Services,Adult Community Team,Physical Support,RESIDENTIAL CARE INCOME
http://opendatacommunities.org/doc/london-borough-council/havering,London Borough of Havering,27/05/2016,947.14,MAY16L600,Ebury Court_a,"Children, Adults & Housing",Adult Services,Adult Community Team,Physical Support,RESIDENTIAL PLACEMENTS - PRIVATE CONTRACTORS PAYMENT
http://opendatacommunities.org/doc/london-borough-council/havering,London Borough of Havering,27/05/2016,-779.23,MAY16L601,Ebury Court_a,"Children, Adults & Housing",Adult Services,Adult Community Team,Physical Support,RESIDENTIAL PLACEMENTS - PRIVATE CONTRACTORS PAYMENT
http://opendatacommunities.org/doc/london-borough-council/havering,London Borough of Havering,27/05/2016,-658.26,MAY16L602,Ebury Court_a,"Children, Adults & Housing",Adult Services,Adult Community Team,Physical Support,RESIDENTIAL CARE INCOME
http://opendatacommunities.org/doc/london-borough-council/havering,London Borough of Havering,27/05/2016,2507.14,MAY16L603,Ebury Court_a,"Children, Adults & Housing",Adult Services,Adult Community Team,Physical Support,RESIDENTIAL PLACEMENTS - PRIVATE CONTRACTORS PAYMENT
http://opendatacommunities.org/doc/london-borough-council/havering,London Borough of Havering,27/05/2016,-2062.65,MAY16L604,Ebury Court_a,"Children, Adults & Housing",Adult Services,Adult Community Team,Physical Support,RESIDENTIAL PLACEMENTS - PRIVATE CONTRACTORS PAYMENT
http://opendatacommunities.org/doc/london-borough-council/havering,London Borough of Havering,27/05/2016,658.26,MAY16L605,Ebury Court_a,"Children, Adults & Housing",Adult Services,Adult Community Team,Physical Support,RESIDENTIAL CARE INCOME
http://opendatacommunities.org/doc/london-borough-council/havering,London Borough of Havering,27/05/2016,-1011.84,MAY16L606,Ebury Court_a,"Children, Adults & Housing",Adult Services,Adult Community Team,Physical Support,RESIDENTIAL CARE INCOME
http://opendatacommunities.org/doc/london-borough-council/havering,London Borough of Havering,27/05/2016,2600.00,MAY16L607,Ebury Court_a,"Children, Adults & Housing",Adult Services,Adult Community Team,Physical Support,RESIDENTIAL PLACEMENTS - PRIVATE CONTRACTORS PAYMENT
http://opendatacommunities.org/doc/london-borough-council/havering,London Borough of Havering,27/05/2016,-2139.04,MAY16L608,Ebury Court_a,"Children, Adults & Housing",Adult Services,Adult Community Team,Physical Support,RESIDENTIAL PLACEMENTS - PRIVATE CONTRACTORS PAYMENT
http://opendatacommunities.org/doc/london-borough-council/havering,London Borough of Havering,27/05/2016,1011.84,MAY16L609,Ebury Court_a,"Children, Adults & Housing",Adult Services,Adult Community Team,Physical Support,RESIDENTIAL CARE INCOME
http://opendatacommunities.org/doc/london-borough-council/havering,London Borough of Havering,27/05/2016,-1137.58,MAY16L610,Ebury Court_a,"Children, Adults & Housing",Adult Services,Adult Community Team,Physical Support,RESIDENTIAL CARE INCOME
http://opendatacommunities.org/doc/london-borough-council/havering,London Borough of Havering,27/05/2016,4356.86,MAY16L611,Ebury Court_a,"Children, Adults & Housing",Adult Services,Adult Community Team,Physical Support,RESIDENTIAL PLACEMENTS - PRIVATE CONTRACTORS PAYMENT
http://opendatacommunities.org/doc/london-borough-council/havering,London Borough of Havering,27/05/2016,-1815.55,MAY16L612,Ebury Court_a,"Children, Adults & Housing",Adult Services,Adult Community Team,Support with Memory & Cognition,RESIDENTIAL CARE INCOME
http://opendatacommunities.org/doc/london-borough-council/havering,London Borough of Havering,27/05/2016,3584.45,MAY16L613,Ebury Court_a,"Children, Adults & Housing",Adult Services,Adult Community Team,Support with Memory & Cognition,RESIDENTIAL PLACEMENTS - PRIVATE CONTRACTORS PAYMENT
http://opendatacommunities.org/doc/london-borough-council/havering,London Borough of Havering,27/05/2016,-3584.45,MAY16L614,Ebury Court_a,"Children, Adults & Housing",Adult Services,Adult Community Team,Physical Support,RESIDENTIAL PLACEMENTS - PRIVATE CONTRACTORS PAYMENT
http://opendatacommunities.org/doc/london-borough-council/havering,London Borough of Havering,27/05/2016,1137.58,MAY16L615,Ebury Court_a,"Children, Adults & Housing",Adult Services,Adult Community Team,Physical Support,RESIDENTIAL CARE INCOME
http://opendatacommunities.org/doc/london-borough-council/havering,London Borough of Havering,27/05/2016,-3506.53,MAY16L616,Ebury Court_a,"Children, Adults & Housing",Adult Services,Adult Community Team,Support with Memory & Cognition,RESIDENTIAL PLACEMENTS - PRIVATE CONTRACTORS PAYMENT
http://opendatacommunities.org/doc/london-borough-council/havering,London Borough of Havering,27/05/2016,1776.09,MAY16L617,Ebury Court_a,"Children, Adults & Housing",Adult Services,Adult Community Team,Physical Support,RESIDENTIAL CARE INCOME
http://opendatacommunities.org/doc/london-borough-council/havering,London Borough of Havering,27/05/2016,2900.00,MAY16L618,Ebury Court_a,"Children, Adults & Housing",Adult Services,Learning Disabilities,Learning Disability Support,RESIDENTIAL PLACEMENTS - PRIVATE CONTRACTORS PAYMENT
http://opendatacommunities.org/doc/london-borough-council/havering,London Borough of Havering,27/05/2016,3060.00,MAY16L619,Ebury Court_a,"Children, Adults & Housing",Adult Services,Adult Community Team,Physical Support,RESIDENTIAL PLACEMENTS - PRIVATE CONTRACTORS PAYMENT
http://opendatacommunities.org/doc/london-borough-council/havering,London Borough of Havering,27/05/2016,2181.84,MAY16L620,Ebury Court_a,"Children, Adults & Housing",Adult Services,Adult Community Team,Physical Support,RESIDENTIAL PLACEMENTS - PRIVATE CONTRACTORS PAYMENT
http://opendatacommunities.org/doc/london-borough-council/havering,London Borough of Havering,27/05/2016,-692.44,MAY16L621,Ebury Court_a,"Children, Adults & Housing",Adult Services,Adult Community Team,Physical Support,RESIDENTIAL CARE INCOME
http://opendatacommunities.org/doc/london-borough-council/havering,London Borough of Havering,27/05/2016,2652.00,MAY16L622,Ebury Court_a,"Children, Adults & Housing",Adult Services,Adult Community Team,Physical Support,RESIDENTIAL PLACEMENTS - PRIVATE CONTRACTORS PAYMENT
http://opendatacommunities.org/doc/london-borough-council/havering,London Borough of Havering,27/05/2016,-880.52,MAY16L623,Ebury Court_a,"Children, Adults & Housing",Adult Services,Adult Community Team,Physical Support,RESIDENTIAL CARE INCOME
http://opendatacommunities.org/doc/london-borough-council/havering,London Borough of Havering,27/05/2016,2181.84,MAY16L624,Ebury Court_a,"Children, Adults & Housing",Adult Services,Adult Community Team,Physical Support,RESIDENTIAL PLACEMENTS - PRIVATE CONTRACTORS PAYMENT
http://opendatacommunities.org/doc/london-borough-council/havering,London Borough of Havering,27/05/2016,-1105.12,MAY16L625,Ebury Court_a,"Children, Adults & Housing",Adult Services,Adult Community Team,Support with Memory & Cognition,RESIDENTIAL CARE INCOME
http://opendatacommunities.org/doc/london-borough-council/havering,London Borough of Havering,27/05/2016,2181.84,MAY16L626,Ebury Court_a,"Children, Adults & Housing",Adult Services,Adult Community Team,Support with Memory & Cognition,RESIDENTIAL PLACEMENTS - PRIVATE CONTRACTORS PAYMENT
http://opendatacommunities.org/doc/london-borough-council/havering,London Borough of Havering,03/05/2016,2900.00,MAY16L627,Ebury Court_a,"Children, Adults & Housing",Adult Services,Learning Disabilities,Learning Disability Support,RESIDENTIAL PLACEMENTS - PRIVATE CONTRACTORS PAYMENT
http://opendatacommunities.org/doc/london-borough-council/havering,London Borough of Havering,03/05/2016,3060.00,MAY16L628,Ebury Court_a,"Children, Adults & Housing",Adult Services,Adult Community Team,Physical Support,RESIDENTIAL PLACEMENTS - PRIVATE CONTRACTORS PAYMENT
http://opendatacommunities.org/doc/london-borough-council/havering,London Borough of Havering,03/05/2016,2181.84,MAY16L629,Ebury Court_a,"Children, Adults & Housing",Adult Services,Adult Community Team,Physical Support,RESIDENTIAL PLACEMENTS - PRIVATE CONTRACTORS PAYMENT
http://opendatacommunities.org/doc/london-borough-council/havering,London Borough of Havering,03/05/2016,-692.44,MAY16L630,Ebury Court_a,"Children, Adults & Housing",Adult Services,Adult Community Team,Physical Support,RESIDENTIAL CARE INCOME
http://opendatacommunities.org/doc/london-borough-council/havering,London Borough of Havering,03/05/2016,2181.84,MAY16L631,Ebury Court_a,"Children, Adults & Housing",Adult Services,Adult Community Team,Physical Support,RESIDENTIAL PLACEMENTS - PRIVATE CONTRACTORS PAYMENT
http://opendatacommunities.org/doc/london-borough-council/havering,London Borough of Havering,03/05/2016,-880.52,MAY16L632,Ebury Court_a,"Children, Adults & Housing",Adult Services,Adult Community Team,Physical Support,RESIDENTIAL CARE INCOME
http://opendatacommunities.org/doc/london-borough-council/havering,London Borough of Havering,03/05/2016,2181.84,MAY16L633,Ebury Court_a,"Children, Adults & Housing",Adult Services,Adult Community Team,Physical Support,RESIDENTIAL PLACEMENTS - PRIVATE CONTRACTORS PAYMENT
http://opendatacommunities.org/doc/london-borough-council/havering,London Borough of Havering,03/05/2016,-1105.12,MAY16L634,Ebury Court_a,"Children, Adults & Housing",Adult Services,Adult Community Team,Physical Support,RESIDENTIAL CARE INCOME
http://opendatacommunities.org/doc/london-borough-council/havering,London Borough of Havering,03/05/2016,2181.84,MAY16L635,Ebury Court_a,"Children, Adults & Housing",Adult Services,Adult Community Team,Support with Memory & Cognition,RESIDENTIAL PLACEMENTS - PRIVATE CONTRACTORS PAYMENT
http://opendatacommunities.org/doc/london-borough-council/havering,London Borough of Havering,27/05/2016,2675.20,MAY16L655,The Cottage Residential Care Home_a,"Children, Adults & Housing",Adult Services,Learning Disabilities,Learning Disability Support,RESIDENTIAL PLACEMENTS - PRIVATE CONTRACTORS PAYMENT
http://opendatacommunities.org/doc/london-borough-council/havering,London Borough of Havering,03/05/2016,2675.20,MAY16L656,The Cottage Residential Care Home_a,"Children, Adults & Housing",Adult Services,Learning Disabilities,Learning Disability Support,RESIDENTIAL PLACEMENTS - PRIVATE CONTRACTORS PAYMENT
http://opendatacommunities.org/doc/london-borough-council/havering,London Borough of Havering,03/05/2016,-740.94,MAY16L657,The Hornchurch Nursing Centre_a,"Children, Adults & Housing",Adult Services,Adult Community Team,Physical Support,NURSING HOMES - PRIVATE CONTRACTORS PAYMENT
http://opendatacommunities.org/doc/london-borough-council/havering,London Borough of Havering,03/05/2016,-740.94,MAY16L658,The Hornchurch Nursing Centre_a,"Children, Adults & Housing",Adult Services,Adult Community Team,Support with Memory & Cognition,NURSING HOMES - PRIVATE CONTRACTORS PAYMENT
http://opendatacommunities.org/doc/london-borough-council/havering,London Borough of Havering,03/05/2016,451.19,MAY16L659,The Hornchurch Nursing Centre_a,"Children, Adults & Housing",Adult Services,Adult Community Team,Support with Memory & Cognition,NURSING CARE INCOME
http://opendatacommunities.org/doc/london-borough-council/havering,London Borough of Havering,03/05/2016,-673.59,MAY16L660,The Hornchurch Nursing Centre_a,"Children, Adults & Housing",Adult Services,Adult Community Team,Physical Support,RESIDENTIAL PLACEMENTS - PRIVATE CONTRACTORS PAYMENT
http://opendatacommunities.org/doc/london-borough-council/havering,London Borough of Havering,27/05/2016,-1960.48,MAY16L661,The Hornchurch Nursing Centre_a,"Children, Adults & Housing",Adult Services,Adult Community Team,Physical Support,NURSING CARE INCOME
http://opendatacommunities.org/doc/london-borough-council/havering,London Borough of Havering,27/05/2016,4023.04,MAY16L662,The Hornchurch Nursing Centre_a,"Children, Adults & Housing",Adult Services,Adult Community Team,Physical Support,NURSING HOMES - PRIVATE CONTRACTORS PAYMENT
http://opendatacommunities.org/doc/london-borough-council/havering,London Borough of Havering,27/05/2016,-1010.40,MAY16L663,The Hornchurch Nursing Centre_a,"Children, Adults & Housing",Adult Services,Adult Community Team,Physical Support,NURSING CARE INCOME
http://opendatacommunities.org/doc/london-borough-council/havering,London Borough of Havering,27/05/2016,4023.04,MAY16L664,The Hornchurch Nursing Centre_a,"Children, Adults & Housing",Adult Services,Adult Community Team,Physical Support,NURSING HOMES - PRIVATE CONTRACTORS PAYMENT
http://opendatacommunities.org/doc/london-borough-council/havering,London Borough of Havering,03/05/2016,-1263.32,MAY16L665,The Hornchurch Nursing Centre_a,"Children, Adults & Housing",Adult Services,Adult Community Team,Support with Memory & Cognition,NURSING CARE INCOME
http://opendatacommunities.org/doc/london-borough-council/havering,London Borough of Havering,03/05/2016,2074.64,MAY16L666,The Hornchurch Nursing Centre_a,"Children, Adults & Housing",Adult Services,Adult Community Team,Support with Memory & Cognition,NURSING HOMES - PRIVATE CONTRACTORS PAYMENT
http://opendatacommunities.org/doc/london-borough-council/havering,London Borough of Havering,03/05/2016,2074.64,MAY16L667,The Hornchurch Nursing Centre_a,"Children, Adults & Housing",Adult Services,Adult Community Team,Physical Support,NURSING HOMES - PRIVATE CONTRACTORS PAYMENT
http://opendatacommunities.org/doc/london-borough-council/havering,London Borough of Havering,27/05/2016,-1015.74,MAY16L668,The Hornchurch Nursing Centre_a,"Children, Adults & Housing",Adult Services,Adult Community Team,Physical Support,NURSING CARE INCOME
http://opendatacommunities.org/doc/london-borough-council/havering,London Borough of Havering,27/05/2016,4001.09,MAY16L669,The Hornchurch Nursing Centre_a,"Children, Adults & Housing",Adult Services,Adult Community Team,Physical Support,NURSING HOMES - PRIVATE CONTRACTORS PAYMENT
http://opendatacommunities.org/doc/london-borough-council/havering,London Borough of Havering,03/05/2016,-23839.41,MAY16L670,The Hornchurch Nursing Centre_a,"Children, Adults & Housing",Adult Services,Adult Community Team,Physical Support,RESIDENTIAL PLACEMENTS - PRIVATE CONTRACTORS PAYMENT
http://opendatacommunities.org/doc/london-borough-council/havering,London Borough of Havering,03/05/2016,12638.09,MAY16L671,The Hornchurch Nursing Centre_a,"Children, Adults & Housing",Adult Services,Adult Community Team,Physical Support,RESIDENTIAL CARE INCOME
http://opendatacommunities.org/doc/london-borough-council/havering,London Borough of Havering,27/05/2016,-12638.09,MAY16L672,The Hornchurch Nursing Centre_a,"Children, Adults & Housing",Adult Services,Adult Community Team,Physical Support,NURSING CARE INCOME
http://opendatacommunities.org/doc/london-borough-council/havering,London Borough of Havering,27/05/2016,25410.79,MAY16L673,The Hornchurch Nursing Centre_a,"Children, Adults & Housing",Adult Services,Adult Community Team,Physical Support,NURSING HOMES - PRIVATE CONTRACTORS PAYMENT
http://opendatacommunities.org/doc/london-borough-council/havering,London Borough of Havering,27/05/2016,-1507.74,MAY16L674,The Hornchurch Nursing Centre_a,"Children, Adults & Housing",Adult Services,Adult Community Team,Physical Support,NURSING HOMES - PRIVATE CONTRACTORS PAYMENT
http://opendatacommunities.org/doc/london-borough-council/havering,London Borough of Havering,03/05/2016,-3237.14,MAY16L675,The Hornchurch Nursing Centre_a,"Children, Adults & Housing",Adult Services,Adult Community Team,Physical Support,RESIDENTIAL PLACEMENTS - PRIVATE CONTRACTORS PAYMENT
http://opendatacommunities.org/doc/london-borough-council/havering,London Borough of Havering,03/05/2016,1730.64,MAY16L676,The Hornchurch Nursing Centre_a,"Children, Adults & Housing",Adult Services,Adult Community Team,Physical Support,RESIDENTIAL CARE INCOME
http://opendatacommunities.org/doc/london-borough-council/havering,London Borough of Havering,27/05/2016,-1730.64,MAY16L677,The Hornchurch Nursing Centre_a,"Children, Adults & Housing",Adult Services,Adult Community Team,Physical Support,NURSING CARE INCOME
http://opendatacommunities.org/doc/london-borough-council/havering,London Borough of Havering,27/05/2016,3450.50,MAY16L678,The Hornchurch Nursing Centre_a,"Children, Adults & Housing",Adult Services,Adult Community Team,Physical Support,NURSING HOMES - PRIVATE CONTRACTORS PAYMENT
http://opendatacommunities.org/doc/london-borough-council/havering,London Borough of Havering,03/05/2016,-1333.70,MAY16L679,The Hornchurch Nursing Centre_a,"Children, Adults & Housing",Adult Services,Adult Community Team,Physical Support,NURSING HOMES - PRIVATE CONTRACTORS PAYMENT
http://opendatacommunities.org/doc/london-borough-council/havering,London Borough of Havering,03/05/2016,-1212.45,MAY16L680,The Hornchurch Nursing Centre_a,"Children, Adults & Housing",Adult Services,Adult Community Team,Physical Support,RESIDENTIAL PLACEMENTS - PRIVATE CONTRACTORS PAYMENT
http://opendatacommunities.org/doc/london-borough-council/havering,London Borough of Havering,03/05/2016,636.45,MAY16L681,The Hornchurch Nursing Centre_a,"Children, Adults & Housing",Adult Services,Adult Community Team,Physical Support,RESIDENTIAL CARE INCOME
http://opendatacommunities.org/doc/london-borough-council/havering,London Borough of Havering,27/05/2016,1207.57,MAY16L682,The Hornchurch Nursing Centre_a,"Children, Adults & Housing",Adult Services,Adult Community Team,Physical Support,NURSING HOMES - PRIVATE CONTRACTORS PAYMENT
http://opendatacommunities.org/doc/london-borough-council/havering,London Borough of Havering,03/05/2016,-1259.60,MAY16L683,The Hornchurch Nursing Centre_a,"Children, Adults & Housing",Adult Services,Adult Community Team,Support with Memory & Cognition,NURSING HOMES - PRIVATE CONTRACTORS PAYMENT
http://opendatacommunities.org/doc/london-borough-council/havering,London Borough of Havering,03/05/2016,772.97,MAY16L684,The Hornchurch Nursing Centre_a,"Children, Adults & Housing",Adult Services,Adult Community Team,Support with Memory & Cognition,NURSING CARE INCOME
http://opendatacommunities.org/doc/london-borough-council/havering,London Borough of Havering,27/05/2016,-1076.96,MAY16L685,The Hornchurch Nursing Centre_a,"Children, Adults & Housing",Adult Services,Adult Community Team,Physical Support,NURSING HOMES - PRIVATE CONTRACTORS PAYMENT
http://opendatacommunities.org/doc/london-borough-council/havering,London Borough of Havering,27/05/2016,633.51,MAY16L686,The Hornchurch Nursing Centre_a,"Children, Adults & Housing",Adult Services,Adult Community Team,Physical Support,NURSING HOMES - PRIVATE CONTRACTORS PAYMENT
http://opendatacommunities.org/doc/london-borough-council/havering,London Borough of Havering,03/05/2016,581.13,MAY16L687,The Hornchurch Nursing Centre_a,"Children, Adults & Housing",Adult Services,Adult Community Team,Physical Support,NURSING HOMES - PRIVATE CONTRACTORS PAYMENT
http://opendatacommunities.org/doc/london-borough-council/havering,London Borough of Havering,03/05/2016,-581.13,MAY16L688,The Hornchurch Nursing Centre_a,"Children, Adults & Housing",Adult Services,Adult Community Team,Physical Support,NURSING HOMES - PRIVATE CONTRACTORS PAYMENT
http://opendatacommunities.org/doc/london-borough-council/havering,London Borough of Havering,27/05/2016,1267.02,MAY16L689,The Hornchurch Nursing Centre_a,"Children, Adults & Housing",Adult Services,Adult Community Team,Physical Support,NURSING HOMES - PRIVATE CONTRACTORS PAYMENT
http://opendatacommunities.org/doc/london-borough-council/havering,London Borough of Havering,27/05/2016,-574.83,MAY16L690,The Hornchurch Nursing Centre_a,"Children, Adults & Housing",Adult Services,Adult Community Team,Physical Support,NURSING CARE INCOME
http://opendatacommunities.org/doc/london-borough-council/havering,London Borough of Havering,27/05/2016,2227.04,MAY16L691,The Hornchurch Nursing Centre_a,"Children, Adults & Housing",Adult Services,Adult Community Team,Physical Support,NURSING HOMES - PRIVATE CONTRACTORS PAYMENT
http://opendatacommunities.org/doc/london-borough-council/havering,London Borough of Havering,27/05/2016,2742.96,MAY16L692,The Hornchurch Nursing Centre_a,"Children, Adults & Housing",Adult Services,Adult Community Team,Support with Memory & Cognition,NURSING HOMES - PRIVATE CONTRACTORS PAYMENT
http://opendatacommunities.org/doc/london-borough-council/havering,London Borough of Havering,27/05/2016,2010.32,MAY16L693,The Hornchurch Nursing Centre_a,"Children, Adults & Housing",Adult Services,Adult Community Team,Physical Support,NURSING HOMES - PRIVATE CONTRACTORS PAYMENT
http://opendatacommunities.org/doc/london-borough-council/havering,London Borough of Havering,27/05/2016,2074.64,MAY16L694,The Hornchurch Nursing Centre_a,"Children, Adults & Housing",Adult Services,Adult Community Team,Physical Support,NURSING HOMES - PRIVATE CONTRACTORS PAYMENT
http://opendatacommunities.org/doc/london-borough-council/havering,London Borough of Havering,27/05/2016,-519.20,MAY16L695,The Hornchurch Nursing Centre_a,"Children, Adults & Housing",Adult Services,Adult Community Team,Physical Support,NURSING CARE INCOME
http://opendatacommunities.org/doc/london-borough-council/havering,London Borough of Havering,27/05/2016,2011.52,MAY16L696,The Hornchurch Nursing Centre_a,"Children, Adults & Housing",Adult Services,Adult Community Team,Physical Support,NURSING HOMES - PRIVATE CONTRACTORS PAYMENT
http://opendatacommunities.org/doc/london-borough-council/havering,London Borough of Havering,27/05/2016,-524.76,MAY16L697,The Hornchurch Nursing Centre_a,"Children, Adults & Housing",Adult Services,Adult Community Team,Physical Support,NURSING CARE INCOME
http://opendatacommunities.org/doc/london-borough-council/havering,London Borough of Havering,27/05/2016,2074.64,MAY16L698,The Hornchurch Nursing Centre_a,"Children, Adults & Housing",Adult Services,Adult Community Team,Physical Support,NURSING HOMES - PRIVATE CONTRACTORS PAYMENT
http://opendatacommunities.org/doc/london-borough-council/havering,London Borough of Havering,27/05/2016,-900.64,MAY16L699,The Hornchurch Nursing Centre_a,"Children, Adults & Housing",Adult Services,Adult Community Team,Physical Support,NURSING CARE INCOME
http://opendatacommunities.org/doc/london-borough-council/havering,London Borough of Havering,27/05/2016,2010.32,MAY16L700,The Hornchurch Nursing Centre_a,"Children, Adults & Housing",Adult Services,Adult Community Team,Physical Support,NURSING HOMES - PRIVATE CONTRACTORS PAYMENT
http://opendatacommunities.org/doc/london-borough-council/havering,London Borough of Havering,27/05/2016,-519.20,MAY16L701,The Hornchurch Nursing Centre_a,"Children, Adults & Housing",Adult Services,Adult Community Team,Physical Support,NURSING CARE INCOME
http://opendatacommunities.org/doc/london-borough-council/havering,London Borough of Havering,27/05/2016,2011.52,MAY16L702,The Hornchurch Nursing Centre_a,"Children, Adults & Housing",Adult Services,Adult Community Team,Physical Support,NURSING HOMES - PRIVATE CONTRACTORS PAYMENT
http://opendatacommunities.org/doc/london-borough-council/havering,London Borough of Havering,27/05/2016,-587.80,MAY16L703,The Hornchurch Nursing Centre_a,"Children, Adults & Housing",Adult Services,Adult Community Team,Physical Support,NURSING CARE INCOME
http://opendatacommunities.org/doc/london-borough-council/havering,London Borough of Havering,27/05/2016,2113.24,MAY16L704,The Hornchurch Nursing Centre_a,"Children, Adults & Housing",Adult Services,Adult Community Team,Physical Support,NURSING HOMES - PRIVATE CONTRACTORS PAYMENT
http://opendatacommunities.org/doc/london-borough-council/havering,London Borough of Havering,27/05/2016,-990.04,MAY16L705,The Hornchurch Nursing Centre_a,"Children, Adults & Housing",Adult Services,Adult Community Team,Physical Support,NURSING CARE INCOME
http://opendatacommunities.org/doc/london-borough-council/havering,London Borough of Havering,27/05/2016,2011.52,MAY16L706,The Hornchurch Nursing Centre_a,"Children, Adults & Housing",Adult Services,Adult Community Team,Physical Support,NURSING HOMES - PRIVATE CONTRACTORS PAYMENT
http://opendatacommunities.org/doc/london-borough-council/havering,London Borough of Havering,27/05/2016,-934.04,MAY16L707,The Hornchurch Nursing Centre_a,"Children, Adults & Housing",Adult Services,Adult Community Team,Support with Memory & Cognition,NURSING CARE INCOME
http://opendatacommunities.org/doc/london-borough-council/havering,London Borough of Havering,27/05/2016,2074.64,MAY16L708,The Hornchurch Nursing Centre_a,"Children, Adults & Housing",Adult Services,Adult Community Team,Support with Memory & Cognition,NURSING HOMES - PRIVATE CONTRACTORS PAYMENT
http://opendatacommunities.org/doc/london-borough-council/havering,London Borough of Havering,27/05/2016,-519.20,MAY16L709,The Hornchurch Nursing Centre_a,"Children, Adults & Housing",Adult Services,Adult Community Team,Physical Support,RESIDENTIAL CARE INCOME
http://opendatacommunities.org/doc/london-borough-council/havering,London Borough of Havering,27/05/2016,1886.04,MAY16L710,The Hornchurch Nursing Centre_a,"Children, Adults & Housing",Adult Services,Adult Community Team,Physical Support,RESIDENTIAL PLACEMENTS - PRIVATE CONTRACTORS PAYMENT
http://opendatacommunities.org/doc/london-borough-council/havering,London Borough of Havering,27/05/2016,-436.24,MAY16L711,The Hornchurch Nursing Centre_a,"Children, Adults & Housing",Adult Services,Adult Community Team,Physical Support,RESIDENTIAL CARE INCOME
http://opendatacommunities.org/doc/london-borough-council/havering,London Borough of Havering,27/05/2016,1886.04,MAY16L712,The Hornchurch Nursing Centre_a,"Children, Adults & Housing",Adult Services,Adult Community Team,Physical Support,RESIDENTIAL PLACEMENTS - PRIVATE CONTRACTORS PAYMENT
http://opendatacommunities.org/doc/london-borough-council/havering,London Borough of Havering,27/05/2016,-1265.12,MAY16L713,The Hornchurch Nursing Centre_a,"Children, Adults & Housing",Adult Services,Adult Community Team,Support with Memory & Cognition,NURSING CARE INCOME
http://opendatacommunities.org/doc/london-borough-council/havering,London Borough of Havering,27/05/2016,2074.64,MAY16L714,The Hornchurch Nursing Centre_a,"Children, Adults & Housing",Adult Services,Adult Community Team,Support with Memory & Cognition,NURSING HOMES - PRIVATE CONTRACTORS PAYMENT
http://opendatacommunities.org/doc/london-borough-council/havering,London Borough of Havering,27/05/2016,-519.20,MAY16L715,The Hornchurch Nursing Centre_a,"Children, Adults & Housing",Adult Services,Adult Community Team,Physical Support,NURSING CARE INCOME
http://opendatacommunities.org/doc/london-borough-council/havering,London Borough of Havering,27/05/2016,2074.64,MAY16L716,The Hornchurch Nursing Centre_a,"Children, Adults & Housing",Adult Services,Adult Community Team,Physical Support,NURSING HOMES - PRIVATE CONTRACTORS PAYMENT
http://opendatacommunities.org/doc/london-borough-council/havering,London Borough of Havering,27/05/2016,-1116.80,MAY16L717,The Hornchurch Nursing Centre_a,"Children, Adults & Housing",Adult Services,Adult Community Team,Physical Support,NURSING CARE INCOME
http://opendatacommunities.org/doc/london-borough-council/havering,London Borough of Havering,27/05/2016,2074.64,MAY16L718,The Hornchurch Nursing Centre_a,"Children, Adults & Housing",Adult Services,Adult Community Team,Physical Support,NURSING HOMES - PRIVATE CONTRACTORS PAYMENT
http://opendatacommunities.org/doc/london-borough-council/havering,London Borough of Havering,27/05/2016,-645.76,MAY16L719,The Hornchurch Nursing Centre_a,"Children, Adults & Housing",Adult Services,Adult Community Team,Support with Memory & Cognition,NURSING CARE INCOME
http://opendatacommunities.org/doc/london-borough-council/havering,London Borough of Havering,27/05/2016,2074.64,MAY16L720,The Hornchurch Nursing Centre_a,"Children, Adults & Housing",Adult Services,Adult Community Team,Support with Memory & Cognition,NURSING HOMES - PRIVATE CONTRACTORS PAYMENT
http://opendatacommunities.org/doc/london-borough-council/havering,London Borough of Havering,27/05/2016,-704.84,MAY16L721,The Hornchurch Nursing Centre_a,"Children, Adults & Housing",Adult Services,Adult Community Team,Support with Memory & Cognition,RESIDENTIAL CARE INCOME
http://opendatacommunities.org/doc/london-borough-council/havering,London Borough of Havering,27/05/2016,2181.84,MAY16L722,The Hornchurch Nursing Centre_a,"Children, Adults & Housing",Adult Services,Adult Community Team,Support with Memory & Cognition,RESIDENTIAL PLACEMENTS - PRIVATE CONTRACTORS PAYMENT
http://opendatacommunities.org/doc/london-borough-council/havering,London Borough of Havering,27/05/2016,-1044.88,MAY16L723,The Hornchurch Nursing Centre_a,"Children, Adults & Housing",Adult Services,Adult Community Team,Physical Support,RESIDENTIAL CARE INCOME
http://opendatacommunities.org/doc/london-borough-council/havering,London Borough of Havering,27/05/2016,2181.84,MAY16L724,The Hornchurch Nursing Centre_a,"Children, Adults & Housing",Adult Services,Adult Community Team,Physical Support,RESIDENTIAL PLACEMENTS - PRIVATE CONTRACTORS PAYMENT
http://opendatacommunities.org/doc/london-borough-council/havering,London Borough of Havering,27/05/2016,-660.72,MAY16L725,The Hornchurch Nursing Centre_a,"Children, Adults & Housing",Adult Services,Adult Community Team,Physical Support,NURSING CARE INCOME
http://opendatacommunities.org/doc/london-borough-council/havering,London Borough of Havering,27/05/2016,2074.64,MAY16L726,The Hornchurch Nursing Centre_a,"Children, Adults & Housing",Adult Services,Adult Community Team,Physical Support,NURSING HOMES - PRIVATE CONTRACTORS PAYMENT
http://opendatacommunities.org/doc/london-borough-council/havering,London Borough of Havering,27/05/2016,-503.20,MAY16L727,The Hornchurch Nursing Centre_a,"Children, Adults & Housing",Adult Services,Adult Community Team,Support with Memory & Cognition,RESIDENTIAL CARE INCOME
http://opendatacommunities.org/doc/london-borough-council/havering,London Borough of Havering,27/05/2016,2181.84,MAY16L728,The Hornchurch Nursing Centre_a,"Children, Adults & Housing",Adult Services,Adult Community Team,Support with Memory & Cognition,RESIDENTIAL PLACEMENTS - PRIVATE CONTRACTORS PAYMENT
http://opendatacommunities.org/doc/london-borough-council/havering,London Borough of Havering,27/05/2016,-503.20,MAY16L729,The Hornchurch Nursing Centre_a,"Children, Adults & Housing",Adult Services,Adult Community Team,Physical Support,NURSING CARE INCOME
http://opendatacommunities.org/doc/london-borough-council/havering,London Borough of Havering,27/05/2016,2074.64,MAY16L730,The Hornchurch Nursing Centre_a,"Children, Adults & Housing",Adult Services,Adult Community Team,Physical Support,NURSING HOMES - PRIVATE CONTRACTORS PAYMENT
http://opendatacommunities.org/doc/london-borough-council/havering,London Borough of Havering,03/05/2016,-6973.58,MAY16L731,The Hornchurch Nursing Centre_a,"Children, Adults & Housing",Adult Services,Adult Community Team,Support with Memory & Cognition,NURSING HOMES - PRIVATE CONTRACTORS PAYMENT
http://opendatacommunities.org/doc/london-borough-council/havering,London Borough of Havering,03/05/2016,4331.38,MAY16L732,The Hornchurch Nursing Centre_a,"Children, Adults & Housing",Adult Services,Adult Community Team,Support with Memory & Cognition,NURSING CARE INCOME
http://opendatacommunities.org/doc/london-borough-council/havering,London Borough of Havering,03/05/2016,-7109.46,MAY16L733,The Hornchurch Nursing Centre_a,"Children, Adults & Housing",Adult Services,Adult Community Team,Support with Memory & Cognition,NURSING CARE INCOME
http://opendatacommunities.org/doc/london-borough-council/havering,London Borough of Havering,03/05/2016,9080.18,MAY16L734,The Hornchurch Nursing Centre_a,"Children, Adults & Housing",Adult Services,Adult Community Team,Support with Memory & Cognition,NURSING HOMES - PRIVATE CONTRACTORS PAYMENT
http://opendatacommunities.org/doc/london-borough-council/havering,London Borough of Havering,03/05/2016,2742.96,MAY16L735,The Hornchurch Nursing Centre_a,"Children, Adults & Housing",Adult Services,Adult Community Team,Support with Memory & Cognition,NURSING HOMES - PRIVATE CONTRACTORS PAYMENT
http://opendatacommunities.org/doc/london-borough-council/havering,London Borough of Havering,03/05/2016,2010.32,MAY16L736,The Hornchurch Nursing Centre_a,"Children, Adults & Housing",Adult Services,Adult Community Team,Physical Support,NURSING HOMES - PRIVATE CONTRACTORS PAYMENT
http://opendatacommunities.org/doc/london-borough-council/havering,London Borough of Havering,03/05/2016,-900.64,MAY16L737,The Hornchurch Nursing Centre_a,"Children, Adults & Housing",Adult Services,Adult Community Team,Physical Support,NURSING CARE INCOME
http://opendatacommunities.org/doc/london-borough-council/havering,London Borough of Havering,03/05/2016,2010.32,MAY16L738,The Hornchurch Nursing Centre_a,"Children, Adults & Housing",Adult Services,Adult Community Team,Physical Support,NURSING HOMES - PRIVATE CONTRACTORS PAYMENT
http://opendatacommunities.org/doc/london-borough-council/havering,London Borough of Havering,03/05/2016,-515.20,MAY16L739,The Hornchurch Nursing Centre_a,"Children, Adults & Housing",Adult Services,Adult Community Team,Physical Support,NURSING CARE INCOME
http://opendatacommunities.org/doc/london-borough-council/havering,London Borough of Havering,03/05/2016,2010.32,MAY16L740,The Hornchurch Nursing Centre_a,"Children, Adults & Housing",Adult Services,Adult Community Team,Physical Support,NURSING HOMES - PRIVATE CONTRACTORS PAYMENT
http://opendatacommunities.org/doc/london-borough-council/havering,London Borough of Havering,03/05/2016,-587.80,MAY16L741,The Hornchurch Nursing Centre_a,"Children, Adults & Housing",Adult Services,Adult Community Team,Physical Support,NURSING CARE INCOME
http://opendatacommunities.org/doc/london-borough-council/havering,London Borough of Havering,03/05/2016,2010.32,MAY16L742,The Hornchurch Nursing Centre_a,"Children, Adults & Housing",Adult Services,Adult Community Team,Physical Support,NURSING HOMES - PRIVATE CONTRACTORS PAYMENT
http://opendatacommunities.org/doc/london-borough-council/havering,London Borough of Havering,03/05/2016,-934.04,MAY16L743,The Hornchurch Nursing Centre_a,"Children, Adults & Housing",Adult Services,Adult Community Team,Support with Memory & Cognition,NURSING CARE INCOME
http://opendatacommunities.org/doc/london-borough-council/havering,London Borough of Havering,03/05/2016,1140.44,MAY16L744,The Hornchurch Nursing Centre_a,"Children, Adults & Housing",Adult Services,Adult Community Team,Support with Memory & Cognition,NURSING CARE INCOME
http://opendatacommunities.org/doc/london-borough-council/havering,London Borough of Havering,03/05/2016,2074.64,MAY16L745,The Hornchurch Nursing Centre_a,"Children, Adults & Housing",Adult Services,Adult Community Team,Support with Memory & Cognition,NURSING HOMES - PRIVATE CONTRACTORS PAYMENT
http://opendatacommunities.org/doc/london-borough-council/havering,London Borough of Havering,03/05/2016,-519.20,MAY16L746,The Hornchurch Nursing Centre_a,"Children, Adults & Housing",Adult Services,Adult Community Team,Physical Support,RESIDENTIAL CARE INCOME
http://opendatacommunities.org/doc/london-borough-council/havering,London Borough of Havering,03/05/2016,1886.04,MAY16L747,The Hornchurch Nursing Centre_a,"Children, Adults & Housing",Adult Services,Adult Community Team,Physical Support,RESIDENTIAL PLACEMENTS - PRIVATE CONTRACTORS PAYMENT
http://opendatacommunities.org/doc/london-borough-council/havering,London Borough of Havering,03/05/2016,-436.24,MAY16L748,The Hornchurch Nursing Centre_a,"Children, Adults & Housing",Adult Services,Adult Community Team,Physical Support,RESIDENTIAL CARE INCOME
http://opendatacommunities.org/doc/london-borough-council/havering,London Borough of Havering,03/05/2016,1886.04,MAY16L749,The Hornchurch Nursing Centre_a,"Children, Adults & Housing",Adult Services,Adult Community Team,Physical Support,RESIDENTIAL PLACEMENTS - PRIVATE CONTRACTORS PAYMENT
http://opendatacommunities.org/doc/london-borough-council/havering,London Borough of Havering,03/05/2016,-1265.12,MAY16L750,The Hornchurch Nursing Centre_a,"Children, Adults & Housing",Adult Services,Adult Community Team,Support with Memory & Cognition,NURSING CARE INCOME
http://opendatacommunities.org/doc/london-borough-council/havering,London Borough of Havering,03/05/2016,2074.64,MAY16L751,The Hornchurch Nursing Centre_a,"Children, Adults & Housing",Adult Services,Adult Community Team,Support with Memory & Cognition,NURSING HOMES - PRIVATE CONTRACTORS PAYMENT
http://opendatacommunities.org/doc/london-borough-council/havering,London Borough of Havering,03/05/2016,-519.20,MAY16L752,The Hornchurch Nursing Centre_a,"Children, Adults & Housing",Adult Services,Adult Community Team,Physical Support,NURSING CARE INCOME
http://opendatacommunities.org/doc/london-borough-council/havering,London Borough of Havering,03/05/2016,2074.64,MAY16L753,The Hornchurch Nursing Centre_a,"Children, Adults & Housing",Adult Services,Adult Community Team,Physical Support,NURSING HOMES - PRIVATE CONTRACTORS PAYMENT
http://opendatacommunities.org/doc/london-borough-council/havering,London Borough of Havering,03/05/2016,-1116.80,MAY16L754,The Hornchurch Nursing Centre_a,"Children, Adults & Housing",Adult Services,Adult Community Team,Physical Support,NURSING CARE INCOME
http://opendatacommunities.org/doc/london-borough-council/havering,London Borough of Havering,03/05/2016,2074.64,MAY16L755,The Hornchurch Nursing Centre_a,"Children, Adults & Housing",Adult Services,Adult Community Team,Physical Support,NURSING HOMES - PRIVATE CONTRACTORS PAYMENT
http://opendatacommunities.org/doc/london-borough-council/havering,London Borough of Havering,03/05/2016,-645.76,MAY16L756,The Hornchurch Nursing Centre_a,"Children, Adults & Housing",Adult Services,Adult Community Team,Support with Memory & Cognition,NURSING CARE INCOME
http://opendatacommunities.org/doc/london-borough-council/havering,London Borough of Havering,03/05/2016,2074.64,MAY16L757,The Hornchurch Nursing Centre_a,"Children, Adults & Housing",Adult Services,Adult Community Team,Support with Memory & Cognition,NURSING HOMES - PRIVATE CONTRACTORS PAYMENT
http://opendatacommunities.org/doc/london-borough-council/havering,London Borough of Havering,03/05/2016,-704.84,MAY16L758,The Hornchurch Nursing Centre_a,"Children, Adults & Housing",Adult Services,Adult Community Team,Support with Memory & Cognition,RESIDENTIAL CARE INCOME
http://opendatacommunities.org/doc/london-borough-council/havering,London Borough of Havering,03/05/2016,2181.84,MAY16L759,The Hornchurch Nursing Centre_a,"Children, Adults & Housing",Adult Services,Adult Community Team,Support with Memory & Cognition,RESIDENTIAL PLACEMENTS - PRIVATE CONTRACTORS PAYMENT
http://opendatacommunities.org/doc/london-borough-council/havering,London Borough of Havering,03/05/2016,-1044.88,MAY16L760,The Hornchurch Nursing Centre_a,"Children, Adults & Housing",Adult Services,Adult Community Team,Physical Support,RESIDENTIAL CARE INCOME
http://opendatacommunities.org/doc/london-borough-council/havering,London Borough of Havering,03/05/2016,2181.84,MAY16L761,The Hornchurch Nursing Centre_a,"Children, Adults & Housing",Adult Services,Adult Community Team,Physical Support,RESIDENTIAL PLACEMENTS - PRIVATE CONTRACTORS PAYMENT
http://opendatacommunities.org/doc/london-borough-council/havering,London Borough of Havering,03/05/2016,-660.72,MAY16L762,The Hornchurch Nursing Centre_a,"Children, Adults & Housing",Adult Services,Adult Community Team,Physical Support,NURSING CARE INCOME
http://opendatacommunities.org/doc/london-borough-council/havering,London Borough of Havering,03/05/2016,2074.64,MAY16L763,The Hornchurch Nursing Centre_a,"Children, Adults & Housing",Adult Services,Adult Community Team,Physical Support,NURSING HOMES - PRIVATE CONTRACTORS PAYMENT
http://opendatacommunities.org/doc/london-borough-council/havering,London Borough of Havering,03/05/2016,-503.20,MAY16L764,The Hornchurch Nursing Centre_a,"Children, Adults & Housing",Adult Services,Adult Community Team,Support with Memory & Cognition,RESIDENTIAL CARE INCOME
http://opendatacommunities.org/doc/london-borough-council/havering,London Borough of Havering,03/05/2016,2181.84,MAY16L765,The Hornchurch Nursing Centre_a,"Children, Adults & Housing",Adult Services,Adult Community Team,Support with Memory & Cognition,RESIDENTIAL PLACEMENTS - PRIVATE CONTRACTORS PAYMENT
http://opendatacommunities.org/doc/london-borough-council/havering,London Borough of Havering,03/05/2016,-503.20,MAY16L766,The Hornchurch Nursing Centre_a,"Children, Adults & Housing",Adult Services,Adult Community Team,Physical Support,NURSING CARE INCOME
http://opendatacommunities.org/doc/london-borough-council/havering,London Borough of Havering,03/05/2016,2074.64,MAY16L767,The Hornchurch Nursing Centre_a,"Children, Adults & Housing",Adult Services,Adult Community Team,Physical Support,NURSING HOMES - PRIVATE CONTRACTORS PAYMENT
http://opendatacommunities.org/doc/london-borough-council/havering,London Borough of Havering,03/05/2016,2074.64,MAY16L768,The Hornchurch Nursing Centre_a,"Children, Adults & Housing",Adult Services,Adult Community Team,Physical Support,NURSING HOMES - PRIVATE CONTRACTORS PAYMENT
http://opendatacommunities.org/doc/london-borough-council/havering,London Borough of Havering,03/05/2016,-1961.32,MAY16L769,The Hornchurch Nursing Centre_a,"Children, Adults & Housing",Adult Services,Adult Community Team,Support with Memory & Cognition,NURSING HOMES - PRIVATE CONTRACTORS PAYMENT
http://opendatacommunities.org/doc/london-borough-council/havering,London Borough of Havering,03/05/2016,1535.64,MAY16L770,The Hornchurch Nursing Centre_a,"Children, Adults & Housing",Adult Services,Adult Community Team,Support with Memory & Cognition,NURSING CARE INCOME
http://opendatacommunities.org/doc/london-borough-council/havering,London Borough of Havering,27/05/2016,-519.20,MAY16L771,Brandon House_a,"Children, Adults & Housing",Mental Health,Mental Health - Non Section 75,Mental Health Support,RESIDENTIAL CARE INCOME
http://opendatacommunities.org/doc/london-borough-council/havering,London Borough of Havering,27/05/2016,1880.52,MAY16L772,Brandon House_a,"Children, Adults & Housing",Mental Health,Mental Health - Non Section 75,Mental Health Support,RESIDENTIAL PLACEMENTS - PRIVATE CONTRACTORS PAYMENT
http://opendatacommunities.org/doc/london-borough-council/havering,London Borough of Havering,27/05/2016,1872.16,MAY16L773,Brandon House_a,"Children, Adults & Housing",Mental Health,Mental Health - Non Section 75,Mental Health Support,RESIDENTIAL PLACEMENTS - PRIVATE CONTRACTORS PAYMENT
http://opendatacommunities.org/doc/london-borough-council/havering,London Borough of Havering,03/05/2016,-519.20,MAY16L774,Brandon House_a,"Children, Adults & Housing",Mental Health,Mental Health - Non Section 75,Mental Health Support,RESIDENTIAL CARE INCOME
http://opendatacommunities.org/doc/london-borough-council/havering,London Borough of Havering,03/05/2016,1880.52,MAY16L775,Brandon House_a,"Children, Adults & Housing",Mental Health,Mental Health - Non Section 75,Mental Health Support,RESIDENTIAL PLACEMENTS - PRIVATE CONTRACTORS PAYMENT
http://opendatacommunities.org/doc/london-borough-council/havering,London Borough of Havering,03/05/2016,1872.16,MAY16L776,Brandon House_a,"Children, Adults & Housing",Mental Health,Mental Health - Non Section 75,Mental Health Support,RESIDENTIAL PLACEMENTS - PRIVATE CONTRACTORS PAYMENT
http://opendatacommunities.org/doc/london-borough-council/havering,London Borough of Havering,03/05/2016,-483.64,MAY16L787,Larchwood Care Homes (South) Ltd - Brookes House_a,"Children, Adults & Housing",Adult Services,Adult Community Team,Physical Support,RESIDENTIAL PLACEMENTS - PRIVATE CONTRACTORS PAYMENT
http://opendatacommunities.org/doc/london-borough-council/havering,London Borough of Havering,03/05/2016,-478.94,MAY16L788,Larchwood Care Homes (South) Ltd - Brookes House_a,"Children, Adults & Housing",Adult Services,Adult Community Team,Physical Support,RESIDENTIAL PLACEMENTS - PRIVATE CONTRACTORS PAYMENT
http://opendatacommunities.org/doc/london-borough-council/havering,London Borough of Havering,27/05/2016,1867.76,MAY16L789,Larchwood Care Homes (South) Ltd - Brookes House_a,"Children, Adults & Housing",Adult Services,Adult Community Team,Physical Support,RESIDENTIAL PLACEMENTS - PRIVATE CONTRACTORS PAYMENT
http://opendatacommunities.org/doc/london-borough-council/havering,London Borough of Havering,27/05/2016,-552.68,MAY16L790,Larchwood Care Homes (South) Ltd - Brookes House_a,"Children, Adults & Housing",Adult Services,Adult Community Team,Physical Support,RESIDENTIAL CARE INCOME
http://opendatacommunities.org/doc/london-borough-council/havering,London Borough of Havering,27/05/2016,1886.04,MAY16L791,Larchwood Care Homes (South) Ltd - Brookes House_a,"Children, Adults & Housing",Adult Services,Adult Community Team,Physical Support,RESIDENTIAL PLACEMENTS - PRIVATE CONTRACTORS PAYMENT
http://opendatacommunities.org/doc/london-borough-council/havering,London Borough of Havering,03/05/2016,1867.76,MAY16L792,Larchwood Care Homes (South) Ltd - Brookes House_a,"Children, Adults & Housing",Adult Services,Adult Community Team,Physical Support,RESIDENTIAL PLACEMENTS - PRIVATE CONTRACTORS PAYMENT
http://opendatacommunities.org/doc/london-borough-council/havering,London Borough of Havering,03/05/2016,-552.68,MAY16L793,Larchwood Care Homes (South) Ltd - Brookes House_a,"Children, Adults & Housing",Adult Services,Adult Community Team,Physical Support,RESIDENTIAL CARE INCOME
http://opendatacommunities.org/doc/london-borough-council/havering,London Borough of Havering,03/05/2016,1886.04,MAY16L794,Larchwood Care Homes (South) Ltd - Brookes House_a,"Children, Adults & Housing",Adult Services,Adult Community Team,Physical Support,RESIDENTIAL PLACEMENTS - PRIVATE CONTRACTORS PAYMENT
http://opendatacommunities.org/doc/london-borough-council/havering,London Borough of Havering,03/05/2016,-483.64,MAY16L795,Highfield Care Homes Ltd t/a Romford Grange Care Home_a,"Children, Adults & Housing",Adult Services,Adult Community Team,Physical Support,RESIDENTIAL PLACEMENTS - PRIVATE CONTRACTORS PAYMENT
http://opendatacommunities.org/doc/london-borough-council/havering,London Borough of Havering,27/05/2016,-3941.84,MAY16L796,Highfield Care Homes Ltd t/a Romford Grange Care Home_a,"Children, Adults & Housing",Adult Services,Adult Community Team,Physical Support,NURSING HOMES - PRIVATE CONTRACTORS PAYMENT
http://opendatacommunities.org/doc/london-borough-council/havering,London Borough of Havering,03/05/2016,-1333.70,MAY16L797,Highfield Care Homes Ltd t/a Romford Grange Care Home_a,"Children, Adults & Housing",Adult Services,Adult Community Team,Support with Memory & Cognition,NURSING HOMES - PRIVATE CONTRACTORS PAYMENT
http://opendatacommunities.org/doc/london-borough-council/havering,London Borough of Havering,03/05/2016,702.26,MAY16L798,Highfield Care Homes Ltd t/a Romford Grange Care Home_a,"Children, Adults & Housing",Adult Services,Adult Community Team,Support with Memory & Cognition,NURSING CARE INCOME
http://opendatacommunities.org/doc/london-borough-council/havering,London Borough of Havering,27/05/2016,2805.22,MAY16L799,Highfield Care Homes Ltd t/a Romford Grange Care Home_a,"Children, Adults & Housing",Adult Services,Adult Community Team,Physical Support,RESIDENTIAL PLACEMENTS - PRIVATE CONTRACTORS PAYMENT
http://opendatacommunities.org/doc/london-borough-council/havering,London Borough of Havering,27/05/2016,2100.00,MAY16L800,Highfield Care Homes Ltd t/a Romford Grange Care Home_a,"Children, Adults & Housing",Adult Services,Learning Disabilities,Learning Disability Support,NURSING HOMES - PRIVATE CONTRACTORS PAYMENT
http://opendatacommunities.org/doc/london-borough-council/havering,London Borough of Havering,27/05/2016,2120.00,MAY16L801,Highfield Care Homes Ltd t/a Romford Grange Care Home_a,"Children, Adults & Housing",Adult Services,Learning Disabilities,Learning Disability Support,NURSING HOMES - PRIVATE CONTRACTORS PAYMENT
http://opendatacommunities.org/doc/london-borough-council/havering,London Borough of Havering,27/05/2016,1970.92,MAY16L802,Highfield Care Homes Ltd t/a Romford Grange Care Home_a,"Children, Adults & Housing",Adult Services,Adult Community Team,Physical Support,NURSING HOMES - PRIVATE CONTRACTORS PAYMENT
http://opendatacommunities.org/doc/london-borough-council/havering,London Borough of Havering,27/05/2016,2010.32,MAY16L803,Highfield Care Homes Ltd t/a Romford Grange Care Home_a,"Children, Adults & Housing",Adult Services,Adult Community Team,Physical Support,NURSING HOMES - PRIVATE CONTRACTORS PAYMENT
http://opendatacommunities.org/doc/london-borough-council/havering,London Borough of Havering,27/05/2016,2010.32,MAY16L804,Highfield Care Homes Ltd t/a Romford Grange Care Home_a,"Children, Adults & Housing",Adult Services,Adult Community Team,Physical Support,NURSING HOMES - PRIVATE CONTRACTORS PAYMENT
http://opendatacommunities.org/doc/london-borough-council/havering,London Borough of Havering,27/05/2016,2074.64,MAY16L805,Highfield Care Homes Ltd t/a Romford Grange Care Home_a,"Children, Adults & Housing",Adult Services,Adult Community Team,Support with Memory & Cognition,NURSING HOMES - PRIVATE CONTRACTORS PAYMENT
http://opendatacommunities.org/doc/london-borough-council/havering,London Borough of Havering,27/05/2016,2074.64,MAY16L806,Highfield Care Homes Ltd t/a Romford Grange Care Home_a,"Children, Adults & Housing",Adult Services,Adult Community Team,Physical Support,NURSING HOMES - PRIVATE CONTRACTORS PAYMENT
http://opendatacommunities.org/doc/london-borough-council/havering,London Borough of Havering,27/05/2016,2010.32,MAY16L807,Highfield Care Homes Ltd t/a Romford Grange Care Home_a,"Children, Adults & Housing",Adult Services,Adult Community Team,Physical Support,NURSING HOMES - PRIVATE CONTRACTORS PAYMENT
http://opendatacommunities.org/doc/london-borough-council/havering,London Borough of Havering,27/05/2016,2074.64,MAY16L808,Highfield Care Homes Ltd t/a Romford Grange Care Home_a,"Children, Adults & Housing",Adult Services,Adult Community Team,Physical Support,NURSING HOMES - PRIVATE CONTRACTORS PAYMENT
http://opendatacommunities.org/doc/london-borough-council/havering,London Borough of Havering,27/05/2016,2010.32,MAY16L809,Highfield Care Homes Ltd t/a Romford Grange Care Home_a,"Children, Adults & Housing",Adult Services,Adult Community Team,Physical Support,NURSING HOMES - PRIVATE CONTRACTORS PAYMENT
http://opendatacommunities.org/doc/london-borough-council/havering,London Borough of Havering,27/05/2016,1886.04,MAY16L810,Highfield Care Homes Ltd t/a Romford Grange Care Home_a,"Children, Adults & Housing",Adult Services,Adult Community Team,Physical Support,RESIDENTIAL PLACEMENTS - PRIVATE CONTRACTORS PAYMENT
http://opendatacommunities.org/doc/london-borough-council/havering,London Borough of Havering,27/05/2016,2181.84,MAY16L811,Highfield Care Homes Ltd t/a Romford Grange Care Home_a,"Children, Adults & Housing",Adult Services,Adult Community Team,Physical Support,RESIDENTIAL PLACEMENTS - PRIVATE CONTRACTORS PAYMENT
http://opendatacommunities.org/doc/london-borough-council/havering,London Borough of Havering,27/05/2016,2181.84,MAY16L812,Highfield Care Homes Ltd t/a Romford Grange Care Home_a,"Children, Adults & Housing",Adult Services,Adult Community Team,Physical Support,RESIDENTIAL PLACEMENTS - PRIVATE CONTRACTORS PAYMENT
http://opendatacommunities.org/doc/london-borough-council/havering,London Borough of Havering,27/05/2016,-533.36,MAY16L813,Highfield Care Homes Ltd t/a Romford Grange Care Home_a,"Children, Adults & Housing",Adult Services,Adult Community Team,Sensory Support,NURSING CARE INCOME
http://opendatacommunities.org/doc/london-borough-council/havering,London Borough of Havering,27/05/2016,2074.64,MAY16L814,Highfield Care Homes Ltd t/a Romford Grange Care Home_a,"Children, Adults & Housing",Adult Services,Adult Community Team,Sensory Support,NURSING HOMES - PRIVATE CONTRACTORS PAYMENT
http://opendatacommunities.org/doc/london-borough-council/havering,London Borough of Havering,27/05/2016,-519.20,MAY16L815,Highfield Care Homes Ltd t/a Romford Grange Care Home_a,"Children, Adults & Housing",Adult Services,Adult Community Team,Physical Support,NURSING CARE INCOME
http://opendatacommunities.org/doc/london-borough-council/havering,London Borough of Havering,27/05/2016,2074.64,MAY16L816,Highfield Care Homes Ltd t/a Romford Grange Care Home_a,"Children, Adults & Housing",Adult Services,Adult Community Team,Physical Support,NURSING HOMES - PRIVATE CONTRACTORS PAYMENT
http://opendatacommunities.org/doc/london-borough-council/havering,London Borough of Havering,27/05/2016,-570.16,MAY16L817,Highfield Care Homes Ltd t/a Romford Grange Care Home_a,"Children, Adults & Housing",Adult Services,Adult Community Team,Physical Support,NURSING CARE INCOME
http://opendatacommunities.org/doc/london-borough-council/havering,London Borough of Havering,27/05/2016,2010.32,MAY16L818,Highfield Care Homes Ltd t/a Romford Grange Care Home_a,"Children, Adults & Housing",Adult Services,Adult Community Team,Physical Support,NURSING HOMES - PRIVATE CONTRACTORS PAYMENT
http://opendatacommunities.org/doc/london-borough-council/havering,London Borough of Havering,27/05/2016,-519.20,MAY16L819,Highfield Care Homes Ltd t/a Romford Grange Care Home_a,"Children, Adults & Housing",Adult Services,Adult Community Team,Support with Memory & Cognition,NURSING CARE INCOME
http://opendatacommunities.org/doc/london-borough-council/havering,London Borough of Havering,27/05/2016,2074.64,MAY16L820,Highfield Care Homes Ltd t/a Romford Grange Care Home_a,"Children, Adults & Housing",Adult Services,Adult Community Team,Support with Memory & Cognition,NURSING HOMES - PRIVATE CONTRACTORS PAYMENT
http://opendatacommunities.org/doc/london-borough-council/havering,London Borough of Havering,27/05/2016,-761.96,MAY16L821,Highfield Care Homes Ltd t/a Romford Grange Care Home_a,"Children, Adults & Housing",Adult Services,Adult Community Team,Physical Support,RESIDENTIAL CARE INCOME
http://opendatacommunities.org/doc/london-borough-council/havering,London Borough of Havering,27/05/2016,2074.64,MAY16L822,Highfield Care Homes Ltd t/a Romford Grange Care Home_a,"Children, Adults & Housing",Adult Services,Adult Community Team,Physical Support,NURSING HOMES - PRIVATE CONTRACTORS PAYMENT
http://opendatacommunities.org/doc/london-borough-council/havering,London Borough of Havering,03/05/2016,2100.00,MAY16L823,Highfield Care Homes Ltd t/a Romford Grange Care Home_a,"Children, Adults & Housing",Adult Services,Learning Disabilities,Learning Disability Support,NURSING HOMES - PRIVATE CONTRACTORS PAYMENT
http://opendatacommunities.org/doc/london-borough-council/havering,London Borough of Havering,03/05/2016,2120.00,MAY16L824,Highfield Care Homes Ltd t/a Romford Grange Care Home_a,"Children, Adults & Housing",Adult Services,Learning Disabilities,Learning Disability Support,NURSING HOMES - PRIVATE CONTRACTORS PAYMENT
http://opendatacommunities.org/doc/london-borough-council/havering,London Borough of Havering,03/05/2016,1970.92,MAY16L825,Highfield Care Homes Ltd t/a Romford Grange Care Home_a,"Children, Adults & Housing",Adult Services,Adult Community Team,Physical Support,NURSING HOMES - PRIVATE CONTRACTORS PAYMENT
http://opendatacommunities.org/doc/london-borough-council/havering,London Borough of Havering,03/05/2016,2010.32,MAY16L826,Highfield Care Homes Ltd t/a Romford Grange Care Home_a,"Children, Adults & Housing",Adult Services,Adult Community Team,Physical Support,NURSING HOMES - PRIVATE CONTRACTORS PAYMENT
http://opendatacommunities.org/doc/london-borough-council/havering,London Borough of Havering,03/05/2016,2010.32,MAY16L827,Highfield Care Homes Ltd t/a Romford Grange Care Home_a,"Children, Adults & Housing",Adult Services,Adult Community Team,Physical Support,NURSING HOMES - PRIVATE CONTRACTORS PAYMENT
http://opendatacommunities.org/doc/london-borough-council/havering,London Borough of Havering,03/05/2016,2074.64,MAY16L828,Highfield Care Homes Ltd t/a Romford Grange Care Home_a,"Children, Adults & Housing",Adult Services,Adult Community Team,Support with Memory & Cognition,NURSING HOMES - PRIVATE CONTRACTORS PAYMENT
http://opendatacommunities.org/doc/london-borough-council/havering,London Borough of Havering,03/05/2016,2074.64,MAY16L829,Highfield Care Homes Ltd t/a Romford Grange Care Home_a,"Children, Adults & Housing",Adult Services,Adult Community Team,Physical Support,NURSING HOMES - PRIVATE CONTRACTORS PAYMENT
http://opendatacommunities.org/doc/london-borough-council/havering,London Borough of Havering,03/05/2016,2010.32,MAY16L830,Highfield Care Homes Ltd t/a Romford Grange Care Home_a,"Children, Adults & Housing",Adult Services,Adult Community Team,Physical Support,NURSING HOMES - PRIVATE CONTRACTORS PAYMENT
http://opendatacommunities.org/doc/london-borough-council/havering,London Borough of Havering,03/05/2016,2074.64,MAY16L831,Highfield Care Homes Ltd t/a Romford Grange Care Home_a,"Children, Adults & Housing",Adult Services,Adult Community Team,Physical Support,NURSING HOMES - PRIVATE CONTRACTORS PAYMENT
http://opendatacommunities.org/doc/london-borough-council/havering,London Borough of Havering,03/05/2016,2010.32,MAY16L832,Highfield Care Homes Ltd t/a Romford Grange Care Home_a,"Children, Adults & Housing",Adult Services,Adult Community Team,Physical Support,NURSING HOMES - PRIVATE CONTRACTORS PAYMENT
http://opendatacommunities.org/doc/london-borough-council/havering,London Borough of Havering,03/05/2016,1886.04,MAY16L833,Highfield Care Homes Ltd t/a Romford Grange Care Home_a,"Children, Adults & Housing",Adult Services,Adult Community Team,Physical Support,RESIDENTIAL PLACEMENTS - PRIVATE CONTRACTORS PAYMENT
http://opendatacommunities.org/doc/london-borough-council/havering,London Borough of Havering,03/05/2016,2181.84,MAY16L834,Highfield Care Homes Ltd t/a Romford Grange Care Home_a,"Children, Adults & Housing",Adult Services,Adult Community Team,Physical Support,RESIDENTIAL PLACEMENTS - PRIVATE CONTRACTORS PAYMENT
http://opendatacommunities.org/doc/london-borough-council/havering,London Borough of Havering,03/05/2016,1970.92,MAY16L835,Highfield Care Homes Ltd t/a Romford Grange Care Home_a,"Children, Adults & Housing",Adult Services,Adult Community Team,Physical Support,NURSING HOMES - PRIVATE CONTRACTORS PAYMENT
http://opendatacommunities.org/doc/london-borough-council/havering,London Borough of Havering,03/05/2016,-533.36,MAY16L836,Highfield Care Homes Ltd t/a Romford Grange Care Home_a,"Children, Adults & Housing",Adult Services,Adult Community Team,Sensory Support,NURSING CARE INCOME
http://opendatacommunities.org/doc/london-borough-council/havering,London Borough of Havering,03/05/2016,2074.64,MAY16L837,Highfield Care Homes Ltd t/a Romford Grange Care Home_a,"Children, Adults & Housing",Adult Services,Adult Community Team,Sensory Support,NURSING HOMES - PRIVATE CONTRACTORS PAYMENT
http://opendatacommunities.org/doc/london-borough-council/havering,London Borough of Havering,03/05/2016,-519.20,MAY16L838,Highfield Care Homes Ltd t/a Romford Grange Care Home_a,"Children, Adults & Housing",Adult Services,Adult Community Team,Physical Support,NURSING CARE INCOME
http://opendatacommunities.org/doc/london-borough-council/havering,London Borough of Havering,03/05/2016,2074.64,MAY16L839,Highfield Care Homes Ltd t/a Romford Grange Care Home_a,"Children, Adults & Housing",Adult Services,Adult Community Team,Physical Support,NURSING HOMES - PRIVATE CONTRACTORS PAYMENT
http://opendatacommunities.org/doc/london-borough-council/havering,London Borough of Havering,03/05/2016,-570.16,MAY16L840,Highfield Care Homes Ltd t/a Romford Grange Care Home_a,"Children, Adults & Housing",Adult Services,Adult Community Team,Physical Support,NURSING CARE INCOME
http://opendatacommunities.org/doc/london-borough-council/havering,London Borough of Havering,03/05/2016,2010.32,MAY16L841,Highfield Care Homes Ltd t/a Romford Grange Care Home_a,"Children, Adults & Housing",Adult Services,Adult Community Team,Physical Support,NURSING HOMES - PRIVATE CONTRACTORS PAYMENT
http://opendatacommunities.org/doc/london-borough-council/havering,London Borough of Havering,03/05/2016,-519.20,MAY16L842,Highfield Care Homes Ltd t/a Romford Grange Care Home_a,"Children, Adults & Housing",Adult Services,Adult Community Team,Support with Memory & Cognition,NURSING CARE INCOME
http://opendatacommunities.org/doc/london-borough-council/havering,London Borough of Havering,03/05/2016,2074.64,MAY16L843,Highfield Care Homes Ltd t/a Romford Grange Care Home_a,"Children, Adults & Housing",Adult Services,Adult Community Team,Support with Memory & Cognition,NURSING HOMES - PRIVATE CONTRACTORS PAYMENT
http://opendatacommunities.org/doc/london-borough-council/havering,London Borough of Havering,03/05/2016,-761.96,MAY16L844,Highfield Care Homes Ltd t/a Romford Grange Care Home_a,"Children, Adults & Housing",Adult Services,Adult Community Team,Physical Support,RESIDENTIAL CARE INCOME
http://opendatacommunities.org/doc/london-borough-council/havering,London Borough of Havering,03/05/2016,2074.64,MAY16L845,Highfield Care Homes Ltd t/a Romford Grange Care Home_a,"Children, Adults & Housing",Adult Services,Adult Community Team,Physical Support,NURSING HOMES - PRIVATE CONTRACTORS PAYMENT
http://opendatacommunities.org/doc/london-borough-council/havering,London Borough of Havering,27/05/2016,4094.88,MAY16L846,Highfield Care Homes Ltd t/a Romford Grange Care Home_a,"Children, Adults & Housing",Adult Services,Adult Community Team,Physical Support,NURSING HOMES - PRIVATE CONTRACTORS PAYMENT
http://opendatacommunities.org/doc/london-borough-council/havering,London Borough of Havering,27/05/2016,4323.60,MAY16L848,Ashdene House Ltd_a,"Children, Adults & Housing",Adult Services,Learning Disabilities,Learning Disability Support,RESIDENTIAL PLACEMENTS - PRIVATE CONTRACTORS PAYMENT
http://opendatacommunities.org/doc/london-borough-council/havering,London Borough of Havering,03/05/2016,4323.60,MAY16L849,Ashdene House Ltd_a,"Children, Adults & Housing",Adult Services,Learning Disabilities,Learning Disability Support,RESIDENTIAL PLACEMENTS - PRIVATE CONTRACTORS PAYMENT
http://opendatacommunities.org/doc/london-borough-council/havering,London Borough of Havering,10/05/2016,517.86,MAY16L851,Care Support - Carewatch (East London)_a,"Children, Adults & Housing",Adult Services,Strategy and Commissioning,Adult Community Commissioning,PRIVATE CONTRACTORS PAYMENT - OTHER
http://opendatacommunities.org/doc/london-borough-council/havering,London Borough of Havering,10/05/2016,691.04,MAY16L852,Care Support - Carewatch (East London)_a,"Children, Adults & Housing",Adult Services,Strategy and Commissioning,Adult Community Commissioning,PRIVATE CONTRACTORS PAYMENT - OTHER
http://opendatacommunities.org/doc/london-borough-council/havering,London Borough of Havering,10/05/2016,1430.28,MAY16L853,Care Support - Carewatch (East London)_a,"Children, Adults & Housing",Adult Services,Strategy and Commissioning,Adult Community Commissioning,PRIVATE CONTRACTORS PAYMENT - OTHER
http://opendatacommunities.org/doc/london-borough-council/havering,London Borough of Havering,10/05/2016,517.86,MAY16L854,Care Support - Carewatch (East London)_a,"Children, Adults & Housing",Adult Services,Strategy and Commissioning,Adult Community Commissioning,PRIVATE CONTRACTORS PAYMENT - OTHER
http://opendatacommunities.org/doc/london-borough-council/havering,London Borough of Havering,10/05/2016,1382.08,MAY16L855,Care Support - Carewatch (East London)_a,"Children, Adults & Housing",Adult Services,Strategy and Commissioning,Adult Community Commissioning,PRIVATE CONTRACTORS PAYMENT - OTHER
http://opendatacommunities.org/doc/london-borough-council/havering,London Borough of Havering,10/05/2016,1430.28,MAY16L856,Care Support - Carewatch (East London)_a,"Children, Adults & Housing",Adult Services,Strategy and Commissioning,Adult Community Commissioning,PRIVATE CONTRACTORS PAYMENT - OTHER
http://opendatacommunities.org/doc/london-borough-council/havering,London Borough of Havering,10/05/2016,691.04,MAY16L857,Care Support - Carewatch (East London)_a,"Children, Adults & Housing",Adult Services,Strategy and Commissioning,Adult Community Commissioning,PRIVATE CONTRACTORS PAYMENT - OTHER
http://opendatacommunities.org/doc/london-borough-council/havering,London Borough of Havering,10/05/2016,1104.75,MAY16L858,Care Support - Carewatch (East London)_a,"Children, Adults & Housing",Adult Services,Strategy and Commissioning,Adult Community Commissioning,PRIVATE CONTRACTORS PAYMENT - OTHER
http://opendatacommunities.org/doc/london-borough-council/havering,London Borough of Havering,10/05/2016,517.86,MAY16L859,Care Support - Carewatch (East London)_a,"Children, Adults & Housing",Adult Services,Strategy and Commissioning,Adult Community Commissioning,PRIVATE CONTRACTORS PAYMENT - OTHER
http://opendatacommunities.org/doc/london-borough-council/havering,London Borough of Havering,10/05/2016,690.48,MAY16L860,Care Support - Carewatch (East London)_a,"Children, Adults & Housing",Adult Services,Strategy and Commissioning,Adult Community Commissioning,PRIVATE CONTRACTORS PAYMENT - OTHER
http://opendatacommunities.org/doc/london-borough-council/havering,London Borough of Havering,10/05/2016,5129.88,MAY16L861,Care Support - Carewatch (East London)_a,"Children, Adults & Housing",Adult Services,Strategy and Commissioning,Adult Community Commissioning,PRIVATE CONTRACTORS PAYMENT - OTHER
http://opendatacommunities.org/doc/london-borough-council/havering,London Borough of Havering,10/05/2016,627.48,MAY16L862,Care Support - Carewatch (East London)_a,"Children, Adults & Housing",Adult Services,Strategy and Commissioning,Adult Community Commissioning,PRIVATE CONTRACTORS PAYMENT - OTHER
http://opendatacommunities.org/doc/london-borough-council/havering,London Borough of Havering,10/05/2016,1374.48,MAY16L863,Care Support - Carewatch (East London)_a,"Children, Adults & Housing",Adult Services,Strategy and Commissioning,Adult Community Commissioning,PRIVATE CONTRACTORS PAYMENT - OTHER
http://opendatacommunities.org/doc/london-borough-council/havering,London Borough of Havering,10/05/2016,1195.20,MAY16L864,Care Support - Carewatch (East London)_a,"Children, Adults & Housing",Adult Services,Strategy and Commissioning,Adult Community Commissioning,PRIVATE CONTRACTORS PAYMENT - OTHER
http://opendatacommunities.org/doc/london-borough-council/havering,London Borough of Havering,10/05/2016,836.64,MAY16L865,Care Support - Carewatch (East London)_a,"Children, Adults & Housing",Adult Services,Strategy and Commissioning,Adult Community Commissioning,PRIVATE CONTRACTORS PAYMENT - OTHER
http://opendatacommunities.org/doc/london-borough-council/havering,London Borough of Havering,10/05/2016,1673.28,MAY16L866,Care Support - Carewatch (East London)_a,"Children, Adults & Housing",Adult Services,Strategy and Commissioning,Adult Community Commissioning,PRIVATE CONTRACTORS PAYMENT - OTHER
http://opendatacommunities.org/doc/london-borough-council/havering,London Borough of Havering,10/05/2016,418.32,MAY16L867,Care Support - Carewatch (East London)_a,"Children, Adults & Housing",Adult Services,Strategy and Commissioning,Adult Community Commissioning,PRIVATE CONTRACTORS PAYMENT - OTHER
http://opendatacommunities.org/doc/london-borough-council/havering,London Borough of Havering,10/05/2016,504.97,MAY16L868,Care Support - Carewatch (East London)_a,"Children, Adults & Housing",Adult Services,Strategy and Commissioning,Adult Community Commissioning,PRIVATE CONTRACTORS PAYMENT - OTHER
http://opendatacommunities.org/doc/london-borough-council/havering,London Borough of Havering,10/05/2016,418.32,MAY16L869,Care Support - Carewatch (East London)_a,"Children, Adults & Housing",Adult Services,Strategy and Commissioning,Adult Community Commissioning,PRIVATE CONTRACTORS PAYMENT - OTHER
http://opendatacommunities.org/doc/london-borough-council/havering,London Borough of Havering,10/05/2016,821.70,MAY16L870,Care Support - Carewatch (East London)_a,"Children, Adults & Housing",Adult Services,Strategy and Commissioning,Adult Community Commissioning,PRIVATE CONTRACTORS PAYMENT - OTHER
http://opendatacommunities.org/doc/london-borough-council/havering,London Borough of Havering,10/05/2016,857.56,MAY16L871,Care Support - Carewatch (East London)_a,"Children, Adults & Housing",Adult Services,Strategy and Commissioning,Adult Community Commissioning,PRIVATE CONTRACTORS PAYMENT - OTHER
http://opendatacommunities.org/doc/london-borough-council/havering,London Borough of Havering,10/05/2016,836.64,MAY16L872,Care Support - Carewatch (East London)_a,"Children, Adults & Housing",Adult Services,Strategy and Commissioning,Adult Community Commissioning,PRIVATE CONTRACTORS PAYMENT - OTHER
http://opendatacommunities.org/doc/london-borough-council/havering,London Borough of Havering,10/05/2016,717.12,MAY16L873,Care Support - Carewatch (East London)_a,"Children, Adults & Housing",Adult Services,Strategy and Commissioning,Adult Community Commissioning,PRIVATE CONTRACTORS PAYMENT - OTHER
http://opendatacommunities.org/doc/london-borough-council/havering,London Borough of Havering,10/05/2016,836.64,MAY16L874,Care Support - Carewatch (East London)_a,"Children, Adults & Housing",Adult Services,Strategy and Commissioning,Adult Community Commissioning,PRIVATE CONTRACTORS PAYMENT - OTHER
http://opendatacommunities.org/doc/london-borough-council/havering,London Borough of Havering,10/05/2016,1665.81,MAY16L875,Care Support - Carewatch (East London)_a,"Children, Adults & Housing",Adult Services,Strategy and Commissioning,Adult Community Commissioning,PRIVATE CONTRACTORS PAYMENT - OTHER
http://opendatacommunities.org/doc/london-borough-council/havering,London Borough of Havering,10/05/2016,418.32,MAY16L876,Care Support - Carewatch (East London)_a,"Children, Adults & Housing",Adult Services,Strategy and Commissioning,Adult Community Commissioning,PRIVATE CONTRACTORS PAYMENT - OTHER
http://opendatacommunities.org/doc/london-borough-council/havering,London Borough of Havering,10/05/2016,836.64,MAY16L877,Care Support - Carewatch (East London)_a,"Children, Adults & Housing",Adult Services,Strategy and Commissioning,Adult Community Commissioning,PRIVATE CONTRACTORS PAYMENT - OTHER
http://opendatacommunities.org/doc/london-borough-council/havering,London Borough of Havering,10/05/2016,1060.74,MAY16L878,Care Support - Carewatch (East London)_a,"Children, Adults & Housing",Adult Services,Strategy and Commissioning,Adult Community Commissioning,PRIVATE CONTRACTORS PAYMENT - OTHER
http://opendatacommunities.org/doc/london-borough-council/havering,London Borough of Havering,10/05/2016,732.06,MAY16L879,Care Support - Carewatch (East London)_a,"Children, Adults & Housing",Adult Services,Strategy and Commissioning,Adult Community Commissioning,PRIVATE CONTRACTORS PAYMENT - OTHER
http://opendatacommunities.org/doc/london-borough-council/havering,London Borough of Havering,10/05/2016,620.01,MAY16L880,Care Support - Carewatch (East London)_a,"Children, Adults & Housing",Adult Services,Strategy and Commissioning,Adult Community Commissioning,PRIVATE CONTRACTORS PAYMENT - OTHER
http://opendatacommunities.org/doc/london-borough-council/havering,London Borough of Havering,10/05/2016,836.64,MAY16L881,Care Support - Carewatch (East London)_a,"Children, Adults & Housing",Adult Services,Strategy and Commissioning,Adult Community Commissioning,PRIVATE CONTRACTORS PAYMENT - OTHER
http://opendatacommunities.org/doc/london-borough-council/havering,London Borough of Havering,10/05/2016,627.48,MAY16L882,Care Support - Carewatch (East London)_a,"Children, Adults & Housing",Adult Services,Strategy and Commissioning,Adult Community Commissioning,PRIVATE CONTRACTORS PAYMENT - OTHER
http://opendatacommunities.org/doc/london-borough-council/havering,London Borough of Havering,10/05/2016,836.64,MAY16L883,Care Support - Carewatch (East London)_a,"Children, Adults & Housing",Adult Services,Strategy and Commissioning,Adult Community Commissioning,PRIVATE CONTRACTORS PAYMENT - OTHER
http://opendatacommunities.org/doc/london-borough-council/havering,London Borough of Havering,10/05/2016,983.05,MAY16L884,Care Support - Carewatch (East London)_a,"Children, Adults & Housing",Adult Services,Strategy and Commissioning,Adult Community Commissioning,PRIVATE CONTRACTORS PAYMENT - OTHER
http://opendatacommunities.org/doc/london-borough-council/havering,London Borough of Havering,10/05/2016,467.30,MAY16L885,Care Support - Carewatch (East London)_a,"Children, Adults & Housing",Adult Services,Strategy and Commissioning,Adult Community Commissioning,PRIVATE CONTRACTORS PAYMENT - OTHER
http://opendatacommunities.org/doc/london-borough-council/havering,London Borough of Havering,10/05/2016,418.32,MAY16L886,Care Support - Carewatch (East London)_a,"Children, Adults & Housing",Adult Services,Strategy and Commissioning,Adult Community Commissioning,PRIVATE CONTRACTORS PAYMENT - OTHER
http://opendatacommunities.org/doc/london-borough-council/havering,London Borough of Havering,10/05/2016,418.32,MAY16L887,Care Support - Carewatch (East London)_a,"Children, Adults & Housing",Adult Services,Strategy and Commissioning,Adult Community Commissioning,PRIVATE CONTRACTORS PAYMENT - OTHER
http://opendatacommunities.org/doc/london-borough-council/havering,London Borough of Havering,10/05/2016,537.84,MAY16L888,Care Support - Carewatch (East London)_a,"Children, Adults & Housing",Adult Services,Strategy and Commissioning,Adult Community Commissioning,PRIVATE CONTRACTORS PAYMENT - OTHER
http://opendatacommunities.org/doc/london-borough-council/havering,London Borough of Havering,10/05/2016,1374.48,MAY16L889,Care Support - Carewatch (East London)_a,"Children, Adults & Housing",Adult Services,Strategy and Commissioning,Adult Community Commissioning,PRIVATE CONTRACTORS PAYMENT - OTHER
http://opendatacommunities.org/doc/london-borough-council/havering,London Borough of Havering,10/05/2016,836.64,MAY16L890,Care Support - Carewatch (East London)_a,"Children, Adults & Housing",Adult Services,Strategy and Commissioning,Adult Community Commissioning,PRIVATE CONTRACTORS PAYMENT - OTHER
http://opendatacommunities.org/doc/london-borough-council/havering,London Borough of Havering,10/05/2016,418.32,MAY16L891,Care Support - Carewatch (East London)_a,"Children, Adults & Housing",Adult Services,Strategy and Commissioning,Adult Community Commissioning,PRIVATE CONTRACTORS PAYMENT - OTHER
http://opendatacommunities.org/doc/london-borough-council/havering,London Borough of Havering,10/05/2016,418.32,MAY16L892,Care Support - Carewatch (East London)_a,"Children, Adults & Housing",Adult Services,Strategy and Commissioning,Adult Community Commissioning,PRIVATE CONTRACTORS PAYMENT - OTHER
http://opendatacommunities.org/doc/london-borough-council/havering,London Borough of Havering,10/05/2016,836.64,MAY16L893,Care Support - Carewatch (East London)_a,"Children, Adults & Housing",Adult Services,Strategy and Commissioning,Adult Community Commissioning,PRIVATE CONTRACTORS PAYMENT - OTHER
http://opendatacommunities.org/doc/london-borough-council/havering,London Borough of Havering,10/05/2016,2850.06,MAY16L894,Care Support - Carewatch (East London)_a,"Children, Adults & Housing",Adult Services,Strategy and Commissioning,Adult Community Commissioning,PRIVATE CONTRACTORS PAYMENT - OTHER
http://opendatacommunities.org/doc/london-borough-council/havering,London Borough of Havering,12/05/2016,4163.25,MAY16L895,Care Support - Carewatch (East London)_a,"Children, Adults & Housing",Adult Services,Strategy and Commissioning,Adult Community Commissioning,PRIVATE CONTRACTORS PAYMENT - OTHER
http://opendatacommunities.org/doc/london-borough-council/havering,London Borough of Havering,12/05/2016,1811.68,MAY16L896,Care Support - Carewatch (East London)_a,"Children, Adults & Housing",Adult Services,Strategy and Commissioning,Adult Community Commissioning,PRIVATE CONTRACTORS PAYMENT - OTHER
http://opendatacommunities.org/doc/london-borough-council/havering,London Borough of Havering,13/05/2016,-28621.66,MAY16L899,The Riverside Group Ltd_a,"Children, Adults & Housing",Adult Services,Strategy and Commissioning,Mental Health Commissioning,PRIVATE CONTRACTORS PAYMENT - OTHER
http://opendatacommunities.org/doc/london-borough-council/havering,London Borough of Havering,12/05/2016,28621.66,MAY16L900,The Riverside Group Ltd_a,"Children, Adults & Housing",Adult Services,Strategy and Commissioning,Mental Health Commissioning,PRIVATE CONTRACTORS PAYMENT - OTHER
http://opendatacommunities.org/doc/london-borough-council/havering,London Borough of Havering,12/05/2016,2721.42,MAY16L901,The Riverside Group Ltd_a,"Children, Adults & Housing",Adult Services,Strategy and Commissioning,Mental Health Commissioning,PRIVATE CONTRACTORS PAYMENT - OTHER
http://opendatacommunities.org/doc/london-borough-council/havering,London Borough of Havering,12/05/2016,11250.00,MAY16L902,The Riverside Group Ltd_a,"Children, Adults & Housing",Adult Services,Strategy and Commissioning,Mental Health Commissioning,PRIVATE CONTRACTORS PAYMENT - OTHER
http://opendatacommunities.org/doc/london-borough-council/havering,London Borough of Havering,12/05/2016,5878.33,MAY16L903,The Riverside Group Ltd_a,"Children, Adults & Housing",Adult Services,Strategy and Commissioning,Mental Health Commissioning,PRIVATE CONTRACTORS PAYMENT - OTHER
http://opendatacommunities.org/doc/london-borough-council/havering,London Borough of Havering,13/05/2016,28621.66,MAY16L904,The Riverside Group Ltd_a,"Children, Adults & Housing",Adult Services,Strategy and Commissioning,Mental Health Commissioning,PRIVATE CONTRACTORS PAYMENT - OTHER
http://opendatacommunities.org/doc/london-borough-council/havering,London Borough of Havering,27/05/2016,-519.20,MAY16L917,Minster Care Management Ltd_a,"Children, Adults & Housing",Adult Services,Adult Community Team,Physical Support,RESIDENTIAL CARE INCOME
http://opendatacommunities.org/doc/london-borough-council/havering,London Borough of Havering,27/05/2016,2181.84,MAY16L918,Minster Care Management Ltd_a,"Children, Adults & Housing",Adult Services,Adult Community Team,Physical Support,RESIDENTIAL PLACEMENTS - PRIVATE CONTRACTORS PAYMENT
http://opendatacommunities.org/doc/london-borough-council/havering,London Borough of Havering,03/05/2016,-519.20,MAY16L919,Minster Care Management Ltd_a,"Children, Adults & Housing",Adult Services,Adult Community Team,Physical Support,RESIDENTIAL CARE INCOME
http://opendatacommunities.org/doc/london-borough-council/havering,London Borough of Havering,03/05/2016,2181.84,MAY16L920,Minster Care Management Ltd_a,"Children, Adults & Housing",Adult Services,Adult Community Team,Physical Support,RESIDENTIAL PLACEMENTS - PRIVATE CONTRACTORS PAYMENT
http://opendatacommunities.org/doc/london-borough-council/havering,London Borough of Havering,27/05/2016,-817.84,MAY16L921,Four Seasons Health Care Ltd - Hopes Green Care Home_a,"Children, Adults & Housing",Adult Services,Adult Community Team,Physical Support,RESIDENTIAL CARE INCOME
http://opendatacommunities.org/doc/london-borough-council/havering,London Borough of Havering,27/05/2016,1886.04,MAY16L922,Four Seasons Health Care Ltd - Hopes Green Care Home_a,"Children, Adults & Housing",Adult Services,Adult Community Team,Physical Support,RESIDENTIAL PLACEMENTS - PRIVATE CONTRACTORS PAYMENT
http://opendatacommunities.org/doc/london-borough-council/havering,London Borough of Havering,03/05/2016,-817.84,MAY16L923,Four Seasons Health Care Ltd - Hopes Green Care Home_a,"Children, Adults & Housing",Adult Services,Adult Community Team,Physical Support,RESIDENTIAL CARE INCOME
http://opendatacommunities.org/doc/london-borough-council/havering,London Borough of Havering,03/05/2016,1886.04,MAY16L924,Four Seasons Health Care Ltd - Hopes Green Care Home_a,"Children, Adults & Housing",Adult Services,Adult Community Team,Physical Support,RESIDENTIAL PLACEMENTS - PRIVATE CONTRACTORS PAYMENT
http://opendatacommunities.org/doc/london-borough-council/havering,London Borough of Havering,03/05/2016,2011.52,MAY16L926,Beechcourt Care Centre_a,"Children, Adults & Housing",Adult Services,Adult Community Team,Sensory Support,NURSING HOMES - PRIVATE CONTRACTORS PAYMENT
http://opendatacommunities.org/doc/london-borough-council/havering,London Borough of Havering,03/05/2016,-1970.88,MAY16L927,Beechcourt Care Centre_a,"Children, Adults & Housing",Adult Services,Adult Community Team,Physical Support,NURSING HOMES - PRIVATE CONTRACTORS PAYMENT
http://opendatacommunities.org/doc/london-borough-council/havering,London Borough of Havering,27/05/2016,-426.49,MAY16L928,Beechcourt Care Centre_a,"Children, Adults & Housing",Adult Services,Adult Community Team,Physical Support,NURSING CARE INCOME
http://opendatacommunities.org/doc/london-borough-council/havering,London Borough of Havering,27/05/2016,1704.17,MAY16L929,Beechcourt Care Centre_a,"Children, Adults & Housing",Adult Services,Adult Community Team,Physical Support,NURSING HOMES - PRIVATE CONTRACTORS PAYMENT
http://opendatacommunities.org/doc/london-borough-council/havering,London Borough of Havering,27/05/2016,2667.39,MAY16L930,Beechcourt Care Centre_a,"Children, Adults & Housing",Adult Services,Adult Community Team,Physical Support,NURSING HOMES - PRIVATE CONTRACTORS PAYMENT
http://opendatacommunities.org/doc/london-borough-council/havering,London Borough of Havering,27/05/2016,2650.04,MAY16L931,Beechcourt Care Centre_a,"Children, Adults & Housing",Adult Services,Adult Community Team,Physical Support,NURSING HOMES - PRIVATE CONTRACTORS PAYMENT
http://opendatacommunities.org/doc/london-borough-council/havering,London Borough of Havering,27/05/2016,2074.64,MAY16L932,Beechcourt Care Centre_a,"Children, Adults & Housing",Adult Services,Adult Community Team,Support with Memory & Cognition,NURSING HOMES - PRIVATE CONTRACTORS PAYMENT
http://opendatacommunities.org/doc/london-borough-council/havering,London Borough of Havering,27/05/2016,2074.64,MAY16L933,Beechcourt Care Centre_a,"Children, Adults & Housing",Adult Services,Adult Community Team,Physical Support,NURSING HOMES - PRIVATE CONTRACTORS PAYMENT
http://opendatacommunities.org/doc/london-borough-council/havering,London Borough of Havering,27/05/2016,2074.64,MAY16L934,Beechcourt Care Centre_a,"Children, Adults & Housing",Adult Services,Adult Community Team,Support with Memory & Cognition,NURSING HOMES - PRIVATE CONTRACTORS PAYMENT
http://opendatacommunities.org/doc/london-borough-council/havering,London Borough of Havering,27/05/2016,2010.32,MAY16L935,Beechcourt Care Centre_a,"Children, Adults & Housing",Adult Services,Adult Community Team,Physical Support,NURSING HOMES - PRIVATE CONTRACTORS PAYMENT
http://opendatacommunities.org/doc/london-borough-council/havering,London Borough of Havering,27/05/2016,2010.32,MAY16L936,Beechcourt Care Centre_a,"Children, Adults & Housing",Adult Services,Adult Community Team,Physical Support,NURSING HOMES - PRIVATE CONTRACTORS PAYMENT
http://opendatacommunities.org/doc/london-borough-council/havering,London Borough of Havering,27/05/2016,2074.64,MAY16L937,Beechcourt Care Centre_a,"Children, Adults & Housing",Adult Services,Adult Community Team,Support with Memory & Cognition,NURSING HOMES - PRIVATE CONTRACTORS PAYMENT
http://opendatacommunities.org/doc/london-borough-council/havering,London Borough of Havering,27/05/2016,2833.60,MAY16L938,Beechcourt Care Centre_a,"Children, Adults & Housing",Adult Services,Adult Community Team,Physical Support,RESIDENTIAL PLACEMENTS - PRIVATE CONTRACTORS PAYMENT
http://opendatacommunities.org/doc/london-borough-council/havering,London Borough of Havering,27/05/2016,2011.52,MAY16L939,Beechcourt Care Centre_a,"Children, Adults & Housing",Adult Services,Adult Community Team,Sensory Support,NURSING HOMES - PRIVATE CONTRACTORS PAYMENT
http://opendatacommunities.org/doc/london-borough-council/havering,London Borough of Havering,27/05/2016,2074.64,MAY16L940,Beechcourt Care Centre_a,"Children, Adults & Housing",Adult Services,Adult Community Team,Physical Support,NURSING HOMES - PRIVATE CONTRACTORS PAYMENT
http://opendatacommunities.org/doc/london-borough-council/havering,London Borough of Havering,27/05/2016,2011.52,MAY16L941,Beechcourt Care Centre_a,"Children, Adults & Housing",Adult Services,Adult Community Team,Physical Support,NURSING HOMES - PRIVATE CONTRACTORS PAYMENT
http://opendatacommunities.org/doc/london-borough-council/havering,London Borough of Havering,27/05/2016,-1494.52,MAY16L942,Beechcourt Care Centre_a,"Children, Adults & Housing",Adult Services,Adult Community Team,Support with Memory & Cognition,NURSING CARE INCOME
http://opendatacommunities.org/doc/london-borough-council/havering,London Borough of Havering,27/05/2016,2074.64,MAY16L943,Beechcourt Care Centre_a,"Children, Adults & Housing",Adult Services,Adult Community Team,Support with Memory & Cognition,NURSING HOMES - PRIVATE CONTRACTORS PAYMENT
http://opendatacommunities.org/doc/london-borough-council/havering,London Borough of Havering,27/05/2016,-519.20,MAY16L944,Beechcourt Care Centre_a,"Children, Adults & Housing",Adult Services,Adult Community Team,Physical Support,NURSING CARE INCOME
http://opendatacommunities.org/doc/london-borough-council/havering,London Borough of Havering,27/05/2016,2074.64,MAY16L945,Beechcourt Care Centre_a,"Children, Adults & Housing",Adult Services,Adult Community Team,Physical Support,NURSING HOMES - PRIVATE CONTRACTORS PAYMENT
http://opendatacommunities.org/doc/london-borough-council/havering,London Borough of Havering,27/05/2016,-643.84,MAY16L946,Beechcourt Care Centre_a,"Children, Adults & Housing",Adult Services,Adult Community Team,Support with Memory & Cognition,NURSING CARE INCOME
http://opendatacommunities.org/doc/london-borough-council/havering,London Borough of Havering,27/05/2016,2074.64,MAY16L947,Beechcourt Care Centre_a,"Children, Adults & Housing",Adult Services,Adult Community Team,Support with Memory & Cognition,NURSING HOMES - PRIVATE CONTRACTORS PAYMENT
http://opendatacommunities.org/doc/london-borough-council/havering,London Borough of Havering,27/05/2016,-519.20,MAY16L948,Beechcourt Care Centre_a,"Children, Adults & Housing",Adult Services,Adult Community Team,Physical Support,NURSING CARE INCOME
http://opendatacommunities.org/doc/london-borough-council/havering,London Borough of Havering,27/05/2016,2074.64,MAY16L949,Beechcourt Care Centre_a,"Children, Adults & Housing",Adult Services,Adult Community Team,Physical Support,NURSING HOMES - PRIVATE CONTRACTORS PAYMENT
http://opendatacommunities.org/doc/london-borough-council/havering,London Borough of Havering,27/05/2016,-817.60,MAY16L950,Beechcourt Care Centre_a,"Children, Adults & Housing",Adult Services,Adult Community Team,Physical Support,NURSING CARE INCOME
http://opendatacommunities.org/doc/london-borough-council/havering,London Borough of Havering,27/05/2016,2010.32,MAY16L951,Beechcourt Care Centre_a,"Children, Adults & Housing",Adult Services,Adult Community Team,Physical Support,NURSING HOMES - PRIVATE CONTRACTORS PAYMENT
http://opendatacommunities.org/doc/london-borough-council/havering,London Borough of Havering,27/05/2016,-519.20,MAY16L952,Beechcourt Care Centre_a,"Children, Adults & Housing",Adult Services,Adult Community Team,Physical Support,NURSING CARE INCOME
http://opendatacommunities.org/doc/london-borough-council/havering,London Borough of Havering,27/05/2016,2010.32,MAY16L953,Beechcourt Care Centre_a,"Children, Adults & Housing",Adult Services,Adult Community Team,Physical Support,NURSING HOMES - PRIVATE CONTRACTORS PAYMENT
http://opendatacommunities.org/doc/london-borough-council/havering,London Borough of Havering,27/05/2016,-519.20,MAY16L954,Beechcourt Care Centre_a,"Children, Adults & Housing",Adult Services,Adult Community Team,Physical Support,NURSING CARE INCOME
http://opendatacommunities.org/doc/london-borough-council/havering,London Borough of Havering,27/05/2016,2113.24,MAY16L955,Beechcourt Care Centre_a,"Children, Adults & Housing",Adult Services,Adult Community Team,Physical Support,NURSING HOMES - PRIVATE CONTRACTORS PAYMENT
http://opendatacommunities.org/doc/london-borough-council/havering,London Borough of Havering,03/05/2016,2650.04,MAY16L956,Beechcourt Care Centre_a,"Children, Adults & Housing",Adult Services,Adult Community Team,Physical Support,NURSING HOMES - PRIVATE CONTRACTORS PAYMENT
http://opendatacommunities.org/doc/london-borough-council/havering,London Borough of Havering,03/05/2016,2074.64,MAY16L957,Beechcourt Care Centre_a,"Children, Adults & Housing",Adult Services,Adult Community Team,Support with Memory & Cognition,NURSING HOMES - PRIVATE CONTRACTORS PAYMENT
http://opendatacommunities.org/doc/london-borough-council/havering,London Borough of Havering,03/05/2016,2074.64,MAY16L958,Beechcourt Care Centre_a,"Children, Adults & Housing",Adult Services,Adult Community Team,Physical Support,NURSING HOMES - PRIVATE CONTRACTORS PAYMENT
http://opendatacommunities.org/doc/london-borough-council/havering,London Borough of Havering,03/05/2016,2074.64,MAY16L959,Beechcourt Care Centre_a,"Children, Adults & Housing",Adult Services,Adult Community Team,Support with Memory & Cognition,NURSING HOMES - PRIVATE CONTRACTORS PAYMENT
http://opendatacommunities.org/doc/london-borough-council/havering,London Borough of Havering,03/05/2016,2010.32,MAY16L960,Beechcourt Care Centre_a,"Children, Adults & Housing",Adult Services,Adult Community Team,Physical Support,NURSING HOMES - PRIVATE CONTRACTORS PAYMENT
http://opendatacommunities.org/doc/london-borough-council/havering,London Borough of Havering,03/05/2016,2010.32,MAY16L961,Beechcourt Care Centre_a,"Children, Adults & Housing",Adult Services,Adult Community Team,Physical Support,NURSING HOMES - PRIVATE CONTRACTORS PAYMENT
http://opendatacommunities.org/doc/london-borough-council/havering,London Borough of Havering,03/05/2016,2074.64,MAY16L962,Beechcourt Care Centre_a,"Children, Adults & Housing",Adult Services,Adult Community Team,Support with Memory & Cognition,NURSING HOMES - PRIVATE CONTRACTORS PAYMENT
http://opendatacommunities.org/doc/london-borough-council/havering,London Borough of Havering,03/05/2016,2833.60,MAY16L963,Beechcourt Care Centre_a,"Children, Adults & Housing",Adult Services,Adult Community Team,Physical Support,RESIDENTIAL PLACEMENTS - PRIVATE CONTRACTORS PAYMENT
http://opendatacommunities.org/doc/london-borough-council/havering,London Borough of Havering,03/05/2016,-1494.52,MAY16L964,Beechcourt Care Centre_a,"Children, Adults & Housing",Adult Services,Adult Community Team,Support with Memory & Cognition,NURSING CARE INCOME
http://opendatacommunities.org/doc/london-borough-council/havering,London Borough of Havering,03/05/2016,2074.64,MAY16L965,Beechcourt Care Centre_a,"Children, Adults & Housing",Adult Services,Adult Community Team,Support with Memory & Cognition,NURSING HOMES - PRIVATE CONTRACTORS PAYMENT
http://opendatacommunities.org/doc/london-borough-council/havering,London Borough of Havering,03/05/2016,-519.20,MAY16L966,Beechcourt Care Centre_a,"Children, Adults & Housing",Adult Services,Adult Community Team,Physical Support,NURSING CARE INCOME
http://opendatacommunities.org/doc/london-borough-council/havering,London Borough of Havering,03/05/2016,2074.64,MAY16L967,Beechcourt Care Centre_a,"Children, Adults & Housing",Adult Services,Adult Community Team,Physical Support,NURSING HOMES - PRIVATE CONTRACTORS PAYMENT
http://opendatacommunities.org/doc/london-borough-council/havering,London Borough of Havering,03/05/2016,-643.84,MAY16L968,Beechcourt Care Centre_a,"Children, Adults & Housing",Adult Services,Adult Community Team,Support with Memory & Cognition,NURSING CARE INCOME
http://opendatacommunities.org/doc/london-borough-council/havering,London Borough of Havering,03/05/2016,2074.64,MAY16L969,Beechcourt Care Centre_a,"Children, Adults & Housing",Adult Services,Adult Community Team,Support with Memory & Cognition,NURSING HOMES - PRIVATE CONTRACTORS PAYMENT
http://opendatacommunities.org/doc/london-borough-council/havering,London Borough of Havering,03/05/2016,-817.60,MAY16L970,Beechcourt Care Centre_a,"Children, Adults & Housing",Adult Services,Adult Community Team,Physical Support,NURSING CARE INCOME
http://opendatacommunities.org/doc/london-borough-council/havering,London Borough of Havering,03/05/2016,2010.32,MAY16L971,Beechcourt Care Centre_a,"Children, Adults & Housing",Adult Services,Adult Community Team,Physical Support,NURSING HOMES - PRIVATE CONTRACTORS PAYMENT
http://opendatacommunities.org/doc/london-borough-council/havering,London Borough of Havering,03/05/2016,-519.20,MAY16L972,Beechcourt Care Centre_a,"Children, Adults & Housing",Adult Services,Adult Community Team,Physical Support,NURSING CARE INCOME
http://opendatacommunities.org/doc/london-borough-council/havering,London Borough of Havering,03/05/2016,2010.32,MAY16L973,Beechcourt Care Centre_a,"Children, Adults & Housing",Adult Services,Adult Community Team,Physical Support,NURSING HOMES - PRIVATE CONTRACTORS PAYMENT
http://opendatacommunities.org/doc/london-borough-council/havering,London Borough of Havering,03/05/2016,-519.20,MAY16L974,Beechcourt Care Centre_a,"Children, Adults & Housing",Adult Services,Adult Community Team,Physical Support,NURSING CARE INCOME
http://opendatacommunities.org/doc/london-borough-council/havering,London Borough of Havering,03/05/2016,2113.24,MAY16L975,Beechcourt Care Centre_a,"Children, Adults & Housing",Adult Services,Adult Community Team,Physical Support,NURSING HOMES - PRIVATE CONTRACTORS PAYMENT
http://opendatacommunities.org/doc/london-borough-council/havering,London Borough of Havering,03/05/2016,2011.52,MAY16L976,Beechcourt Care Centre_a,"Children, Adults & Housing",Adult Services,Adult Community Team,Sensory Support,NURSING HOMES - PRIVATE CONTRACTORS PAYMENT
http://opendatacommunities.org/doc/london-borough-council/havering,London Borough of Havering,27/05/2016,3862.76,MAY16L977,Hilton House_a,"Children, Adults & Housing",Adult Services,Learning Disabilities,Learning Disability Support,RESIDENTIAL PLACEMENTS - PRIVATE CONTRACTORS PAYMENT
http://opendatacommunities.org/doc/london-borough-council/havering,London Borough of Havering,03/05/2016,3862.76,MAY16L978,Hilton House_a,"Children, Adults & Housing",Adult Services,Learning Disabilities,Learning Disability Support,RESIDENTIAL PLACEMENTS - PRIVATE CONTRACTORS PAYMENT
http://opendatacommunities.org/doc/london-borough-council/havering,London Borough of Havering,03/05/2016,-559.46,MAY16L979,Nightingale Residential Care Home Ltd_a,"Children, Adults & Housing",Adult Services,Adult Community Team,Physical Support,RESIDENTIAL PLACEMENTS - PRIVATE CONTRACTORS PAYMENT
http://opendatacommunities.org/doc/london-borough-council/havering,London Borough of Havering,03/05/2016,-779.23,MAY16L980,Nightingale Residential Care Home Ltd_a,"Children, Adults & Housing",Adult Services,Adult Community Team,Physical Support,RESIDENTIAL PLACEMENTS - PRIVATE CONTRACTORS PAYMENT
http://opendatacommunities.org/doc/london-borough-council/havering,London Borough of Havering,27/05/2016,-673.59,MAY16L981,Nightingale Residential Care Home Ltd_a,"Children, Adults & Housing",Adult Services,Adult Community Team,Physical Support,RESIDENTIAL CARE INCOME
http://opendatacommunities.org/doc/london-borough-council/havering,London Borough of Havering,27/05/2016,673.59,MAY16L982,Nightingale Residential Care Home Ltd_a,"Children, Adults & Housing",Adult Services,Adult Community Team,Physical Support,RESIDENTIAL PLACEMENTS - PRIVATE CONTRACTORS PAYMENT
http://opendatacommunities.org/doc/london-borough-council/havering,London Borough of Havering,27/05/2016,-673.59,MAY16L983,Nightingale Residential Care Home Ltd_a,"Children, Adults & Housing",Adult Services,Adult Community Team,Physical Support,RESIDENTIAL PLACEMENTS - PRIVATE CONTRACTORS PAYMENT
http://opendatacommunities.org/doc/london-borough-council/havering,London Borough of Havering,27/05/2016,673.59,MAY16L984,Nightingale Residential Care Home Ltd_a,"Children, Adults & Housing",Adult Services,Adult Community Team,Physical Support,RESIDENTIAL CARE INCOME
http://opendatacommunities.org/doc/london-borough-council/havering,London Borough of Havering,27/05/2016,-779.23,MAY16L985,Nightingale Residential Care Home Ltd_a,"Children, Adults & Housing",Adult Services,Adult Community Team,Support with Memory & Cognition,RESIDENTIAL PLACEMENTS - PRIVATE CONTRACTORS PAYMENT
http://opendatacommunities.org/doc/london-borough-council/havering,London Borough of Havering,27/05/2016,4363.68,MAY16L986,Nightingale Residential Care Home Ltd_a,"Children, Adults & Housing",Adult Services,Adult Community Team,Support with Memory & Cognition,RESIDENTIAL PLACEMENTS - PRIVATE CONTRACTORS PAYMENT
http://opendatacommunities.org/doc/london-borough-council/havering,London Borough of Havering,03/05/2016,2181.84,MAY16L987,Nightingale Residential Care Home Ltd_a,"Children, Adults & Housing",Adult Services,Adult Community Team,Physical Support,RESIDENTIAL PLACEMENTS - PRIVATE CONTRACTORS PAYMENT
http://opendatacommunities.org/doc/london-borough-council/havering,London Borough of Havering,03/05/2016,-821.03,MAY16L988,Nightingale Residential Care Home Ltd_a,"Children, Adults & Housing",Adult Services,Adult Community Team,Physical Support,RESIDENTIAL CARE INCOME
http://opendatacommunities.org/doc/london-borough-council/havering,London Borough of Havering,03/05/2016,2103.92,MAY16L989,Nightingale Residential Care Home Ltd_a,"Children, Adults & Housing",Adult Services,Adult Community Team,Physical Support,RESIDENTIAL PLACEMENTS - PRIVATE CONTRACTORS PAYMENT
http://opendatacommunities.org/doc/london-borough-council/havering,London Borough of Havering,03/05/2016,4048.90,MAY16L990,Nightingale Residential Care Home Ltd_a,"Children, Adults & Housing",Adult Services,Adult Community Team,Physical Support,RESIDENTIAL PLACEMENTS - PRIVATE CONTRACTORS PAYMENT
http://opendatacommunities.org/doc/london-borough-council/havering,London Borough of Havering,03/05/2016,-4048.90,MAY16L991,Nightingale Residential Care Home Ltd_a,"Children, Adults & Housing",Adult Services,Adult Community Team,Physical Support,RESIDENTIAL PLACEMENTS - PRIVATE CONTRACTORS PAYMENT
http://opendatacommunities.org/doc/london-borough-council/havering,London Borough of Havering,03/05/2016,956.27,MAY16L992,Nightingale Residential Care Home Ltd_a,"Children, Adults & Housing",Adult Services,Adult Community Team,Physical Support,RESIDENTIAL CARE INCOME
http://opendatacommunities.org/doc/london-borough-council/havering,London Borough of Havering,27/05/2016,-3098.49,MAY16L993,Nightingale Residential Care Home Ltd_a,"Children, Adults & Housing",Adult Services,Adult Community Team,Physical Support,RESIDENTIAL CARE INCOME
http://opendatacommunities.org/doc/london-borough-council/havering,London Borough of Havering,27/05/2016,3098.49,MAY16L994,Nightingale Residential Care Home Ltd_a,"Children, Adults & Housing",Adult Services,Adult Community Team,Physical Support,RESIDENTIAL PLACEMENTS - PRIVATE CONTRACTORS PAYMENT
http://opendatacommunities.org/doc/london-borough-council/havering,London Borough of Havering,27/05/2016,-3098.49,MAY16L995,Nightingale Residential Care Home Ltd_a,"Children, Adults & Housing",Adult Services,Adult Community Team,Physical Support,RESIDENTIAL PLACEMENTS - PRIVATE CONTRACTORS PAYMENT
http://opendatacommunities.org/doc/london-borough-council/havering,London Borough of Havering,27/05/2016,3098.49,MAY16L996,Nightingale Residential Care Home Ltd_a,"Children, Adults & Housing",Adult Services,Adult Community Team,Physical Support,RESIDENTIAL CARE INCOME
http://opendatacommunities.org/doc/london-borough-council/havering,London Borough of Havering,27/05/2016,-3584.45,MAY16L997,Nightingale Residential Care Home Ltd_a,"Children, Adults & Housing",Adult Services,Adult Community Team,Support with Memory & Cognition,RESIDENTIAL PLACEMENTS - PRIVATE CONTRACTORS PAYMENT
http://opendatacommunities.org/doc/london-borough-council/havering,London Borough of Havering,27/05/2016,1382.69,MAY16L998,Nightingale Residential Care Home Ltd_a,"Children, Adults & Housing",Adult Services,Adult Community Team,Support with Memory & Cognition,RESIDENTIAL CARE INCOME
http://opendatacommunities.org/doc/london-borough-council/havering,London Borough of Havering,03/05/2016,-1402.61,MAY16L999,Nightingale Residential Care Home Ltd_a,"Children, Adults & Housing",Adult Services,Adult Community Team,Physical Support,RESIDENTIAL PLACEMENTS - PRIVATE CONTRACTORS PAYMENT
http://opendatacommunities.org/doc/london-borough-council/havering,London Borough of Havering,27/05/2016,1168.84,MAY16L1000,Nightingale Residential Care Home Ltd_a,"Children, Adults & Housing",Adult Services,Adult Community Team,Physical Support,RESIDENTIAL PLACEMENTS - PRIVATE CONTRACTORS PAYMENT
http://opendatacommunities.org/doc/london-borough-council/havering,London Borough of Havering,27/05/2016,701.28,MAY16L1001,Nightingale Residential Care Home Ltd_a,"Children, Adults & Housing",Adult Services,Adult Community Team,Physical Support,RESPITE CARE - PRIVATE CONTRACTORS PAYMENT
http://opendatacommunities.org/doc/london-borough-council/havering,London Borough of Havering,27/05/2016,-2883.15,MAY16L1002,Nightingale Residential Care Home Ltd_a,"Children, Adults & Housing",Adult Services,Adult Community Team,Physical Support,RESIDENTIAL PLACEMENTS - PRIVATE CONTRACTORS PAYMENT
http://opendatacommunities.org/doc/london-borough-council/havering,London Borough of Havering,27/05/2016,686.09,MAY16L1003,Nightingale Residential Care Home Ltd_a,"Children, Adults & Housing",Adult Services,Adult Community Team,Physical Support,RESIDENTIAL CARE INCOME
http://opendatacommunities.org/doc/london-borough-council/havering,London Borough of Havering,27/05/2016,840.34,MAY16L1004,Nightingale Residential Care Home Ltd_a,"Children, Adults & Housing",Adult Services,Adult Community Team,Support with Memory & Cognition,RESIDENTIAL PLACEMENTS - PRIVATE CONTRACTORS PAYMENT
http://opendatacommunities.org/doc/london-borough-council/havering,London Borough of Havering,27/05/2016,-840.34,MAY16L1005,Nightingale Residential Care Home Ltd_a,"Children, Adults & Housing",Adult Services,Adult Community Team,Support with Memory & Cognition,RESIDENTIAL PLACEMENTS - PRIVATE CONTRACTORS PAYMENT
http://opendatacommunities.org/doc/london-borough-council/havering,London Borough of Havering,27/05/2016,-2357.55,MAY16L1006,Nightingale Residential Care Home Ltd_a,"Children, Adults & Housing",Adult Services,Adult Community Team,Physical Support,RESIDENTIAL PLACEMENTS - PRIVATE CONTRACTORS PAYMENT
http://opendatacommunities.org/doc/london-borough-council/havering,London Borough of Havering,27/05/2016,651.05,MAY16L1007,Nightingale Residential Care Home Ltd_a,"Children, Adults & Housing",Adult Services,Adult Community Team,Physical Support,RESIDENTIAL CARE INCOME
http://opendatacommunities.org/doc/london-borough-council/havering,London Borough of Havering,27/05/2016,1246.77,MAY16L1008,Nightingale Residential Care Home Ltd_a,"Children, Adults & Housing",Adult Services,Adult Community Team,Support with Memory & Cognition,RESIDENTIAL PLACEMENTS - PRIVATE CONTRACTORS PAYMENT
http://opendatacommunities.org/doc/london-borough-council/havering,London Borough of Havering,27/05/2016,2181.84,MAY16L1009,Nightingale Residential Care Home Ltd_a,"Children, Adults & Housing",Adult Services,Adult Community Team,Support with Memory & Cognition,RESIDENTIAL PLACEMENTS - PRIVATE CONTRACTORS PAYMENT
http://opendatacommunities.org/doc/london-borough-council/havering,London Borough of Havering,27/05/2016,2139.04,MAY16L1010,Nightingale Residential Care Home Ltd_a,"Children, Adults & Housing",Adult Services,Adult Community Team,Sensory Support,RESIDENTIAL PLACEMENTS - PRIVATE CONTRACTORS PAYMENT
http://opendatacommunities.org/doc/london-borough-council/havering,London Borough of Havering,27/05/2016,2181.84,MAY16L1011,Nightingale Residential Care Home Ltd_a,"Children, Adults & Housing",Adult Services,Adult Community Team,Physical Support,RESIDENTIAL PLACEMENTS - PRIVATE CONTRACTORS PAYMENT
http://opendatacommunities.org/doc/london-borough-council/havering,London Borough of Havering,27/05/2016,2181.84,MAY16L1012,Nightingale Residential Care Home Ltd_a,"Children, Adults & Housing",Adult Services,Adult Community Team,Physical Support,RESIDENTIAL PLACEMENTS - PRIVATE CONTRACTORS PAYMENT
http://opendatacommunities.org/doc/london-borough-council/havering,London Borough of Havering,27/05/2016,2181.84,MAY16L1013,Nightingale Residential Care Home Ltd_a,"Children, Adults & Housing",Adult Services,Adult Community Team,Physical Support,RESIDENTIAL PLACEMENTS - PRIVATE CONTRACTORS PAYMENT
http://opendatacommunities.org/doc/london-borough-council/havering,London Borough of Havering,27/05/2016,2181.84,MAY16L1014,Nightingale Residential Care Home Ltd_a,"Children, Adults & Housing",Adult Services,Adult Community Team,Physical Support,RESIDENTIAL PLACEMENTS - PRIVATE CONTRACTORS PAYMENT
http://opendatacommunities.org/doc/london-borough-council/havering,London Borough of Havering,27/05/2016,-913.48,MAY16L1015,Nightingale Residential Care Home Ltd_a,"Children, Adults & Housing",Adult Services,Adult Community Team,Physical Support,RESIDENTIAL CARE INCOME
http://opendatacommunities.org/doc/london-borough-council/havering,London Borough of Havering,27/05/2016,2181.84,MAY16L1016,Nightingale Residential Care Home Ltd_a,"Children, Adults & Housing",Adult Services,Adult Community Team,Physical Support,RESIDENTIAL PLACEMENTS - PRIVATE CONTRACTORS PAYMENT
http://opendatacommunities.org/doc/london-borough-council/havering,London Borough of Havering,27/05/2016,-810.04,MAY16L1017,Nightingale Residential Care Home Ltd_a,"Children, Adults & Housing",Adult Services,Adult Community Team,Support with Memory & Cognition,RESIDENTIAL CARE INCOME
http://opendatacommunities.org/doc/london-borough-council/havering,London Borough of Havering,27/05/2016,1886.04,MAY16L1018,Nightingale Residential Care Home Ltd_a,"Children, Adults & Housing",Adult Services,Adult Community Team,Support with Memory & Cognition,RESIDENTIAL PLACEMENTS - PRIVATE CONTRACTORS PAYMENT
http://opendatacommunities.org/doc/london-borough-council/havering,London Borough of Havering,27/05/2016,-1886.04,MAY16L1019,Nightingale Residential Care Home Ltd_a,"Children, Adults & Housing",Adult Services,Adult Community Team,Physical Support,RESIDENTIAL CARE INCOME
http://opendatacommunities.org/doc/london-borough-council/havering,London Borough of Havering,27/05/2016,1886.04,MAY16L1020,Nightingale Residential Care Home Ltd_a,"Children, Adults & Housing",Adult Services,Adult Community Team,Physical Support,RESIDENTIAL PLACEMENTS - PRIVATE CONTRACTORS PAYMENT
http://opendatacommunities.org/doc/london-borough-council/havering,London Borough of Havering,27/05/2016,-519.20,MAY16L1021,Nightingale Residential Care Home Ltd_a,"Children, Adults & Housing",Adult Services,Adult Community Team,Support with Memory & Cognition,RESIDENTIAL CARE INCOME
http://opendatacommunities.org/doc/london-borough-council/havering,London Borough of Havering,27/05/2016,2181.84,MAY16L1022,Nightingale Residential Care Home Ltd_a,"Children, Adults & Housing",Adult Services,Adult Community Team,Support with Memory & Cognition,RESIDENTIAL PLACEMENTS - PRIVATE CONTRACTORS PAYMENT
http://opendatacommunities.org/doc/london-borough-council/havering,London Borough of Havering,27/05/2016,-806.36,MAY16L1023,Nightingale Residential Care Home Ltd_a,"Children, Adults & Housing",Adult Services,Adult Community Team,Support with Memory & Cognition,RESIDENTIAL CARE INCOME
http://opendatacommunities.org/doc/london-borough-council/havering,London Borough of Havering,27/05/2016,2181.84,MAY16L1024,Nightingale Residential Care Home Ltd_a,"Children, Adults & Housing",Adult Services,Adult Community Team,Support with Memory & Cognition,RESIDENTIAL PLACEMENTS - PRIVATE CONTRACTORS PAYMENT
http://opendatacommunities.org/doc/london-borough-council/havering,London Borough of Havering,27/05/2016,-610.00,MAY16L1025,Nightingale Residential Care Home Ltd_a,"Children, Adults & Housing",Adult Services,Adult Community Team,Physical Support,RESIDENTIAL CARE INCOME
http://opendatacommunities.org/doc/london-borough-council/havering,London Borough of Havering,27/05/2016,2181.84,MAY16L1026,Nightingale Residential Care Home Ltd_a,"Children, Adults & Housing",Adult Services,Adult Community Team,Physical Support,RESIDENTIAL PLACEMENTS - PRIVATE CONTRACTORS PAYMENT
http://opendatacommunities.org/doc/london-borough-council/havering,London Borough of Havering,27/05/2016,-519.20,MAY16L1027,Nightingale Residential Care Home Ltd_a,"Children, Adults & Housing",Adult Services,Adult Community Team,Support with Memory & Cognition,RESIDENTIAL CARE INCOME
http://opendatacommunities.org/doc/london-borough-council/havering,London Borough of Havering,27/05/2016,2181.84,MAY16L1028,Nightingale Residential Care Home Ltd_a,"Children, Adults & Housing",Adult Services,Adult Community Team,Support with Memory & Cognition,RESIDENTIAL PLACEMENTS - PRIVATE CONTRACTORS PAYMENT
http://opendatacommunities.org/doc/london-borough-council/havering,London Borough of Havering,27/05/2016,-519.20,MAY16L1029,Nightingale Residential Care Home Ltd_a,"Children, Adults & Housing",Adult Services,Adult Community Team,Physical Support,RESIDENTIAL CARE INCOME
http://opendatacommunities.org/doc/london-borough-council/havering,London Borough of Havering,27/05/2016,2181.84,MAY16L1030,Nightingale Residential Care Home Ltd_a,"Children, Adults & Housing",Adult Services,Adult Community Team,Physical Support,RESIDENTIAL PLACEMENTS - PRIVATE CONTRACTORS PAYMENT
http://opendatacommunities.org/doc/london-borough-council/havering,London Borough of Havering,27/05/2016,-493.16,MAY16L1031,Nightingale Residential Care Home Ltd_a,"Children, Adults & Housing",Adult Services,Adult Community Team,Physical Support,RESIDENTIAL CARE INCOME
http://opendatacommunities.org/doc/london-borough-council/havering,London Borough of Havering,27/05/2016,2181.84,MAY16L1032,Nightingale Residential Care Home Ltd_a,"Children, Adults & Housing",Adult Services,Adult Community Team,Physical Support,RESIDENTIAL PLACEMENTS - PRIVATE CONTRACTORS PAYMENT
http://opendatacommunities.org/doc/london-borough-council/havering,London Borough of Havering,27/05/2016,-1300.36,MAY16L1033,Nightingale Residential Care Home Ltd_a,"Children, Adults & Housing",Adult Services,Adult Community Team,Physical Support,RESIDENTIAL CARE INCOME
http://opendatacommunities.org/doc/london-borough-council/havering,London Borough of Havering,27/05/2016,2181.84,MAY16L1034,Nightingale Residential Care Home Ltd_a,"Children, Adults & Housing",Adult Services,Adult Community Team,Physical Support,RESIDENTIAL PLACEMENTS - PRIVATE CONTRACTORS PAYMENT
http://opendatacommunities.org/doc/london-borough-council/havering,London Borough of Havering,27/05/2016,-702.92,MAY16L1035,Nightingale Residential Care Home Ltd_a,"Children, Adults & Housing",Adult Services,Adult Community Team,Physical Support,RESIDENTIAL CARE INCOME
http://opendatacommunities.org/doc/london-borough-council/havering,London Borough of Havering,27/05/2016,2181.84,MAY16L1036,Nightingale Residential Care Home Ltd_a,"Children, Adults & Housing",Adult Services,Adult Community Team,Physical Support,RESIDENTIAL PLACEMENTS - PRIVATE CONTRACTORS PAYMENT
http://opendatacommunities.org/doc/london-borough-council/havering,London Borough of Havering,27/05/2016,-577.40,MAY16L1037,Nightingale Residential Care Home Ltd_a,"Children, Adults & Housing",Adult Services,Adult Community Team,Physical Support,RESIDENTIAL CARE INCOME
http://opendatacommunities.org/doc/london-borough-council/havering,London Borough of Havering,27/05/2016,1886.04,MAY16L1038,Nightingale Residential Care Home Ltd_a,"Children, Adults & Housing",Adult Services,Adult Community Team,Physical Support,RESIDENTIAL PLACEMENTS - PRIVATE CONTRACTORS PAYMENT
http://opendatacommunities.org/doc/london-borough-council/havering,London Borough of Havering,27/05/2016,-519.20,MAY16L1039,Nightingale Residential Care Home Ltd_a,"Children, Adults & Housing",Adult Services,Adult Community Team,Physical Support,RESIDENTIAL CARE INCOME
http://opendatacommunities.org/doc/london-borough-council/havering,London Borough of Havering,27/05/2016,2181.84,MAY16L1040,Nightingale Residential Care Home Ltd_a,"Children, Adults & Housing",Adult Services,Adult Community Team,Physical Support,RESIDENTIAL PLACEMENTS - PRIVATE CONTRACTORS PAYMENT
http://opendatacommunities.org/doc/london-borough-council/havering,London Borough of Havering,27/05/2016,-861.24,MAY16L1041,Nightingale Residential Care Home Ltd_a,"Children, Adults & Housing",Adult Services,Adult Community Team,Physical Support,RESIDENTIAL CARE INCOME
http://opendatacommunities.org/doc/london-borough-council/havering,London Borough of Havering,27/05/2016,2181.84,MAY16L1042,Nightingale Residential Care Home Ltd_a,"Children, Adults & Housing",Adult Services,Adult Community Team,Physical Support,RESIDENTIAL PLACEMENTS - PRIVATE CONTRACTORS PAYMENT
http://opendatacommunities.org/doc/london-borough-council/havering,London Borough of Havering,27/05/2016,-2259.76,MAY16L1043,Nightingale Residential Care Home Ltd_a,"Children, Adults & Housing",Adult Services,Adult Community Team,Physical Support,RESIDENTIAL PLACEMENTS - PRIVATE CONTRACTORS PAYMENT
http://opendatacommunities.org/doc/london-borough-council/havering,London Borough of Havering,03/05/2016,2181.84,MAY16L1044,Nightingale Residential Care Home Ltd_a,"Children, Adults & Housing",Adult Services,Adult Community Team,Support with Memory & Cognition,RESIDENTIAL PLACEMENTS - PRIVATE CONTRACTORS PAYMENT
http://opendatacommunities.org/doc/london-borough-council/havering,London Borough of Havering,03/05/2016,2139.04,MAY16L1045,Nightingale Residential Care Home Ltd_a,"Children, Adults & Housing",Adult Services,Adult Community Team,Sensory Support,RESIDENTIAL PLACEMENTS - PRIVATE CONTRACTORS PAYMENT
http://opendatacommunities.org/doc/london-borough-council/havering,London Borough of Havering,03/05/2016,2181.84,MAY16L1046,Nightingale Residential Care Home Ltd_a,"Children, Adults & Housing",Adult Services,Adult Community Team,Physical Support,RESIDENTIAL PLACEMENTS - PRIVATE CONTRACTORS PAYMENT
http://opendatacommunities.org/doc/london-borough-council/havering,London Borough of Havering,03/05/2016,2181.84,MAY16L1047,Nightingale Residential Care Home Ltd_a,"Children, Adults & Housing",Adult Services,Adult Community Team,Physical Support,RESIDENTIAL PLACEMENTS - PRIVATE CONTRACTORS PAYMENT
http://opendatacommunities.org/doc/london-borough-council/havering,London Borough of Havering,03/05/2016,2181.84,MAY16L1048,Nightingale Residential Care Home Ltd_a,"Children, Adults & Housing",Adult Services,Adult Community Team,Physical Support,RESIDENTIAL PLACEMENTS - PRIVATE CONTRACTORS PAYMENT
http://opendatacommunities.org/doc/london-borough-council/havering,London Borough of Havering,03/05/2016,2181.84,MAY16L1049,Nightingale Residential Care Home Ltd_a,"Children, Adults & Housing",Adult Services,Adult Community Team,Physical Support,RESIDENTIAL PLACEMENTS - PRIVATE CONTRACTORS PAYMENT
http://opendatacommunities.org/doc/london-borough-council/havering,London Borough of Havering,03/05/2016,-913.48,MAY16L1050,Nightingale Residential Care Home Ltd_a,"Children, Adults & Housing",Adult Services,Adult Community Team,Physical Support,RESIDENTIAL CARE INCOME
http://opendatacommunities.org/doc/london-borough-council/havering,London Borough of Havering,03/05/2016,2181.84,MAY16L1051,Nightingale Residential Care Home Ltd_a,"Children, Adults & Housing",Adult Services,Adult Community Team,Physical Support,RESIDENTIAL PLACEMENTS - PRIVATE CONTRACTORS PAYMENT
http://opendatacommunities.org/doc/london-borough-council/havering,London Borough of Havering,03/05/2016,-810.04,MAY16L1052,Nightingale Residential Care Home Ltd_a,"Children, Adults & Housing",Adult Services,Adult Community Team,Support with Memory & Cognition,RESIDENTIAL CARE INCOME
http://opendatacommunities.org/doc/london-borough-council/havering,London Borough of Havering,03/05/2016,1886.04,MAY16L1053,Nightingale Residential Care Home Ltd_a,"Children, Adults & Housing",Adult Services,Adult Community Team,Support with Memory & Cognition,RESIDENTIAL PLACEMENTS - PRIVATE CONTRACTORS PAYMENT
http://opendatacommunities.org/doc/london-borough-council/havering,London Borough of Havering,03/05/2016,-1892.34,MAY16L1054,Nightingale Residential Care Home Ltd_a,"Children, Adults & Housing",Adult Services,Adult Community Team,Physical Support,RESIDENTIAL CARE INCOME
http://opendatacommunities.org/doc/london-borough-council/havering,London Borough of Havering,03/05/2016,1886.04,MAY16L1055,Nightingale Residential Care Home Ltd_a,"Children, Adults & Housing",Adult Services,Adult Community Team,Physical Support,RESIDENTIAL PLACEMENTS - PRIVATE CONTRACTORS PAYMENT
http://opendatacommunities.org/doc/london-borough-council/havering,London Borough of Havering,03/05/2016,-519.20,MAY16L1056,Nightingale Residential Care Home Ltd_a,"Children, Adults & Housing",Adult Services,Adult Community Team,Physical Support,RESIDENTIAL CARE INCOME
http://opendatacommunities.org/doc/london-borough-council/havering,London Borough of Havering,03/05/2016,2181.84,MAY16L1057,Nightingale Residential Care Home Ltd_a,"Children, Adults & Housing",Adult Services,Adult Community Team,Physical Support,RESIDENTIAL PLACEMENTS - PRIVATE CONTRACTORS PAYMENT
http://opendatacommunities.org/doc/london-borough-council/havering,London Borough of Havering,03/05/2016,-519.20,MAY16L1058,Nightingale Residential Care Home Ltd_a,"Children, Adults & Housing",Adult Services,Adult Community Team,Support with Memory & Cognition,RESIDENTIAL CARE INCOME
http://opendatacommunities.org/doc/london-borough-council/havering,London Borough of Havering,03/05/2016,2181.84,MAY16L1059,Nightingale Residential Care Home Ltd_a,"Children, Adults & Housing",Adult Services,Adult Community Team,Support with Memory & Cognition,RESIDENTIAL PLACEMENTS - PRIVATE CONTRACTORS PAYMENT
http://opendatacommunities.org/doc/london-borough-council/havering,London Borough of Havering,03/05/2016,-806.36,MAY16L1060,Nightingale Residential Care Home Ltd_a,"Children, Adults & Housing",Adult Services,Adult Community Team,Support with Memory & Cognition,RESIDENTIAL CARE INCOME
http://opendatacommunities.org/doc/london-borough-council/havering,London Borough of Havering,03/05/2016,2181.84,MAY16L1061,Nightingale Residential Care Home Ltd_a,"Children, Adults & Housing",Adult Services,Adult Community Team,Support with Memory & Cognition,RESIDENTIAL PLACEMENTS - PRIVATE CONTRACTORS PAYMENT
http://opendatacommunities.org/doc/london-borough-council/havering,London Borough of Havering,03/05/2016,-610.00,MAY16L1062,Nightingale Residential Care Home Ltd_a,"Children, Adults & Housing",Adult Services,Adult Community Team,Physical Support,RESIDENTIAL CARE INCOME
http://opendatacommunities.org/doc/london-borough-council/havering,London Borough of Havering,03/05/2016,2181.84,MAY16L1063,Nightingale Residential Care Home Ltd_a,"Children, Adults & Housing",Adult Services,Adult Community Team,Physical Support,RESIDENTIAL PLACEMENTS - PRIVATE CONTRACTORS PAYMENT
http://opendatacommunities.org/doc/london-borough-council/havering,London Borough of Havering,03/05/2016,-519.20,MAY16L1064,Nightingale Residential Care Home Ltd_a,"Children, Adults & Housing",Adult Services,Adult Community Team,Support with Memory & Cognition,RESIDENTIAL CARE INCOME
http://opendatacommunities.org/doc/london-borough-council/havering,London Borough of Havering,03/05/2016,2181.84,MAY16L1065,Nightingale Residential Care Home Ltd_a,"Children, Adults & Housing",Adult Services,Adult Community Team,Support with Memory & Cognition,RESIDENTIAL PLACEMENTS - PRIVATE CONTRACTORS PAYMENT
http://opendatacommunities.org/doc/london-borough-council/havering,London Borough of Havering,03/05/2016,-519.20,MAY16L1066,Nightingale Residential Care Home Ltd_a,"Children, Adults & Housing",Adult Services,Adult Community Team,Physical Support,RESIDENTIAL CARE INCOME
http://opendatacommunities.org/doc/london-borough-council/havering,London Borough of Havering,03/05/2016,2181.84,MAY16L1067,Nightingale Residential Care Home Ltd_a,"Children, Adults & Housing",Adult Services,Adult Community Team,Physical Support,RESIDENTIAL PLACEMENTS - PRIVATE CONTRACTORS PAYMENT
http://opendatacommunities.org/doc/london-borough-council/havering,London Borough of Havering,03/05/2016,-841.64,MAY16L1068,Nightingale Residential Care Home Ltd_a,"Children, Adults & Housing",Adult Services,Adult Community Team,Support with Memory & Cognition,RESIDENTIAL CARE INCOME
http://opendatacommunities.org/doc/london-borough-council/havering,London Borough of Havering,03/05/2016,2181.84,MAY16L1069,Nightingale Residential Care Home Ltd_a,"Children, Adults & Housing",Adult Services,Adult Community Team,Support with Memory & Cognition,RESIDENTIAL PLACEMENTS - PRIVATE CONTRACTORS PAYMENT
http://opendatacommunities.org/doc/london-borough-council/havering,London Borough of Havering,03/05/2016,-520.84,MAY16L1070,Nightingale Residential Care Home Ltd_a,"Children, Adults & Housing",Adult Services,Adult Community Team,Physical Support,RESIDENTIAL CARE INCOME
http://opendatacommunities.org/doc/london-borough-council/havering,London Borough of Havering,03/05/2016,1886.04,MAY16L1071,Nightingale Residential Care Home Ltd_a,"Children, Adults & Housing",Adult Services,Adult Community Team,Physical Support,RESIDENTIAL PLACEMENTS - PRIVATE CONTRACTORS PAYMENT
http://opendatacommunities.org/doc/london-borough-council/havering,London Borough of Havering,03/05/2016,-493.16,MAY16L1072,Nightingale Residential Care Home Ltd_a,"Children, Adults & Housing",Adult Services,Adult Community Team,Physical Support,RESIDENTIAL CARE INCOME
http://opendatacommunities.org/doc/london-borough-council/havering,London Borough of Havering,03/05/2016,2181.84,MAY16L1073,Nightingale Residential Care Home Ltd_a,"Children, Adults & Housing",Adult Services,Adult Community Team,Physical Support,RESIDENTIAL PLACEMENTS - PRIVATE CONTRACTORS PAYMENT
http://opendatacommunities.org/doc/london-borough-council/havering,London Borough of Havering,03/05/2016,-1300.36,MAY16L1074,Nightingale Residential Care Home Ltd_a,"Children, Adults & Housing",Adult Services,Adult Community Team,Physical Support,RESIDENTIAL CARE INCOME
http://opendatacommunities.org/doc/london-borough-council/havering,London Borough of Havering,03/05/2016,2181.84,MAY16L1075,Nightingale Residential Care Home Ltd_a,"Children, Adults & Housing",Adult Services,Adult Community Team,Physical Support,RESIDENTIAL PLACEMENTS - PRIVATE CONTRACTORS PAYMENT
http://opendatacommunities.org/doc/london-borough-council/havering,London Borough of Havering,03/05/2016,-702.92,MAY16L1076,Nightingale Residential Care Home Ltd_a,"Children, Adults & Housing",Adult Services,Adult Community Team,Physical Support,RESIDENTIAL CARE INCOME
http://opendatacommunities.org/doc/london-borough-council/havering,London Borough of Havering,03/05/2016,2181.84,MAY16L1077,Nightingale Residential Care Home Ltd_a,"Children, Adults & Housing",Adult Services,Adult Community Team,Physical Support,RESIDENTIAL PLACEMENTS - PRIVATE CONTRACTORS PAYMENT
http://opendatacommunities.org/doc/london-borough-council/havering,London Borough of Havering,03/05/2016,-577.40,MAY16L1078,Nightingale Residential Care Home Ltd_a,"Children, Adults & Housing",Adult Services,Adult Community Team,Physical Support,RESIDENTIAL CARE INCOME
http://opendatacommunities.org/doc/london-borough-council/havering,London Borough of Havering,03/05/2016,1886.04,MAY16L1079,Nightingale Residential Care Home Ltd_a,"Children, Adults & Housing",Adult Services,Adult Community Team,Physical Support,RESIDENTIAL PLACEMENTS - PRIVATE CONTRACTORS PAYMENT
http://opendatacommunities.org/doc/london-borough-council/havering,London Borough of Havering,03/05/2016,-519.20,MAY16L1080,Nightingale Residential Care Home Ltd_a,"Children, Adults & Housing",Adult Services,Adult Community Team,Physical Support,RESIDENTIAL CARE INCOME
http://opendatacommunities.org/doc/london-borough-council/havering,London Borough of Havering,03/05/2016,2181.84,MAY16L1081,Nightingale Residential Care Home Ltd_a,"Children, Adults & Housing",Adult Services,Adult Community Team,Physical Support,RESIDENTIAL PLACEMENTS - PRIVATE CONTRACTORS PAYMENT
http://opendatacommunities.org/doc/london-borough-council/havering,London Borough of Havering,03/05/2016,-861.24,MAY16L1082,Nightingale Residential Care Home Ltd_a,"Children, Adults & Housing",Adult Services,Adult Community Team,Physical Support,RESIDENTIAL CARE INCOME
http://opendatacommunities.org/doc/london-borough-council/havering,London Borough of Havering,03/05/2016,2181.84,MAY16L1083,Nightingale Residential Care Home Ltd_a,"Children, Adults & Housing",Adult Services,Adult Community Team,Physical Support,RESIDENTIAL PLACEMENTS - PRIVATE CONTRACTORS PAYMENT
http://opendatacommunities.org/doc/london-borough-council/havering,London Borough of Havering,27/05/2016,2096.96,MAY16L1084,Dudbrook Hall Residential Home_a,"Children, Adults & Housing",Adult Services,Adult Community Team,Physical Support,RESIDENTIAL PLACEMENTS - PRIVATE CONTRACTORS PAYMENT
http://opendatacommunities.org/doc/london-borough-council/havering,London Borough of Havering,03/05/2016,2096.96,MAY16L1085,Dudbrook Hall Residential Home_a,"Children, Adults & Housing",Adult Services,Adult Community Team,Physical Support,RESIDENTIAL PLACEMENTS - PRIVATE CONTRACTORS PAYMENT
http://opendatacommunities.org/doc/london-borough-council/havering,London Borough of Havering,27/05/2016,718.40,MAY16L1086,Havering Care Homes Ltd t/a Abbscross Nursing Home_a,"Children, Adults & Housing",Adult Services,Adult Community Team,Physical Support,NURSING HOMES - PRIVATE CONTRACTORS PAYMENT
http://opendatacommunities.org/doc/london-borough-council/havering,London Borough of Havering,27/05/2016,718.40,MAY16L1087,Havering Care Homes Ltd t/a Abbscross Nursing Home_a,"Children, Adults & Housing",Adult Services,Adult Community Team,Physical Support,NURSING HOMES - PRIVATE CONTRACTORS PAYMENT
http://opendatacommunities.org/doc/london-borough-council/havering,London Borough of Havering,27/05/2016,4226.48,MAY16L1088,Havering Care Homes Ltd t/a Abbscross Nursing Home_a,"Children, Adults & Housing",Adult Services,Adult Community Team,Support with Memory & Cognition,NURSING HOMES - PRIVATE CONTRACTORS PAYMENT
http://opendatacommunities.org/doc/london-borough-council/havering,London Borough of Havering,03/05/2016,2011.52,MAY16L1089,Havering Care Homes Ltd t/a Abbscross Nursing Home_a,"Children, Adults & Housing",Adult Services,Adult Community Team,Physical Support,NURSING HOMES - PRIVATE CONTRACTORS PAYMENT
http://opendatacommunities.org/doc/london-borough-council/havering,London Borough of Havering,03/05/2016,1380.19,MAY16L1090,Havering Care Homes Ltd t/a Abbscross Nursing Home_a,"Children, Adults & Housing",Adult Services,Adult Community Team,Physical Support,NURSING HOMES - PRIVATE CONTRACTORS PAYMENT
http://opendatacommunities.org/doc/london-borough-council/havering,London Borough of Havering,03/05/2016,-1307.55,MAY16L1091,Havering Care Homes Ltd t/a Abbscross Nursing Home_a,"Children, Adults & Housing",Adult Services,Adult Community Team,Physical Support,NURSING HOMES - PRIVATE CONTRACTORS PAYMENT
http://opendatacommunities.org/doc/london-borough-council/havering,London Borough of Havering,27/05/2016,-1195.34,MAY16L1092,Havering Care Homes Ltd t/a Abbscross Nursing Home_a,"Children, Adults & Housing",Adult Services,Adult Community Team,Physical Support,NURSING CARE INCOME
http://opendatacommunities.org/doc/london-borough-council/havering,London Borough of Havering,27/05/2016,3304.64,MAY16L1093,Havering Care Homes Ltd t/a Abbscross Nursing Home_a,"Children, Adults & Housing",Adult Services,Adult Community Team,Physical Support,NURSING HOMES - PRIVATE CONTRACTORS PAYMENT
http://opendatacommunities.org/doc/london-borough-council/havering,London Borough of Havering,27/05/2016,-852.97,MAY16L1094,Havering Care Homes Ltd t/a Abbscross Nursing Home_a,"Children, Adults & Housing",Adult Services,Adult Community Team,Physical Support,NURSING CARE INCOME
http://opendatacommunities.org/doc/london-borough-council/havering,London Borough of Havering,27/05/2016,3304.64,MAY16L1095,Havering Care Homes Ltd t/a Abbscross Nursing Home_a,"Children, Adults & Housing",Adult Services,Adult Community Team,Physical Support,NURSING HOMES - PRIVATE CONTRACTORS PAYMENT
http://opendatacommunities.org/doc/london-borough-council/havering,London Borough of Havering,03/05/2016,1333.70,MAY16L1096,Havering Care Homes Ltd t/a Abbscross Nursing Home_a,"Children, Adults & Housing",Adult Services,Adult Community Team,Physical Support,NURSING HOMES - PRIVATE CONTRACTORS PAYMENT
http://opendatacommunities.org/doc/london-borough-council/havering,London Borough of Havering,27/05/2016,-1149.44,MAY16L1097,Havering Care Homes Ltd t/a Abbscross Nursing Home_a,"Children, Adults & Housing",Adult Services,Adult Community Team,Physical Support,NURSING HOMES - PRIVATE CONTRACTORS PAYMENT
http://opendatacommunities.org/doc/london-borough-council/havering,London Borough of Havering,27/05/2016,-884.10,MAY16L1098,Havering Care Homes Ltd t/a Abbscross Nursing Home_a,"Children, Adults & Housing",Adult Services,Adult Community Team,Physical Support,NURSING CARE INCOME
http://opendatacommunities.org/doc/london-borough-council/havering,London Borough of Havering,27/05/2016,3449.11,MAY16L1099,Havering Care Homes Ltd t/a Abbscross Nursing Home_a,"Children, Adults & Housing",Adult Services,Adult Community Team,Physical Support,NURSING HOMES - PRIVATE CONTRACTORS PAYMENT
http://opendatacommunities.org/doc/london-borough-council/havering,London Borough of Havering,03/05/2016,-1259.60,MAY16L1100,Havering Care Homes Ltd t/a Abbscross Nursing Home_a,"Children, Adults & Housing",Adult Services,Adult Community Team,Physical Support,NURSING HOMES - PRIVATE CONTRACTORS PAYMENT
http://opendatacommunities.org/doc/london-borough-council/havering,London Borough of Havering,03/05/2016,3097.16,MAY16L1101,Havering Care Homes Ltd t/a Abbscross Nursing Home_a,"Children, Adults & Housing",Adult Services,Adult Community Team,Physical Support,NURSING HOMES - PRIVATE CONTRACTORS PAYMENT
http://opendatacommunities.org/doc/london-borough-council/havering,London Borough of Havering,27/05/2016,1724.16,MAY16L1102,Havering Care Homes Ltd t/a Abbscross Nursing Home_a,"Children, Adults & Housing",Adult Services,Adult Community Team,Physical Support,NURSING HOMES - PRIVATE CONTRACTORS PAYMENT
http://opendatacommunities.org/doc/london-borough-council/havering,London Borough of Havering,27/05/2016,-1809.49,MAY16L1103,Havering Care Homes Ltd t/a Abbscross Nursing Home_a,"Children, Adults & Housing",Adult Services,Adult Community Team,Physical Support,NURSING CARE INCOME
http://opendatacommunities.org/doc/london-borough-council/havering,London Borough of Havering,27/05/2016,4997.69,MAY16L1104,Havering Care Homes Ltd t/a Abbscross Nursing Home_a,"Children, Adults & Housing",Adult Services,Adult Community Team,Physical Support,NURSING HOMES - PRIVATE CONTRACTORS PAYMENT
http://opendatacommunities.org/doc/london-borough-council/havering,London Borough of Havering,27/05/2016,2074.64,MAY16L1105,Havering Care Homes Ltd t/a Abbscross Nursing Home_a,"Children, Adults & Housing",Adult Services,Adult Community Team,Physical Support,NURSING HOMES - PRIVATE CONTRACTORS PAYMENT
http://opendatacommunities.org/doc/london-borough-council/havering,London Borough of Havering,27/05/2016,2074.64,MAY16L1106,Havering Care Homes Ltd t/a Abbscross Nursing Home_a,"Children, Adults & Housing",Adult Services,Adult Community Team,Physical Support,NURSING HOMES - PRIVATE CONTRACTORS PAYMENT
http://opendatacommunities.org/doc/london-borough-council/havering,London Borough of Havering,27/05/2016,2010.32,MAY16L1107,Havering Care Homes Ltd t/a Abbscross Nursing Home_a,"Children, Adults & Housing",Adult Services,Adult Community Team,Physical Support,NURSING HOMES - PRIVATE CONTRACTORS PAYMENT
http://opendatacommunities.org/doc/london-borough-council/havering,London Borough of Havering,27/05/2016,2074.64,MAY16L1108,Havering Care Homes Ltd t/a Abbscross Nursing Home_a,"Children, Adults & Housing",Adult Services,Adult Community Team,Support with Memory & Cognition,NURSING HOMES - PRIVATE CONTRACTORS PAYMENT
http://opendatacommunities.org/doc/london-borough-council/havering,London Borough of Havering,27/05/2016,2113.24,MAY16L1109,Havering Care Homes Ltd t/a Abbscross Nursing Home_a,"Children, Adults & Housing",Adult Services,Adult Community Team,Support with Memory & Cognition,NURSING HOMES - PRIVATE CONTRACTORS PAYMENT
http://opendatacommunities.org/doc/london-borough-council/havering,London Borough of Havering,27/05/2016,2074.64,MAY16L1110,Havering Care Homes Ltd t/a Abbscross Nursing Home_a,"Children, Adults & Housing",Adult Services,Adult Community Team,Physical Support,NURSING HOMES - PRIVATE CONTRACTORS PAYMENT
http://opendatacommunities.org/doc/london-borough-council/havering,London Borough of Havering,27/05/2016,-727.60,MAY16L1111,Havering Care Homes Ltd t/a Abbscross Nursing Home_a,"Children, Adults & Housing",Adult Services,Adult Community Team,Physical Support,NURSING CARE INCOME
http://opendatacommunities.org/doc/london-borough-council/havering,London Borough of Havering,27/05/2016,2011.52,MAY16L1112,Havering Care Homes Ltd t/a Abbscross Nursing Home_a,"Children, Adults & Housing",Adult Services,Adult Community Team,Physical Support,NURSING HOMES - PRIVATE CONTRACTORS PAYMENT
http://opendatacommunities.org/doc/london-borough-council/havering,London Borough of Havering,27/05/2016,-859.60,MAY16L1113,Havering Care Homes Ltd t/a Abbscross Nursing Home_a,"Children, Adults & Housing",Adult Services,Adult Community Team,Physical Support,NURSING CARE INCOME
http://opendatacommunities.org/doc/london-borough-council/havering,London Borough of Havering,27/05/2016,2156.00,MAY16L1114,Havering Care Homes Ltd t/a Abbscross Nursing Home_a,"Children, Adults & Housing",Adult Services,Adult Community Team,Physical Support,NURSING HOMES - PRIVATE CONTRACTORS PAYMENT
http://opendatacommunities.org/doc/london-borough-council/havering,London Borough of Havering,27/05/2016,-1179.12,MAY16L1115,Havering Care Homes Ltd t/a Abbscross Nursing Home_a,"Children, Adults & Housing",Adult Services,Adult Community Team,Physical Support,NURSING CARE INCOME
http://opendatacommunities.org/doc/london-borough-council/havering,London Borough of Havering,27/05/2016,2010.32,MAY16L1116,Havering Care Homes Ltd t/a Abbscross Nursing Home_a,"Children, Adults & Housing",Adult Services,Adult Community Team,Physical Support,NURSING HOMES - PRIVATE CONTRACTORS PAYMENT
http://opendatacommunities.org/doc/london-borough-council/havering,London Borough of Havering,27/05/2016,-558.00,MAY16L1117,Havering Care Homes Ltd t/a Abbscross Nursing Home_a,"Children, Adults & Housing",Adult Services,Adult Community Team,Support with Memory & Cognition,NURSING CARE INCOME
http://opendatacommunities.org/doc/london-borough-council/havering,London Borough of Havering,27/05/2016,2010.32,MAY16L1118,Havering Care Homes Ltd t/a Abbscross Nursing Home_a,"Children, Adults & Housing",Adult Services,Adult Community Team,Support with Memory & Cognition,NURSING HOMES - PRIVATE CONTRACTORS PAYMENT
http://opendatacommunities.org/doc/london-borough-council/havering,London Borough of Havering,27/05/2016,-519.20,MAY16L1119,Havering Care Homes Ltd t/a Abbscross Nursing Home_a,"Children, Adults & Housing",Adult Services,Adult Community Team,Physical Support,NURSING CARE INCOME
http://opendatacommunities.org/doc/london-borough-council/havering,London Borough of Havering,27/05/2016,2074.64,MAY16L1120,Havering Care Homes Ltd t/a Abbscross Nursing Home_a,"Children, Adults & Housing",Adult Services,Adult Community Team,Physical Support,NURSING HOMES - PRIVATE CONTRACTORS PAYMENT
http://opendatacommunities.org/doc/london-borough-council/havering,London Borough of Havering,27/05/2016,-519.20,MAY16L1121,Havering Care Homes Ltd t/a Abbscross Nursing Home_a,"Children, Adults & Housing",Adult Services,Adult Community Team,Physical Support,NURSING CARE INCOME
http://opendatacommunities.org/doc/london-borough-council/havering,London Borough of Havering,27/05/2016,2011.52,MAY16L1122,Havering Care Homes Ltd t/a Abbscross Nursing Home_a,"Children, Adults & Housing",Adult Services,Adult Community Team,Physical Support,NURSING HOMES - PRIVATE CONTRACTORS PAYMENT
http://opendatacommunities.org/doc/london-borough-council/havering,London Borough of Havering,27/05/2016,-2148.73,MAY16L1123,Havering Care Homes Ltd t/a Abbscross Nursing Home_a,"Children, Adults & Housing",Adult Services,Adult Community Team,Physical Support,NURSING HOMES - PRIVATE CONTRACTORS PAYMENT
http://opendatacommunities.org/doc/london-borough-council/havering,London Borough of Havering,03/05/2016,2074.64,MAY16L1124,Havering Care Homes Ltd t/a Abbscross Nursing Home_a,"Children, Adults & Housing",Adult Services,Adult Community Team,Physical Support,NURSING HOMES - PRIVATE CONTRACTORS PAYMENT
http://opendatacommunities.org/doc/london-borough-council/havering,London Borough of Havering,03/05/2016,2074.64,MAY16L1125,Havering Care Homes Ltd t/a Abbscross Nursing Home_a,"Children, Adults & Housing",Adult Services,Adult Community Team,Physical Support,RESIDENTIAL PLACEMENTS - PRIVATE CONTRACTORS PAYMENT
http://opendatacommunities.org/doc/london-borough-council/havering,London Borough of Havering,03/05/2016,2074.64,MAY16L1126,Havering Care Homes Ltd t/a Abbscross Nursing Home_a,"Children, Adults & Housing",Adult Services,Adult Community Team,Physical Support,NURSING HOMES - PRIVATE CONTRACTORS PAYMENT
